Directorate,Department,Expenditure Type,Ref.Doc.1,Vendor Name,Expenditure Amount (exc VAT),Payment Date
Assurance,Assurance,Furniture-Purchase-Repair,60025244,CITY FURNITURE HIRE LIMITED,824.48,01/07/2015
Assurance,Assurance,General Office Expenses,40000919,OFFICE DEPOT UK LTD,35.12,24/07/2015
Assurance,Assurance,General Office Expenses,40000920,OFFICE DEPOT UK LTD,35.12,24/07/2015
Assurance,Assurance,Legal and Court Fees,60026381,LAWYERS IN LOCAL GOVERNMENT,500,14/07/2015
Assurance,Assurance,Other Indirect Employee Expens,20022210,REDACTED - PERSONAL DATA,"1,063.10",21/07/2015
Assurance,Assurance,Other Services,60025436,CITY FURNITURE HIRE LIMITED,82.4,03/07/2015
Assurance,Assurance,Other Services,60024463,REDACTED - PERSONAL DATA,785,13/07/2015
Assurance,Assurance,Other Services,60025978,REDACTED - PERSONAL DATA,"1,260.00",29/07/2015
Assurance,Assurance,Postage,60025907,ROYAL MAIL GROUP LIMITED,6.16,16/07/2015
Assurance,Assurance,Postage,60026810,ROYAL MAIL GROUP LIMITED,43.61,30/07/2015
Assurance,Assurance,Printing-Contract,40000871,OFFICE DEPOT UK LTD,28.15,23/07/2015
Assurance,Assurance,Professional Services,60026232,ELECTORAL REFORM SERVICES,"2,685.08",16/07/2015
Assurance,Assurance,Professional Services,60026259,ELECTORAL REFORM SERVICES,158.4,14/07/2015
Assurance,Assurance,Professional Services,60026715,ELECTORAL REFORM SERVICES,217,29/07/2015
Assurance,Assurance,Professional Services,60026828,ELECTORAL REFORM SERVICES,"2,856.37",29/07/2015
Assurance,Assurance,Publications,60027372,REDACTED - PERSONAL DATA,375,31/07/2015
Assurance,Assurance,Publications,60027405,REDACTED - PERSONAL DATA,300,31/07/2015
Assurance,Assurance,Publications,20022203,THE LONDON MAYORS ASSOCIATION,60,21/07/2015
Assurance,Assurance,Rents,60025416,HENDON SCHOOL (ACADEMY),73.6,03/07/2015
Assurance,Assurance,Software Licences & Support,60027832,INTEC FOR BUSINESS LIMITED,250,31/07/2015
Assurance,Assurance,Stationery,40000895,OFFICE DEPOT UK LTD,65.74,23/07/2015
Assurance,Assurance,Stationery,40000897,OFFICE DEPOT UK LTD,0.36,23/07/2015
Assurance,Assurance,Subscriptions,60011610,EQUIFAX LTD,5.12,02/07/2015
Assurance,Assurance,Subscriptions,60025954,EQUIFAX LTD,2.56,29/07/2015
Assurance,Assurance,Subscriptions,60025968,EQUIFAX LTD,15.36,27/07/2015
Assurance,Assurance,Subscriptions,60026236,EQUIFAX LTD,2.56,27/07/2015
Assurance,Assurance,Subscriptions,60026270,EQUIFAX LTD,15.36,27/07/2015
Assurance,Assurance,Subscriptions,20021574,THE INFORMATION COMMISSIONER,245,06/07/2015
Assurance,Assurance,Subscriptions,20021649,THE INFORMATION COMMISSIONER,245,06/07/2015
Assurance,Assurance,Subscriptions,20021650,THE INFORMATION COMMISSIONER,245,06/07/2015
Assurance,Assurance,Subscriptions,20021651,THE INFORMATION COMMISSIONER,245,06/07/2015
Assurance,Assurance,Training,60024064,CIPFA BUSINESS LIMITED,"4,625.00",07/07/2015
Assurance,Assurance,Translation Exp / Interpret,60026453,PRIME PRODUCTION LTD,99.5,20/07/2015
Assurance,Assurance,Ttl IT & Comms,60025689,MODERN MINDSET LTD,"1,000.00",07/07/2015
Central Expenses,Central Expenses,Insurance Claims,20022029,ALLWEIS & COMPANY,360,17/07/2015
Central Expenses,Central Expenses,Insurance Claims,20022030,ALLWEIS & COMPANY,960,17/07/2015
Central Expenses,Central Expenses,Insurance Claims,20022176,AVIVA INSURANCE,"1,819.41",21/07/2015
Central Expenses,Central Expenses,Insurance Claims,20022361,AVIVA INSURANCE,"2,287.55",28/07/2015
Central Expenses,Central Expenses,Insurance Claims,20022166,BAKERS SOLICITORS,714,21/07/2015
Central Expenses,Central Expenses,Insurance Claims,10012575,BROWNE JACOBSON SOLS.,571,24/07/2015
Central Expenses,Central Expenses,Insurance Claims,10012576,BROWNE JACOBSON SOLS.,671,24/07/2015
Central Expenses,Central Expenses,Insurance Claims,10012577,BROWNE JACOBSON SOLS.,361.5,24/07/2015
Central Expenses,Central Expenses,Insurance Claims,20022364,CARTER LAW SOLICITORS,954,28/07/2015
Central Expenses,Central Expenses,Insurance Claims,20021893,DAC BEACHCROFT LLP,"100,000.00",13/07/2015
Central Expenses,Central Expenses,Insurance Claims,20022026,DEPARTMENT FOR WORK & PENSIONS,637,17/07/2015
Central Expenses,Central Expenses,Insurance Claims,20022198,DEPARTMENT FOR WORK & PENSIONS,627,21/07/2015
Central Expenses,Central Expenses,Insurance Claims,20022369,DEPARTMENT FOR WORK & PENSIONS,627,28/07/2015
Central Expenses,Central Expenses,Insurance Claims,20022511,DEPARTMENT FOR WORK & PENSIONS,781,31/07/2015
Central Expenses,Central Expenses,Insurance Claims,20022196,REDACTED - PERSONAL DATA,50,22/07/2015
Central Expenses,Central Expenses,Insurance Claims,20021841,EVERSHEDS LLP,"8,100.00",10/07/2015
Central Expenses,Central Expenses,Insurance Claims,10012513,GOLDING COLLIE & COMPANY,60,09/07/2015
Central Expenses,Central Expenses,Insurance Claims,10012515,GOLDING COLLIE & COMPANY,60,09/07/2015
Central Expenses,Central Expenses,Insurance Claims,10012516,GOLDING COLLIE & COMPANY,60,09/07/2015
Central Expenses,Central Expenses,Insurance Claims,10012517,GOLDING COLLIE & COMPANY,60,09/07/2015
Central Expenses,Central Expenses,Insurance Claims,10012518,GOLDING COLLIE & COMPANY,60,10/07/2015
Central Expenses,Central Expenses,Insurance Claims,10012519,GOLDING COLLIE & COMPANY,60,09/07/2015
Central Expenses,Central Expenses,Insurance Claims,10012520,GOLDING COLLIE & COMPANY,60,09/07/2015
Central Expenses,Central Expenses,Insurance Claims,10012521,GOLDING COLLIE & COMPANY,60,09/07/2015
Central Expenses,Central Expenses,Insurance Claims,10012522,GOLDING COLLIE & COMPANY,60,09/07/2015
Central Expenses,Central Expenses,Insurance Claims,60025358,GOLDING COLLIE & COMPANY,60,09/07/2015
Central Expenses,Central Expenses,Insurance Claims,60021817,JOHNSON AUSTIN PARTNERSHIP LLP,130,09/07/2015
Central Expenses,Central Expenses,Insurance Claims,20022362,JUDGE & PRIESTLEY LLP,"1,090.00",28/07/2015
Central Expenses,Central Expenses,Insurance Claims,60018836,KENNEDYS,311,09/07/2015
Central Expenses,Central Expenses,Insurance Claims,60020401,KENNEDYS,140,08/07/2015
Central Expenses,Central Expenses,Insurance Claims,20022028,KENNEDYS SOLICITORS,"3,500.00",17/07/2015
Central Expenses,Central Expenses,Insurance Claims,20021989,LEGAL AND GENERAL,"8,750.00",17/07/2015
Central Expenses,Central Expenses,Insurance Claims,20021644,LEVENES SOLICITORS,"27,000.00",06/07/2015
Central Expenses,Central Expenses,Insurance Claims,20022128,REDACTED - PERSONAL DATA,25,21/07/2015
Central Expenses,Central Expenses,Insurance Claims,20022197,REDACTED - PERSONAL DATA,"14,686.52",21/07/2015
Central Expenses,Central Expenses,Insurance Claims,20022593,RUBICON LAW,"22,862.00",31/07/2015
Central Expenses,Central Expenses,Insurance Claims,60022890,THE BARNETGROUP LIMITED,500,08/07/2015
Central Expenses,Central Expenses,Insurance Claims,60024866,THE BARNETGROUP LIMITED,"1,137.66",28/07/2015
Central Expenses,Central Expenses,Insurance Claims,20022270,THOMPSONS SOLICITORS,528,24/07/2015
Central Expenses,Central Expenses,Insurance Claims,20022368,TJL SOLICITORS,"1,980.00",28/07/2015
Central Expenses,Central Expenses,Insurance Claims,20022372,TRUSTEES OF NOVAE SYNDICATES 2007,"14,000.00",28/07/2015
Central Expenses,Central Expenses,Insurance Claims,20021845,UK INSURANCE LTD,"1,880.05",10/07/2015
Central Expenses,Central Expenses,Insurance Claims,20022373,WARD + RIDER SOLICITORS,"60,000.00",28/07/2015
Central Expenses,Central Expenses,Insurance Claims,20022370,WARING + CO SOLICITORS,"1,698.20",28/07/2015
Central Expenses,Central Expenses,Insurance Claims,10012511,WEIGHTMANS LLP,"1,132.50",09/07/2015
Central Expenses,Central Expenses,Insurance Claims,10012512,WEIGHTMANS LLP,437.5,09/07/2015
Central Expenses,Central Expenses,Insurance Claims,10012523,WEIGHTMANS LLP,"2,136.87",09/07/2015
Central Expenses,Central Expenses,Insurance Claims,10012524,WEIGHTMANS LLP,"2,082.23",09/07/2015
Central Expenses,Central Expenses,Insurance Claims,10012535,WEIGHTMANS LLP,137.5,14/07/2015
Central Expenses,Central Expenses,Insurance Claims,10012536,WEIGHTMANS LLP,825,14/07/2015
Central Expenses,Central Expenses,Insurance Claims,10012537,WEIGHTMANS LLP,125,14/07/2015
Central Expenses,Central Expenses,Insurance Claims,10012538,WEIGHTMANS LLP,837.5,14/07/2015
Central Expenses,Central Expenses,Insurance Claims,10012539,WEIGHTMANS LLP,125,14/07/2015
Central Expenses,Central Expenses,Insurance Claims,10012540,WEIGHTMANS LLP,630.2,14/07/2015
Central Expenses,Central Expenses,Insurance Claims,10012541,WEIGHTMANS LLP,50,14/07/2015
Central Expenses,Central Expenses,Insurance Claims,10012542,WEIGHTMANS LLP,650,14/07/2015
Central Expenses,Central Expenses,Insurance Claims,10012543,WEIGHTMANS LLP,"1,287.50",14/07/2015
Central Expenses,Central Expenses,Insurance Claims,10012544,WEIGHTMANS LLP,"3,025.00",14/07/2015
Central Expenses,Central Expenses,Insurance Claims,10012545,WEIGHTMANS LLP,650,14/07/2015
Central Expenses,Central Expenses,Insurance Claims,10012546,WEIGHTMANS LLP,868.97,14/07/2015
Central Expenses,Central Expenses,Insurance Claims,10012547,WEIGHTMANS LLP,412.5,14/07/2015
Central Expenses,Central Expenses,Insurance Claims,60021767,WEIGHTMANS LLP,954.5,14/07/2015
Central Expenses,Central Expenses,Insurance Claims,60027166,WEIGHTMANS LLP,493,29/07/2015
Central Expenses,Central Expenses,Insurance Claims,60027180,WEIGHTMANS LLP,927.5,29/07/2015
Central Expenses,Central Expenses,Insurance Claims,20021645,ZENITH INSURANCE,276.85,06/07/2015
Central Expenses,Central Expenses,Insurance Claims,20021705,ZURICH MUNICIPAL,"7,132.06",07/07/2015
Central Expenses,Central Expenses,Joint Authorities - Third Part,EBX0071547,NORTH LONDON WASTE AUTHORITY,"894,643.00",24/07/2015
Central Expenses,Central Expenses,Other Establishments - Third P,60026403,CITY OF LONDON,"163,839.00",14/07/2015
Central Expenses,Central Expenses,Other Establishments - Third P,60026649,CITY OF LONDON,"98,667.00",16/07/2015
Central Expenses,Central Expenses,Other Establishments - Third P,EBX0069341,LEE VALLEY REGIONAL PARK AUTH.,"33,052.02",15/07/2015
Central Expenses,Central Expenses,Other Establishments - Third P,EBX0071764,LONDON PENSIONS FUND AUTHORITY,"50,154.80",27/07/2015
Central Expenses,Central Expenses,Pensions To Retired Employees,10012554,LONDON PENSIONS FUND AUTHORITY,"2,870.08",17/07/2015
Central Expenses,Central Expenses,Subscriptions,60025997,LONDON BOROUGH OF EALING,"36,269.00",14/07/2015
Commercial,Births Deaths & Marriages,Contract Cleaning,60026212,CHURCHILL CONTRACT SERVICES,607.85,29/07/2015
Commercial,Customer Support Group,Building Cleaning Recharge,60026113,CHURCHILL CONTRACT SERVICES,644.4,29/07/2015
Commercial,Customer Support Group,Building Repairs & Maintenance,60027002,A.C.NICHOLAS LTD,350,29/07/2015
Commercial,Customer Support Group,Building Repairs & Maintenance,60025112,ADAMS ENVIRONMENTAL LTD,"2,150.00",15/07/2015
Commercial,Customer Support Group,Building Repairs & Maintenance,60025115,ADAMS ENVIRONMENTAL LTD,"1,200.00",22/07/2015
Commercial,Customer Support Group,Building Repairs & Maintenance,10012506,AFFINITY WATER LIMITED,17.21,06/07/2015
Commercial,Customer Support Group,Building Repairs & Maintenance,60019695,AFFINITY WATER LIMITED,15.2,06/07/2015
Commercial,Customer Support Group,Building Repairs & Maintenance,60015786,AJS LTD,74.25,08/07/2015
Commercial,Customer Support Group,Building Repairs & Maintenance,60016463,AJS LTD,41.25,03/07/2015
Commercial,Customer Support Group,Building Repairs & Maintenance,60016542,AJS LTD,165,03/07/2015
Commercial,Customer Support Group,Building Repairs & Maintenance,60016645,AJS LTD,16.5,03/07/2015
Commercial,Customer Support Group,Building Repairs & Maintenance,60016654,AJS LTD,387.75,03/07/2015
Commercial,Customer Support Group,Building Repairs & Maintenance,60016752,AJS LTD,312.5,03/07/2015
Commercial,Customer Support Group,Building Repairs & Maintenance,60025274,CLEARWATER TECHNOLOGY LTD,40.23,02/07/2015
Commercial,Customer Support Group,Building Repairs & Maintenance,60025319,CLEARWATER TECHNOLOGY LTD,263.31,02/07/2015
Commercial,Customer Support Group,Building Repairs & Maintenance,60025357,CLEARWATER TECHNOLOGY LTD,153.6,02/07/2015
Commercial,Customer Support Group,Building Repairs & Maintenance,60025398,CLEARWATER TECHNOLOGY LTD,40.23,02/07/2015
Commercial,Customer Support Group,Building Repairs & Maintenance,60023834,DOORWAY-MAINTENANCE CO.,"3,550.00",14/07/2015
Commercial,Customer Support Group,Building Repairs & Maintenance,60025396,DOORWAY-MAINTENANCE CO.,"3,990.00",14/07/2015
Commercial,Customer Support Group,Building Repairs & Maintenance,60027578,FRONTIER-PITTS LTD,235.2,28/07/2015
Commercial,Customer Support Group,Building Repairs & Maintenance,60027520,GEESINK NORBA LTD,216.62,28/07/2015
Commercial,Customer Support Group,Building Repairs & Maintenance,60025522,LEE SECURITY LONDON LIMITED,467,24/07/2015
Commercial,Customer Support Group,Building Repairs & Maintenance,60025533,LEE SECURITY LONDON LIMITED,472,24/07/2015
Commercial,Customer Support Group,Building Repairs & Maintenance,60025570,LEE SECURITY LONDON LIMITED,467,24/07/2015
Commercial,Customer Support Group,Building Repairs & Maintenance,60025574,LEE SECURITY LONDON LIMITED,554,24/07/2015
Commercial,Customer Support Group,Building Repairs & Maintenance,60025587,LEE SECURITY LONDON LIMITED,554,24/07/2015
Commercial,Customer Support Group,Building Repairs & Maintenance,60025589,LEE SECURITY LONDON LIMITED,467,24/07/2015
Commercial,Customer Support Group,Building Repairs & Maintenance,60026238,LEE SECURITY LONDON LIMITED,35,14/07/2015
Commercial,Customer Support Group,Building Repairs & Maintenance,60026258,LEE SECURITY LONDON LIMITED,77,16/07/2015
Commercial,Customer Support Group,Building Repairs & Maintenance,60026269,LEE SECURITY LONDON LIMITED,422,14/07/2015
Commercial,Customer Support Group,Building Repairs & Maintenance,60026289,LEE SECURITY LONDON LIMITED,80,14/07/2015
Commercial,Customer Support Group,Building Repairs & Maintenance,60026338,LEE SECURITY LONDON LIMITED,423,14/07/2015
Commercial,Customer Support Group,Building Repairs & Maintenance,60026880,LEE SECURITY LONDON LIMITED,172,20/07/2015
Commercial,Customer Support Group,Building Repairs & Maintenance,60026975,LEE SECURITY LONDON LIMITED,422,21/07/2015
Commercial,Customer Support Group,Building Repairs & Maintenance,60011969,LIFT & ENGINEERING SERVICES LTD,116,23/07/2015
Commercial,Customer Support Group,Building Repairs & Maintenance,60023691,LIFT & ENGINEERING SERVICES LTD,931,03/07/2015
Commercial,Customer Support Group,Building Repairs & Maintenance,60023967,LIFT & ENGINEERING SERVICES LTD,143.43,07/07/2015
Commercial,Customer Support Group,Building Repairs & Maintenance,60024020,LIFT & ENGINEERING SERVICES LTD,87,07/07/2015
Commercial,Customer Support Group,Building Repairs & Maintenance,60024030,LIFT & ENGINEERING SERVICES LTD,99.16,07/07/2015
Commercial,Customer Support Group,Building Repairs & Maintenance,60024061,LIFT & ENGINEERING SERVICES LTD,49.58,07/07/2015
Commercial,Customer Support Group,Building Repairs & Maintenance,60024070,LIFT & ENGINEERING SERVICES LTD,49.58,07/07/2015
Commercial,Customer Support Group,Building Repairs & Maintenance,60024071,LIFT & ENGINEERING SERVICES LTD,94.58,07/07/2015
Commercial,Customer Support Group,Building Repairs & Maintenance,60024079,LIFT & ENGINEERING SERVICES LTD,49.58,07/07/2015
Commercial,Customer Support Group,Building Repairs & Maintenance,60024085,LIFT & ENGINEERING SERVICES LTD,58,07/07/2015
Commercial,Customer Support Group,Building Repairs & Maintenance,60027052,LIFT & ENGINEERING SERVICES LTD,66.11,22/07/2015
Commercial,Customer Support Group,Building Repairs & Maintenance,60027140,LIFT & ENGINEERING SERVICES LTD,49.58,22/07/2015
Commercial,Customer Support Group,Building Repairs & Maintenance,60010849,OAKRAY LIMITED,64,24/07/2015
Commercial,Customer Support Group,Building Repairs & Maintenance,60016514,OAKRAY LIMITED,405,24/07/2015
Commercial,Customer Support Group,Building Repairs & Maintenance,60025731,OAKRAY LIMITED,407.13,29/07/2015
Commercial,Customer Support Group,Building Repairs & Maintenance,60025743,OAKRAY LIMITED,144,29/07/2015
Commercial,Customer Support Group,Building Repairs & Maintenance,60025769,OAKRAY LIMITED,459.99,29/07/2015
Commercial,Customer Support Group,Building Repairs & Maintenance,60025785,OAKRAY LIMITED,64,29/07/2015
Commercial,Customer Support Group,Building Repairs & Maintenance,60025802,OAKRAY LIMITED,433.98,29/07/2015
Commercial,Customer Support Group,Building Repairs & Maintenance,60025806,OAKRAY LIMITED,341.3,29/07/2015
Commercial,Customer Support Group,Building Repairs & Maintenance,60014761,RGE SERVICES,368.15,03/07/2015
Commercial,Customer Support Group,Building Repairs & Maintenance,60023332,RGE SERVICES,80.75,07/07/2015
Commercial,Customer Support Group,Building Repairs & Maintenance,60023429,RGE SERVICES,204.25,07/07/2015
Commercial,Customer Support Group,Building Repairs & Maintenance,60023452,RGE SERVICES,390.45,07/07/2015
Commercial,Customer Support Group,Building Repairs & Maintenance,60023457,RGE SERVICES,52.25,07/07/2015
Commercial,Customer Support Group,Building Repairs & Maintenance,60023458,RGE SERVICES,191.58,07/07/2015
Commercial,Customer Support Group,Building Repairs & Maintenance,60023497,RGE SERVICES,52.25,07/07/2015
Commercial,Customer Support Group,Building Repairs & Maintenance,60023811,RGE SERVICES,109.02,09/07/2015
Commercial,Customer Support Group,Building Repairs & Maintenance,60023837,RGE SERVICES,229.35,09/07/2015
Commercial,Customer Support Group,Building Repairs & Maintenance,60023838,RGE SERVICES,244.47,09/07/2015
Commercial,Customer Support Group,Building Repairs & Maintenance,60023850,RGE SERVICES,232.04,09/07/2015
Commercial,Customer Support Group,Building Repairs & Maintenance,60023858,RGE SERVICES,93,09/07/2015
Commercial,Customer Support Group,Building Repairs & Maintenance,60023880,RGE SERVICES,256.6,09/07/2015
Commercial,Customer Support Group,Building Repairs & Maintenance,60023887,RGE SERVICES,62,09/07/2015
Commercial,Customer Support Group,Building Repairs & Maintenance,60023893,RGE SERVICES,971.51,09/07/2015
Commercial,Customer Support Group,Building Repairs & Maintenance,60023907,RGE SERVICES,95.58,09/07/2015
Commercial,Customer Support Group,Building Repairs & Maintenance,60023908,RGE SERVICES,62,09/07/2015
Commercial,Customer Support Group,Building Repairs & Maintenance,60023914,RGE SERVICES,170.19,09/07/2015
Commercial,Customer Support Group,Building Repairs & Maintenance,60023934,RGE SERVICES,93,09/07/2015
Commercial,Customer Support Group,Building Repairs & Maintenance,60023966,RGE SERVICES,62,09/07/2015
Commercial,Customer Support Group,Building Repairs & Maintenance,60024099,RGE SERVICES,212.28,13/07/2015
Commercial,Customer Support Group,Building Repairs & Maintenance,60024101,RGE SERVICES,93,13/07/2015
Commercial,Customer Support Group,Building Repairs & Maintenance,60024121,RGE SERVICES,412.05,13/07/2015
Commercial,Customer Support Group,Building Repairs & Maintenance,60024126,RGE SERVICES,62,13/07/2015
Commercial,Customer Support Group,Building Repairs & Maintenance,60024148,RGE SERVICES,561.46,13/07/2015
Commercial,Customer Support Group,Building Repairs & Maintenance,60024158,RGE SERVICES,109.67,13/07/2015
Commercial,Customer Support Group,Building Repairs & Maintenance,60024787,RGE SERVICES,263.53,24/07/2015
Commercial,Customer Support Group,Building Repairs & Maintenance,60024803,RGE SERVICES,152.72,21/07/2015
Commercial,Customer Support Group,Building Repairs & Maintenance,60024831,RGE SERVICES,62,17/07/2015
Commercial,Customer Support Group,Building Repairs & Maintenance,60024894,RGE SERVICES,380.25,22/07/2015
Commercial,Customer Support Group,Building Repairs & Maintenance,60024899,RGE SERVICES,52.25,22/07/2015
Commercial,Customer Support Group,Building Repairs & Maintenance,60024902,RGE SERVICES,213.39,22/07/2015
Commercial,Customer Support Group,Building Repairs & Maintenance,60024911,RGE SERVICES,71.25,22/07/2015
Commercial,Customer Support Group,Building Repairs & Maintenance,60024918,RGE SERVICES,133,22/07/2015
Commercial,Customer Support Group,Building Repairs & Maintenance,60024923,RGE SERVICES,185.25,22/07/2015
Commercial,Customer Support Group,Building Repairs & Maintenance,60024960,RGE SERVICES,284.56,22/07/2015
Commercial,Customer Support Group,Building Repairs & Maintenance,60024963,RGE SERVICES,104.5,22/07/2015
Commercial,Customer Support Group,Building Repairs & Maintenance,60024981,RGE SERVICES,71.25,22/07/2015
Commercial,Customer Support Group,Building Repairs & Maintenance,60024987,RGE SERVICES,268.85,22/07/2015
Commercial,Customer Support Group,Building Repairs & Maintenance,60024991,RGE SERVICES,915.89,22/07/2015
Commercial,Customer Support Group,Building Repairs & Maintenance,60024998,RGE SERVICES,52.25,22/07/2015
Commercial,Customer Support Group,Building Repairs & Maintenance,60025014,RGE SERVICES,560.85,22/07/2015
Commercial,Customer Support Group,Building Repairs & Maintenance,60025019,RGE SERVICES,28.5,22/07/2015
Commercial,Customer Support Group,Building Repairs & Maintenance,60025038,RGE SERVICES,278.28,22/07/2015
Commercial,Customer Support Group,Building Repairs & Maintenance,60025050,RGE SERVICES,133,22/07/2015
Commercial,Customer Support Group,Building Repairs & Maintenance,60025166,RGE SERVICES,156.75,27/07/2015
Commercial,Customer Support Group,Building Repairs & Maintenance,60025171,RGE SERVICES,192.07,27/07/2015
Commercial,Customer Support Group,Building Repairs & Maintenance,60025180,RGE SERVICES,133,27/07/2015
Commercial,Customer Support Group,Building Repairs & Maintenance,60025181,RGE SERVICES,709.17,27/07/2015
Commercial,Customer Support Group,Building Repairs & Maintenance,60025183,RGE SERVICES,71.25,27/07/2015
Commercial,Customer Support Group,Building Repairs & Maintenance,60025185,RGE SERVICES,104.5,27/07/2015
Commercial,Customer Support Group,Building Repairs & Maintenance,60025186,RGE SERVICES,619.56,27/07/2015
Commercial,Customer Support Group,Building Repairs & Maintenance,60025187,RGE SERVICES,80.75,27/07/2015
Commercial,Customer Support Group,Building Repairs & Maintenance,60025188,RGE SERVICES,80.75,27/07/2015
Commercial,Customer Support Group,Building Repairs & Maintenance,60025190,RGE SERVICES,71.25,27/07/2015
Commercial,Customer Support Group,Building Repairs & Maintenance,60025192,RGE SERVICES,185.25,27/07/2015
Commercial,Customer Support Group,Building Repairs & Maintenance,60025196,RGE SERVICES,109.25,27/07/2015
Commercial,Customer Support Group,Building Repairs & Maintenance,60025198,RGE SERVICES,52.25,27/07/2015
Commercial,Customer Support Group,Building Repairs & Maintenance,60025199,RGE SERVICES,152,27/07/2015
Commercial,Customer Support Group,Building Repairs & Maintenance,60025201,RGE SERVICES,71.25,27/07/2015
Commercial,Customer Support Group,Building Repairs & Maintenance,60025210,RGE SERVICES,52.25,27/07/2015
Commercial,Customer Support Group,Building Repairs & Maintenance,60025211,RGE SERVICES,109.25,27/07/2015
Commercial,Customer Support Group,Building Repairs & Maintenance,60025216,RGE SERVICES,67.48,27/07/2015
Commercial,Customer Support Group,Building Repairs & Maintenance,60025219,RGE SERVICES,28.5,27/07/2015
Commercial,Customer Support Group,Building Repairs & Maintenance,60025233,RGE SERVICES,156.75,27/07/2015
Commercial,Customer Support Group,Building Repairs & Maintenance,60025236,RGE SERVICES,80.75,27/07/2015
Commercial,Customer Support Group,Building Repairs & Maintenance,60025239,RGE SERVICES,67.48,27/07/2015
Commercial,Customer Support Group,Building Repairs & Maintenance,60025240,RGE SERVICES,52.25,27/07/2015
Commercial,Customer Support Group,Building Repairs & Maintenance,60025256,RGE SERVICES,243.55,27/07/2015
Commercial,Customer Support Group,Building Repairs & Maintenance,60025263,RGE SERVICES,28.5,27/07/2015
Commercial,Customer Support Group,Building Repairs & Maintenance,60025266,RGE SERVICES,156.75,27/07/2015
Commercial,Customer Support Group,Building Repairs & Maintenance,60025272,RGE SERVICES,71.25,27/07/2015
Commercial,Customer Support Group,Building Repairs & Maintenance,60025273,RGE SERVICES,80.75,27/07/2015
Commercial,Customer Support Group,Building Repairs & Maintenance,60025317,RGE SERVICES,52.25,27/07/2015
Commercial,Customer Support Group,Building Repairs & Maintenance,60025334,RGE SERVICES,71.25,27/07/2015
Commercial,Customer Support Group,Building Repairs & Maintenance,60025355,RGE SERVICES,71.25,27/07/2015
Commercial,Customer Support Group,Building Repairs & Maintenance,60025370,RGE SERVICES,163.77,27/07/2015
Commercial,Customer Support Group,Building Repairs & Maintenance,60025391,RGE SERVICES,104.5,27/07/2015
Commercial,Customer Support Group,Building Repairs & Maintenance,60026442,RGE SERVICES,110.98,24/07/2015
Commercial,Customer Support Group,Building Repairs & Maintenance,60027349,RGE SERVICES,133,24/07/2015
Commercial,Customer Support Group,Building Repairs & Maintenance,60024477,S W BRUCE & CO LTD,719,17/07/2015
Commercial,Customer Support Group,Building Repairs & Maintenance,60024478,S W BRUCE & CO LTD,169.08,17/07/2015
Commercial,Customer Support Group,Building Repairs & Maintenance,60024480,S W BRUCE & CO LTD,107.64,17/07/2015
Commercial,Customer Support Group,Building Repairs & Maintenance,60024481,S W BRUCE & CO LTD,366,17/07/2015
Commercial,Customer Support Group,Building Repairs & Maintenance,60024485,S W BRUCE & CO LTD,88.37,17/07/2015
Commercial,Customer Support Group,Building Repairs & Maintenance,60024489,S W BRUCE & CO LTD,64.81,17/07/2015
Commercial,Customer Support Group,Building Repairs & Maintenance,60024492,S W BRUCE & CO LTD,122.69,17/07/2015
Commercial,Customer Support Group,Building Repairs & Maintenance,60024493,S W BRUCE & CO LTD,133.78,17/07/2015
Commercial,Customer Support Group,Building Repairs & Maintenance,60024497,S W BRUCE & CO LTD,28.5,15/07/2015
Commercial,Customer Support Group,Building Repairs & Maintenance,60024499,S W BRUCE & CO LTD,822.55,17/07/2015
Commercial,Customer Support Group,Building Repairs & Maintenance,60024507,S W BRUCE & CO LTD,85.5,17/07/2015
Commercial,Customer Support Group,Building Repairs & Maintenance,60024510,S W BRUCE & CO LTD,"13,222.94",17/07/2015
Commercial,Customer Support Group,Building Repairs & Maintenance,60024511,S W BRUCE & CO LTD,228.26,17/07/2015
Commercial,Customer Support Group,Building Repairs & Maintenance,60024516,S W BRUCE & CO LTD,28.5,17/07/2015
Commercial,Customer Support Group,Building Repairs & Maintenance,60024533,S W BRUCE & CO LTD,242.21,17/07/2015
Commercial,Customer Support Group,Building Repairs & Maintenance,60024535,S W BRUCE & CO LTD,712.5,17/07/2015
Commercial,Customer Support Group,Building Repairs & Maintenance,60024540,S W BRUCE & CO LTD,134.94,17/07/2015
Commercial,Customer Support Group,Building Repairs & Maintenance,60024545,S W BRUCE & CO LTD,680,17/07/2015
Commercial,Customer Support Group,Building Repairs & Maintenance,60024551,S W BRUCE & CO LTD,"1,197.08",17/07/2015
Commercial,Customer Support Group,Building Repairs & Maintenance,60024553,S W BRUCE & CO LTD,912,17/07/2015
Commercial,Customer Support Group,Building Repairs & Maintenance,60024556,S W BRUCE & CO LTD,103.07,17/07/2015
Commercial,Customer Support Group,Building Repairs & Maintenance,60024567,S W BRUCE & CO LTD,86.22,17/07/2015
Commercial,Customer Support Group,Building Repairs & Maintenance,60024572,S W BRUCE & CO LTD,119,17/07/2015
Commercial,Customer Support Group,Building Repairs & Maintenance,60024585,S W BRUCE & CO LTD,28.5,17/07/2015
Commercial,Customer Support Group,Building Repairs & Maintenance,60024586,S W BRUCE & CO LTD,866.47,17/07/2015
Commercial,Customer Support Group,Building Repairs & Maintenance,60024599,S W BRUCE & CO LTD,62.8,17/07/2015
Commercial,Customer Support Group,Building Repairs & Maintenance,60024610,S W BRUCE & CO LTD,92.98,17/07/2015
Commercial,Customer Support Group,Building Repairs & Maintenance,60024615,S W BRUCE & CO LTD,"1,101.42",17/07/2015
Commercial,Customer Support Group,Building Repairs & Maintenance,60024619,S W BRUCE & CO LTD,246.4,17/07/2015
Commercial,Customer Support Group,Building Repairs & Maintenance,60025068,S W BRUCE & CO LTD,57,22/07/2015
Commercial,Customer Support Group,Building Repairs & Maintenance,60025085,S W BRUCE & CO LTD,37.99,22/07/2015
Commercial,Customer Support Group,Building Repairs & Maintenance,60025105,S W BRUCE & CO LTD,80.24,22/07/2015
Commercial,Customer Support Group,Building Repairs & Maintenance,60025117,S W BRUCE & CO LTD,28.5,22/07/2015
Commercial,Customer Support Group,Building Repairs & Maintenance,60025122,S W BRUCE & CO LTD,81.33,22/07/2015
Commercial,Customer Support Group,Building Repairs & Maintenance,60025126,S W BRUCE & CO LTD,543.49,22/07/2015
Commercial,Customer Support Group,Building Repairs & Maintenance,60025130,S W BRUCE & CO LTD,135.8,22/07/2015
Commercial,Customer Support Group,Building Repairs & Maintenance,60025136,S W BRUCE & CO LTD,57,22/07/2015
Commercial,Customer Support Group,Building Repairs & Maintenance,60025143,S W BRUCE & CO LTD,25,22/07/2015
Commercial,Customer Support Group,Building Repairs & Maintenance,60025151,S W BRUCE & CO LTD,86.4,22/07/2015
Commercial,Customer Support Group,Building Repairs & Maintenance,60023997,SIMPLY ALARMING SECURITY LTD,170,03/07/2015
Commercial,Customer Support Group,Building Repairs & Maintenance,60025033,TANN SYNCHRONOME LTD,158.78,06/07/2015
Commercial,Customer Support Group,Building Repairs & Maintenance,60026438,TANN SYNCHRONOME LTD,250,23/07/2015
Commercial,Customer Support Group,Building Repairs & Maintenance,60027725,TECHNICAL SURFACES LTD,498.75,30/07/2015
Commercial,Customer Support Group,Building Repairs & Maintenance,60024117,UNITED FORKTRUCKS (1992) LTD,"1,200.00",09/07/2015
Commercial,Customer Support Group,Cleaning and domestic material,60027260,CHURCHILL CONTRACT SERVICES,640,24/07/2015
Commercial,Customer Support Group,Cleaning and domestic material,60027302,CHURCHILL CONTRACT SERVICES,576,24/07/2015
Commercial,Customer Support Group,Cleaning and domestic material,60025749,HERTFORDSHIRE COUNTY COUNCIL,840.95,08/07/2015
Commercial,Customer Support Group,Cleaning and domestic material,60025759,HERTFORDSHIRE COUNTY COUNCIL,634.32,09/07/2015
Commercial,Customer Support Group,Cleaning and domestic material,60025867,HERTFORDSHIRE COUNTY COUNCIL,"1,065.50",09/07/2015
Commercial,Customer Support Group,Cleaning and domestic material,60020589,HERTFORDSHIRE SUPPLIES   COUNTY CO,113.2,09/07/2015
Commercial,Customer Support Group,Cleaning and domestic material,60025841,HERTFORDSHIRE SUPPLIES   COUNTY CO,197.9,16/07/2015
Commercial,Customer Support Group,Consultants Fees,60025540,VALUATION OFFICE AGENCY,"1,200.00",06/07/2015
Commercial,Customer Support Group,Consultants Fees,60025683,VALUATION OFFICE AGENCY,"1,460.16",16/07/2015
Commercial,Customer Support Group,Contract Cleaning,60008769,CHURCHILL CONTRACT SERVICES,13.85,28/07/2015
Commercial,Customer Support Group,Contract Cleaning,60014344,CHURCHILL CONTRACT SERVICES,286.43,28/07/2015
Commercial,Customer Support Group,Contract Cleaning,60026046,CHURCHILL CONTRACT SERVICES,"1,103.65",29/07/2015
Commercial,Customer Support Group,Contract Cleaning,60026084,CHURCHILL CONTRACT SERVICES,"7,809.56",29/07/2015
Commercial,Customer Support Group,Contract Cleaning,60026100,CHURCHILL CONTRACT SERVICES,"3,458.58",29/07/2015
Commercial,Customer Support Group,Contract Cleaning,60026117,CHURCHILL CONTRACT SERVICES,598.72,29/07/2015
Commercial,Customer Support Group,Contract Cleaning,60026148,CHURCHILL CONTRACT SERVICES,"8,132.77",29/07/2015
Commercial,Customer Support Group,CSG Services Contract Payment,10012571,CAPITA BUSINESS SERVICES LTD,"985,939.00",24/07/2015
Commercial,Customer Support Group,CSG Services Contract Payment,10012572,CAPITA BUSINESS SERVICES LTD,"106,504.00",24/07/2015
Commercial,Customer Support Group,CSG Services Contract Payment,10012573,CAPITA BUSINESS SERVICES LTD,"11,685.25",24/07/2015
Commercial,Customer Support Group,Electricity,60025161,KENT COUNTY COUNCIL (KCS),357.1,01/07/2015
Commercial,Customer Support Group,Electricity,60025175,KENT COUNTY COUNCIL (KCS),"6,375.37",03/07/2015
Commercial,Customer Support Group,Electricity,60025194,KENT COUNTY COUNCIL (KCS),"1,211.90",06/07/2015
Commercial,Customer Support Group,Electricity,60025203,KENT COUNTY COUNCIL (KCS),412.83,06/07/2015
Commercial,Customer Support Group,Electricity,60025223,KENT COUNTY COUNCIL (KCS),"3,149.32",06/07/2015
Commercial,Customer Support Group,Electricity,60025268,KENT COUNTY COUNCIL (KCS),374.79,01/07/2015
Commercial,Customer Support Group,Electricity,60025331,KENT COUNTY COUNCIL (KCS),"77,845.96",02/07/2015
Commercial,Customer Support Group,Electricity,60026341,KENT COUNTY COUNCIL (KCS),3.11,14/07/2015
Commercial,Customer Support Group,Electricity,60026348,KENT COUNTY COUNCIL (KCS),147.91,14/07/2015
Commercial,Customer Support Group,Electricity,60026884,KENT COUNTY COUNCIL (KCS),"83,879.88",31/07/2015
Commercial,Customer Support Group,Electricity,60027676,KENT COUNTY COUNCIL (KCS),"5,374.12",31/07/2015
Commercial,Customer Support Group,Equipment and Materials Purcha,60025824,B & H DESIGNS,220,09/07/2015
Commercial,Customer Support Group,Equipment and Materials Purcha,60013157,CONNECT VENDING LIMITED,119.21,14/07/2015
Commercial,Customer Support Group,Equipment and Materials Purcha,60026217,DAY PLANT HIRE CO LIMITED,379.08,10/07/2015
Commercial,Customer Support Group,Equipment and Materials Purcha,60026219,DAY PLANT HIRE CO LIMITED,364,10/07/2015
Commercial,Customer Support Group,Equipment and Materials Purcha,60025158,RENTOKIL INITIAL UK LTD,51.97,01/07/2015
Commercial,Customer Support Group,Equipment and Materials Purcha,60026249,SM ELECTRICAL SERVICES,260,27/07/2015
Commercial,Customer Support Group,Equipment and Materials Purcha,60026265,SM ELECTRICAL SERVICES,"1,870.00",23/07/2015
Commercial,Customer Support Group,Fixtures and fittings,60024636,LYCO DIRECT LTD,62.5,21/07/2015
Commercial,Customer Support Group,Fixtures and fittings,60024966,LYCO DIRECT LTD,33,22/07/2015
Commercial,Customer Support Group,Gas,60026261,KENT COUNTY COUNCIL (KCS),203.18,14/07/2015
Commercial,Customer Support Group,Gas,60026267,KENT COUNTY COUNCIL (KCS),425.93,14/07/2015
Commercial,Customer Support Group,Grounds maintenance,60025191,THE HONEYWAGON CO.,979.25,15/07/2015
Commercial,Customer Support Group,Insurance-Premises,60019479,MIDDLESEX UNIVERSITY,680.81,30/07/2015
Commercial,Customer Support Group,Operational Leases - Equipment,60022919,KONICA MINOLTA BUSINESS SOLUTIONS L,338.3,29/07/2015
Commercial,Customer Support Group,Operational Leases - Equipment,60022928,KONICA MINOLTA BUSINESS SOLUTIONS L,"6,293.51",29/07/2015
Commercial,Customer Support Group,Operational Leases - Equipment,60025469,XEROX FINANCE LTD,"4,826.01",03/07/2015
Commercial,Customer Support Group,Other Services,60026054,BLUE 9 SECURITY LIMITED,58,10/07/2015
Commercial,Customer Support Group,Other Services,60026080,BLUE 9 SECURITY LIMITED,819.25,10/07/2015
Commercial,Customer Support Group,Other Services,60026088,BLUE 9 SECURITY LIMITED,"17,964.88",16/07/2015
Commercial,Customer Support Group,Other Services,60026110,BLUE 9 SECURITY LIMITED,"20,520.00",10/07/2015
Commercial,Customer Support Group,Other Services,60026168,BLUE 9 SECURITY LIMITED,"2,092.50",10/07/2015
Commercial,Customer Support Group,Other Services,60026209,BLUE 9 SECURITY LIMITED,187.5,10/07/2015
Commercial,Customer Support Group,Other Services,60026225,BLUE 9 SECURITY LIMITED,50,10/07/2015
Commercial,Customer Support Group,Other Services,60024953,COMER PROPERTY MANAGEMENT,"15,076.36",13/07/2015
Commercial,Customer Support Group,Postage,60025408,ROYAL MAIL GROUP LIMITED,"11,158.77",03/07/2015
Commercial,Customer Support Group,Postage,60025431,ROYAL MAIL GROUP LIMITED,165.77,16/07/2015
Commercial,Customer Support Group,Postage,60026156,ROYAL MAIL GROUP LIMITED,"9,208.82",16/07/2015
Commercial,Customer Support Group,Postage,60026905,ROYAL MAIL GROUP LIMITED,"11,565.59",20/07/2015
Commercial,Customer Support Group,Postage,60027088,ROYAL MAIL GROUP LIMITED,"6,599.38",28/07/2015
Commercial,Customer Support Group,Rents,60026311,MIDDLESEX UNIVERSITY,"26,375.00",17/07/2015
Commercial,Customer Support Group,Rents,60026353,MIDDLESEX UNIVERSITY,"179,561.90",30/07/2015
Commercial,Customer Support Group,Rents,60026426,MIDDLESEX UNIVERSITY,"39,414.16",17/07/2015
Commercial,Customer Support Group,Rents,60025232,RIDGELAND PROPERTIES LTD,"12,000.00",01/07/2015
Commercial,Customer Support Group,Rubbish Collection,10012578,G.B.HOLDINGS LTD,76.5,27/07/2015
Commercial,Customer Support Group,Rubbish Collection,60027553,G.B.HOLDINGS LTD,351.3,28/07/2015
Commercial,Customer Support Group,Rubbish Collection,60027661,G.B.HOLDINGS LTD,24.75,28/07/2015
Commercial,Customer Support Group,Rubbish Collection,60027687,G.B.HOLDINGS LTD,273.75,28/07/2015
Commercial,Customer Support Group,Rubbish Collection,60027702,G.B.HOLDINGS LTD,100.5,28/07/2015
Commercial,Customer Support Group,Rubbish Collection,60025664,PEARCE RECYCLING CO. LTD,39,29/07/2015
Commercial,Customer Support Group,Rubbish Collection,60025705,PEARCE RECYCLING CO. LTD,39,29/07/2015
Commercial,Customer Support Group,Rubbish Collection,60025563,PREMIER SHREDDING,155,06/07/2015
Commercial,Customer Support Group,Rubbish Collection,60026994,PREMIER SHREDDING,61,28/07/2015
Commercial,Customer Support Group,Rubbish Collection,60027000,PREMIER SHREDDING,75,28/07/2015
Commercial,Customer Support Group,Service Charges,60025206,MARYLEBONE ASSET MANAGEMENT LTD,183.36,01/07/2015
Commercial,Customer Support Group,Service Charges,60025351,MARYLEBONE ASSET MANAGEMENT LTD,"27,966.24",02/07/2015
Commercial,Customer Support Group,Service Charges,60026301,MIDDLESEX UNIVERSITY,"8,434.50",17/07/2015
Commercial,Customer Support Group,Service Charges,60026356,MIDDLESEX UNIVERSITY,"10,859.37",30/07/2015
Commercial,Customer Support Group,Service Charges,60026995,MIDDLESEX UNIVERSITY,"23,209.33",30/07/2015
Commercial,Customer Support Group,Software Licences & Support,10012553,LOGOTECH SYSTEMS,"2,433.28",17/07/2015
Commercial,Customer Support Group,Stationery,60026485,CPI LONDON,25.5,28/07/2015
Commercial,Customer Support Group,Telephones Calls,60026359,BRITISH TELECOMMUNICATIONS PLC,49.89,16/07/2015
Commercial,Customer Support Group,Telephones Calls,60026382,BRITISH TELECOMMUNICATIONS PLC,49.89,16/07/2015
Commercial,Customer Support Group,Water Services,60018711,AFFINITY WATER LIMITED,"7,696.17",01/07/2015
Commercial,Customer Support Group,Water Services,60026074,ANGEL SPRINGS LTD,16.99,29/07/2015
Commercial,Customer Support Group,Water Services,60026092,ANGEL SPRINGS LTD,200,29/07/2015
Commercial,Customer Support Group,Water Services,60026096,ANGEL SPRINGS LTD,200,29/07/2015
Commercial,Customer Support Group,Water Services,60026144,ANGEL SPRINGS LTD,91,29/07/2015
Commercial,Customer Support Group,Water Services,60026146,ANGEL SPRINGS LTD,170,29/07/2015
Commercial,Customer Support Group,Water Services,60026181,ANGEL SPRINGS LTD,48,29/07/2015
Commercial,Customer Support Group,Water Services,60026196,ANGEL SPRINGS LTD,108,29/07/2015
Commercial,Customer Support Group,Water Services,60026227,ANGEL SPRINGS LTD,15.5,29/07/2015
Commercial,Customer Support Group,Water Services,60026945,THAMES WATER UTILITIES LIMITED,356.15,22/07/2015
Commercial,Customer Support Group,Water Services,60027567,THAMES WATER UTILITIES LIMITED,649.19,31/07/2015
Commercial,HB LAW,Legal and Court Fees,60027182,LONDON BOROUGH OF HARROW,"210,420.20",24/07/2015
Commercial,HB LAW,Legal Disbursements,60027179,LONDON BOROUGH OF HARROW,"210,420.20",24/07/2015
Commercial,HB LAW,Legal Disbursements,60027188,LONDON BOROUGH OF HARROW,"210,420.20",24/07/2015
Commercial,HB LAW,Legal Disbursements,60027224,LONDON BOROUGH OF HARROW,"77,677.45",24/07/2015
Commercial,HB LAW,Legal Disbursements,60027230,LONDON BOROUGH OF HARROW,"127,240.07",24/07/2015
Commercial,HB LAW,Legal Disbursements,60027238,LONDON BOROUGH OF HARROW,"210,420.20",24/07/2015
Commercial,HRA,Consultants Fees,60024603,COPPING JOYCE SURVEYORS LIMITED,"1,500.00",03/07/2015
Commercial,HRA,Consultants Fees,60026233,COPPING JOYCE SURVEYORS LIMITED,450,14/07/2015
Commercial,HRA,Consultants Fees,60026282,COPPING JOYCE SURVEYORS LIMITED,"1,500.00",14/07/2015
Commercial,HRA,Consultants Fees,60027219,P P C R ASSOCIATES LTD,"1,484.74",28/07/2015
Commercial,HRA,Consultants Fees,60022498,PRIORITY ESTATES PROJECT LTD,"1,676.40",16/07/2015
Commercial,HRA,Consultants Fees,60024123,PRIORITY ESTATES PROJECT LTD,"1,536.70",09/07/2015
Commercial,HRA,Consultants Fees,60024128,PRIORITY ESTATES PROJECT LTD,"2,200.27",09/07/2015
Commercial,HRA,Consultants Fees,60025477,THE BARNETGROUP LIMITED,"4,900.00",06/07/2015
Commercial,HRA,Consultants Fees,60026974,THE BARNETGROUP LIMITED,"9,800.00",22/07/2015
Commercial,HRA,Other Transfer Payments,20021662,REDACTED - PERSONAL DATA,"2,450.00",03/07/2015
Commercial,HRA,Private Contractors - Third Pa,20021759,GENESIS HOUSING ASSOCIATION LIMITED,"3,000.00",08/07/2015
Commercial,HRA,Venue Hire,60027891,CHILD'S HILL BAPTIST CHURCH,30,31/07/2015
Commercial,HRA,Water Services,10012565,THAMES WATER UTILITIES LIMITED,"30,857.69",23/07/2015
Commercial,HRA,Water Services,10012566,THAMES WATER UTILITIES LIMITED,"23,371.60",23/07/2015
Commercial,HRA,Water Services,10012567,THAMES WATER UTILITIES LIMITED,"243,576.68",23/07/2015
Commercial,HRA,Water Services,10012568,THAMES WATER UTILITIES LIMITED,800.86,23/07/2015
Commercial,Parking & Infrastructure,Consultants Fees,60027176,BRITISH PARKING ASSOCIATION,550,23/07/2015
Commercial,Parking & Infrastructure,Electricity,60026037,BARNET LIGHTING SERVICES LTD,"382,837.64",14/07/2015
Commercial,Parking & Infrastructure,Electricity,60024339,INST OF LIGHTING PROFESSIONALS,45,15/07/2015
Commercial,Parking & Infrastructure,Equipment and Materials Purcha,60026983,AMARI PLASTICS LTD,106.35,27/07/2015
Commercial,Parking & Infrastructure,Equipment and Materials Purcha,60026177,ANGEL SPRINGS LTD,67.5,29/07/2015
Commercial,Parking & Infrastructure,Equipment and Materials Purcha,60027268,ANGEL SPRINGS LTD,32,24/07/2015
Commercial,Parking & Infrastructure,Equipment and Materials Purcha,60026141,ASD METAL SERVICES,333.6,15/07/2015
Commercial,Parking & Infrastructure,Equipment and Materials Purcha,60026162,ASD METAL SERVICES,"1,449.00",13/07/2015
Commercial,Parking & Infrastructure,Equipment and Materials Purcha,60026250,ASD METAL SERVICES,188.37,14/07/2015
Commercial,Parking & Infrastructure,Equipment and Materials Purcha,60024370,COBURN SERVICES LTD,"1,113.00",07/07/2015
Commercial,Parking & Infrastructure,Equipment and Materials Purcha,60026047,COBURN SERVICES LTD,"1,113.00",24/07/2015
Commercial,Parking & Infrastructure,Equipment and Materials Purcha,60026198,COBURN SERVICES LTD,886.8,21/07/2015
Commercial,Parking & Infrastructure,Equipment and Materials Purcha,60025148,COLAS LTD,"1,809.50",17/07/2015
Commercial,Parking & Infrastructure,Equipment and Materials Purcha,60027317,COLAS LTD,612,24/07/2015
Commercial,Parking & Infrastructure,Equipment and Materials Purcha,60025255,FABRIKAT (NOTTINGHAM) LIMITED,845.55,24/07/2015
Commercial,Parking & Infrastructure,Equipment and Materials Purcha,60023863,GREENHAM TRADING LIMITED,586.84,07/07/2015
Commercial,Parking & Infrastructure,Equipment and Materials Purcha,60025104,GREENHAM TRADING LIMITED,50.7,22/07/2015
Commercial,Parking & Infrastructure,Equipment and Materials Purcha,60025170,GREENHAM TRADING LIMITED,555.32,24/07/2015
Commercial,Parking & Infrastructure,Equipment and Materials Purcha,60025224,GREENHAM TRADING LIMITED,12.7,24/07/2015
Commercial,Parking & Infrastructure,Equipment and Materials Purcha,60024504,LAFARGE TARMAC TRADING LIMITED,109.7,03/07/2015
Commercial,Parking & Infrastructure,Equipment and Materials Purcha,60024578,LAFARGE TARMAC TRADING LIMITED,91.42,03/07/2015
Commercial,Parking & Infrastructure,Equipment and Materials Purcha,60024594,LAFARGE TARMAC TRADING LIMITED,109.7,03/07/2015
Commercial,Parking & Infrastructure,Equipment and Materials Purcha,60024602,LAFARGE TARMAC TRADING LIMITED,115.19,07/07/2015
Commercial,Parking & Infrastructure,Equipment and Materials Purcha,60025129,LAFARGE TARMAC TRADING LIMITED,93.25,07/07/2015
Commercial,Parking & Infrastructure,Equipment and Materials Purcha,60025347,LAFARGE TARMAC TRADING LIMITED,5.17,10/07/2015
Commercial,Parking & Infrastructure,Equipment and Materials Purcha,60025349,LAFARGE TARMAC TRADING LIMITED,122.5,10/07/2015
Commercial,Parking & Infrastructure,Equipment and Materials Purcha,60025385,LAFARGE TARMAC TRADING LIMITED,91.42,10/07/2015
Commercial,Parking & Infrastructure,Equipment and Materials Purcha,60025914,LAFARGE TARMAC TRADING LIMITED,257.81,17/07/2015
Commercial,Parking & Infrastructure,Equipment and Materials Purcha,60025938,LAFARGE TARMAC TRADING LIMITED,96.91,17/07/2015
Commercial,Parking & Infrastructure,Equipment and Materials Purcha,60026137,LAFARGE TARMAC TRADING LIMITED,124.33,24/07/2015
Commercial,Parking & Infrastructure,Equipment and Materials Purcha,60026254,LAFARGE TARMAC TRADING LIMITED,230.38,27/07/2015
Commercial,Parking & Infrastructure,Equipment and Materials Purcha,60026264,LAFARGE TARMAC TRADING LIMITED,142.62,24/07/2015
Commercial,Parking & Infrastructure,Equipment and Materials Purcha,60026280,LAFARGE TARMAC TRADING LIMITED,117.02,29/07/2015
Commercial,Parking & Infrastructure,Equipment and Materials Purcha,60027139,LAFARGE TARMAC TRADING LIMITED,95.08,31/07/2015
Commercial,Parking & Infrastructure,Equipment and Materials Purcha,60027312,LAFARGE TARMAC TRADING LIMITED,95.08,31/07/2015
Commercial,Parking & Infrastructure,Equipment and Materials Purcha,60024379,RENNICK UK LTD,378.4,03/07/2015
Commercial,Parking & Infrastructure,Equipment and Materials Purcha,60024445,RENNICK UK LTD,293.36,09/07/2015
Commercial,Parking & Infrastructure,Equipment and Materials Purcha,60025985,RENNICK UK LTD,146.68,09/07/2015
Commercial,Parking & Infrastructure,Equipment and Materials Purcha,60023823,SPANDEX LIMITED,117.7,03/07/2015
Commercial,Parking & Infrastructure,Equipment and Materials Purcha,60025877,WM SMITH & SONS LIMITED,265.52,09/07/2015
Commercial,Parking & Infrastructure,Equipment and Materials Purcha,60027658,WM SMITH & SONS LIMITED,356.87,28/07/2015
Commercial,Parking & Infrastructure,Miscellaneous Expenses,60027365,PARKEON LIMITED,"2,315.52",30/07/2015
Commercial,Parking & Infrastructure,Other Services,60023377,LONDON COUNCILS,"7,826.00",01/07/2015
Commercial,Parking & Infrastructure,Other Services,60026191,LONDON COUNCILS,"9,870.00",16/07/2015
Commercial,Parking & Infrastructure,Other Services,60027400,LONDON COUNCILS,267.24,29/07/2015
Commercial,Parking & Infrastructure,Other Services,60026990,NSL LTD,669.9,27/07/2015
Commercial,Parking & Infrastructure,Other Services,60024712,REDCORN LTD,95,07/07/2015
Commercial,Parking & Infrastructure,Parking Permit Fees,20022374,SIGNET FINANCIAL SERVICES,111.33,28/07/2015
Commercial,Parking & Infrastructure,Professional Services,10012551,NSL LTD,"52,346.78",17/07/2015
Commercial,Parking & Infrastructure,Professional Services,60026927,NSL LTD,"218,032.31",22/07/2015
Commercial,Parking & Infrastructure,Professional Services,60027013,NSL LTD,"56,288.65",22/07/2015
Commercial,Parking & Infrastructure,Professional Services,60027926,NSL LTD,109.5,31/07/2015
Commercial,Parking & Infrastructure,Software Licences & Support,60026953,NSL LTD,"4,567.38",27/07/2015
Commercial,Parking & Infrastructure,Software Licences & Support,60026980,NSL LTD,"32,317.37",21/07/2015
Commercial,Parking & Infrastructure,Ttl IT & Comms,60027127,VODAFONE LTD,10,23/07/2015
Commercial,Regional Enterprise,Advertising,10012525,TMP (UK) LTD,285.19,09/07/2015
Commercial,Regional Enterprise,Advertising,60025204,TMP (UK) LTD,207.77,01/07/2015
Commercial,Regional Enterprise,Advertising,60025228,TMP (UK) LTD,375.54,01/07/2015
Commercial,Regional Enterprise,Advertising,60025294,TMP (UK) LTD,32.08,02/07/2015
Commercial,Regional Enterprise,Advertising,60025363,TMP (UK) LTD,32.08,02/07/2015
Commercial,Regional Enterprise,Advertising,60025879,TMP (UK) LTD,35.64,10/07/2015
Commercial,Regional Enterprise,Advertising,60025920,TMP (UK) LTD,119.2,10/07/2015
Commercial,Regional Enterprise,Advertising,60025927,TMP (UK) LTD,115.64,10/07/2015
Commercial,Regional Enterprise,Advertising,60025995,TMP (UK) LTD,39.2,10/07/2015
Commercial,Regional Enterprise,Advertising,60026334,TMP (UK) LTD,144.16,14/07/2015
Commercial,Regional Enterprise,Advertising,60026367,TMP (UK) LTD,112.08,15/07/2015
Commercial,Regional Enterprise,Advertising,60026380,TMP (UK) LTD,32.08,15/07/2015
Commercial,Regional Enterprise,Advertising,60027454,TMP (UK) LTD,250.54,28/07/2015
Commercial,Regional Enterprise,Advertising,60027463,TMP (UK) LTD,371.97,28/07/2015
Commercial,Regional Enterprise,Consultants Fees,60025580,EVERSHEDS LLP,"30,750.00",06/07/2015
Commercial,Regional Enterprise,Consultants Fees,60024956,SAPIENS CONSULTANCY,"4,050.00",21/07/2015
Commercial,Regional Enterprise,Contract Cleaning,60026116,CHURCHILL CONTRACT SERVICES,475.72,29/07/2015
Commercial,Regional Enterprise,Grant Payments,20021701,AMWELL CONSTRUCTION LTD,172.8,06/07/2015
Commercial,Regional Enterprise,Grant Payments,20021665,CAPITAL  LOCKSMITHS,360,03/07/2015
Commercial,Regional Enterprise,Grant Payments,20021667,CAPITAL  LOCKSMITHS,352.8,03/07/2015
Commercial,Regional Enterprise,Grant Payments,20021904,CAPITAL  LOCKSMITHS,216,13/07/2015
Commercial,Regional Enterprise,Grant Payments,20021905,CAPITAL  LOCKSMITHS,148.8,13/07/2015
Commercial,Regional Enterprise,Grant Payments,20022350,CAPITAL  LOCKSMITHS,144,31/07/2015
Commercial,Regional Enterprise,Grant Payments,20022351,CAPITAL  LOCKSMITHS,162.6,27/07/2015
Commercial,Regional Enterprise,Grant Payments,20022352,CAPITAL  LOCKSMITHS,171.96,27/07/2015
Commercial,Regional Enterprise,Grant Payments,20022353,CAPITAL  LOCKSMITHS,360,27/07/2015
Commercial,Regional Enterprise,Grant Payments,20022354,CAPITAL  LOCKSMITHS,219.6,27/07/2015
Commercial,Regional Enterprise,Grant Payments,20022416,CAPITAL  LOCKSMITHS,253.8,29/07/2015
Commercial,Regional Enterprise,Grant Payments,20021906,REDACTED - PERSONAL DATA,"5,400.00",13/07/2015
Commercial,Regional Enterprise,Grant Payments,20022347,REDACTED - PERSONAL DATA,360,24/07/2015
Commercial,Regional Enterprise,Grant Payments,20022385,REDACTED - PERSONAL DATA,"1,734.00",29/07/2015
Commercial,Regional Enterprise,Grant Payments,20021900,SOUTH HERTFORDSHIRE,"4,506.00",13/07/2015
Commercial,Regional Enterprise,Legal and Court Fees,20021624,BEVAN BRITTAN LLP,"144,939.87",01/07/2015
Commercial,Regional Enterprise,Legal and Court Fees,60027204,BNP PARIBUS REAL ESTATE,"5,980.00",23/07/2015
Commercial,Regional Enterprise,Other Establishments - Third P,20021903,TFL,"573,030.41",13/07/2015
Commercial,Regional Enterprise,Other Services,60026327,AFFINITY WATER LIMITED,4.84,21/07/2015
Commercial,Regional Enterprise,Other Services,60027698,AFFINITY WATER LIMITED,23.17,31/07/2015
Commercial,Regional Enterprise,Other Services,60027701,AFFINITY WATER LIMITED,65.47,29/07/2015
Commercial,Regional Enterprise,Other Services,60023760,CONWAY AECOM LTD,"47,000.00",07/07/2015
Commercial,Regional Enterprise,Other Services,60024024,CONWAY AECOM LTD,"5,240.28",07/07/2015
Commercial,Regional Enterprise,Other Services,60024238,CONWAY AECOM LTD,"60,969.89",07/07/2015
Commercial,Regional Enterprise,Other Services,60026296,CONWAY AECOM LTD,"6,995.71",29/07/2015
Commercial,Regional Enterprise,Other Services,60026300,CONWAY AECOM LTD,"3,657.97",29/07/2015
Commercial,Regional Enterprise,Other Services,60026397,CONWAY AECOM LTD,"9,234.95",14/07/2015
Commercial,Regional Enterprise,Other Services,60027453,CONWAY AECOM LTD,"9,929.32",31/07/2015
Commercial,Regional Enterprise,Other Services,60008079,EUROVIA INFRASTRUCTURE LTD,603.61,22/07/2015
Commercial,Regional Enterprise,Other Services,60025245,KENT COUNTY COUNCIL (KCS),43.33,06/07/2015
Commercial,Regional Enterprise,Other Services,60026331,THAMES WATER UTILITIES LIMITED,108.7,16/07/2015
Commercial,Regional Enterprise,Other Services,60025291,VOLKER HIGHWAYS CROWLEY LIMITED,"45,191.76",09/07/2015
Commercial,Regional Enterprise,Professional Services,60024986,RE (REGIONAL ENTERPRISE) LIMITED,"2,000.00",10/07/2015
Commercial,The Barnet Group,Private Contractors - Third Pa,60027198,THE BARNETGROUP LIMITED,"246,179.64",27/07/2015
Commercial,The Barnet Group,Private Contractors - Third Pa,60027234,THE BARNETGROUP LIMITED,"737,506.31",24/07/2015
Commercial,The Barnet Group,Private Contractors - Third Pa,60027333,THE BARNETGROUP LIMITED,"281,461.58",27/07/2015
Commercial,The Barnet Group,Private Contractors - Third Pa,60027535,THE BARNETGROUP LIMITED,"1,428,610.66",31/07/2015
Commercial,The Barnet Group,Private Contractors - Third Pa,60027659,THE BARNETGROUP LIMITED,"1,164,332.33",31/07/2015
Commissioning,Commissioning,Advertising,60022050,TMP (UK) LTD,"2,520.00",30/07/2015
Commissioning,Commissioning,Agency/Interim Hays,30083113,COMENSURA LIMITED,"-4,545.97",03/07/2015
Commissioning,Commissioning,Agency/Interim Hays,10012579,CONSULTCIH (T/A CIH CONSULTANCY),"12,959.60",30/07/2015
Commissioning,Commissioning,Building Repairs & Maintenance,60024624,HERTEL (UK) LTD,80,01/07/2015
Commissioning,Commissioning,Building Repairs & Maintenance,60024642,HERTEL (UK) LTD,195,01/07/2015
Commissioning,Commissioning,Building Repairs & Maintenance,60024694,HERTEL (UK) LTD,245,01/07/2015
Commissioning,Commissioning,Building Repairs & Maintenance,60024758,HERTEL (UK) LTD,130,01/07/2015
Commissioning,Commissioning,Building Repairs & Maintenance,60025724,OAKRAY LIMITED,56,29/07/2015
Commissioning,Commissioning,Building Repairs & Maintenance,60025727,OAKRAY LIMITED,72,29/07/2015
Commissioning,Commissioning,Building Repairs & Maintenance,60025732,OAKRAY LIMITED,64,29/07/2015
Commissioning,Commissioning,Building Repairs & Maintenance,60025734,OAKRAY LIMITED,64,29/07/2015
Commissioning,Commissioning,Building Repairs & Maintenance,60025735,OAKRAY LIMITED,64,29/07/2015
Commissioning,Commissioning,Building Repairs & Maintenance,60025737,OAKRAY LIMITED,56,29/07/2015
Commissioning,Commissioning,Building Repairs & Maintenance,60025751,OAKRAY LIMITED,254.86,29/07/2015
Commissioning,Commissioning,Building Repairs & Maintenance,60025771,OAKRAY LIMITED,200.14,29/07/2015
Commissioning,Commissioning,Building Repairs & Maintenance,60025783,OAKRAY LIMITED,80,29/07/2015
Commissioning,Commissioning,Building Repairs & Maintenance,60025792,OAKRAY LIMITED,64,29/07/2015
Commissioning,Commissioning,Building Repairs & Maintenance,60025796,OAKRAY LIMITED,64,29/07/2015
Commissioning,Commissioning,Building Repairs & Maintenance,60025801,OAKRAY LIMITED,786.88,29/07/2015
Commissioning,Commissioning,Building Repairs & Maintenance,60025807,OAKRAY LIMITED,56,29/07/2015
Commissioning,Commissioning,Building Repairs & Maintenance,60025827,OAKRAY LIMITED,80,29/07/2015
Commissioning,Commissioning,Building Repairs & Maintenance,60025845,OAKRAY LIMITED,305.3,29/07/2015
Commissioning,Commissioning,Building Repairs & Maintenance,60022488,RGE SERVICES,"1,446.48",08/07/2015
Commissioning,Commissioning,Building Repairs & Maintenance,60023466,RGE SERVICES,192.07,07/07/2015
Commissioning,Commissioning,Building Repairs & Maintenance,60025179,RGE SERVICES,36.57,27/07/2015
Commissioning,Commissioning,Building Repairs & Maintenance,60025252,RGE SERVICES,27.53,27/07/2015
Commissioning,Commissioning,Building Repairs & Maintenance,60024576,S W BRUCE & CO LTD,345,17/07/2015
Commissioning,Commissioning,Building Repairs & Maintenance,60025238,TANN SYNCHRONOME LTD,853.22,07/07/2015
Commissioning,Commissioning,Capital Construction and Works,60015548,RGE SERVICES,446,03/07/2015
Commissioning,Commissioning,Consultants Fees,60026366,BARNET & DISTRICT ATHLETIC CLUB,50,15/07/2015
Commissioning,Commissioning,Consultants Fees,60026412,BARNET & DISTRICT ATHLETIC CLUB,50,15/07/2015
Commissioning,Commissioning,Consultants Fees,60025982,CIPFA BUSINESS LIMITED,"1,470.00",15/07/2015
Commissioning,Commissioning,Consultants Fees,10012569,HYDRO CLEANSING LTD,"2,290.16",24/07/2015
Commissioning,Commissioning,Employee Expenses,60025348,TMP (UK) LTD,"13,150.00",02/07/2015
Commissioning,Commissioning,Equipment and Materials Purcha,60026275,OCS GROUP UK LIMITED,"46,304.00",29/07/2015
Commissioning,Commissioning,Equipment and Materials Purcha,60026283,OCS GROUP UK LIMITED,"46,304.00",14/07/2015
Commissioning,Commissioning,Equipment and Materials Purcha,20021902,REDACTED - PERSONAL DATA,75,13/07/2015
Commissioning,Commissioning,Equipment and Materials Purcha,60027248,SHAYLOR GROUP PLC,"59,877.74",29/07/2015
Commissioning,Commissioning,Equipment and Materials Purcha,60027347,SHAYLOR GROUP PLC,"334,172.67",29/07/2015
Commissioning,Commissioning,Equipment and Materials Purcha,60020372,THE BARNETGROUP LIMITED,"100,000.00",06/07/2015
Commissioning,Commissioning,Equipment and Materials Purcha,60020413,THE BARNETGROUP LIMITED,"-100,000.00",06/07/2015
Commissioning,Commissioning,Equipment and Materials Purcha,60025518,WINDOW FLOWERS LTD,"8,000.00",06/07/2015
Commissioning,Commissioning,Equipment and Materials Purcha,60025704,WINTERS HAULAGE LTD,719.9,07/07/2015
Commissioning,Commissioning,General Office Expenses,40000904,OFFICE DEPOT UK LTD,26.2,23/07/2015
Commissioning,Commissioning,General Office Expenses,40000938,OFFICE DEPOT UK LTD,3.4,29/07/2015
Commissioning,Commissioning,Grant Payments,20021935,ART REACH BARNET LTD,"1,950.00",14/07/2015
Commissioning,Commissioning,Grant Payments,60026087,COMMUNITY BARNET,"8,750.00",13/07/2015
Commissioning,Commissioning,Grant Payments,20022116,FRIERN BARNET COMMUNITY LIBRARY,"5,000.00",20/07/2015
Commissioning,Commissioning,Health authorities - Third Par,60015989,NHS BARNET CCG,"8,763.75",07/07/2015
Commissioning,Commissioning,Health authorities - Third Par,60016045,NHS BARNET CCG,"8,763.75",03/07/2015
Commissioning,Commissioning,Health authorities - Third Par,60027214,NHS BARNET CCG,"6,956.00",24/07/2015
Commissioning,Commissioning,It Strategy Pep Recharge,60024291,GENERAL DYNAMICS INFORMATION TECHNOLOGY,"1,125.00",09/07/2015
Commissioning,Commissioning,It Strategy Pep Recharge,60024612,GENERAL DYNAMICS INFORMATION TECHNOLOGY,"6,249.66",22/07/2015
Commissioning,Commissioning,Other Agencies - Third Party P,20021125,FAMILY FUND TRADING LTD,-57.75,20/07/2015
Commissioning,Commissioning,Other Agencies - Third Party P,60024798,FAMILY FUND TRADING LTD,"1,705.00",20/07/2015
Commissioning,Commissioning,Other Agencies - Third Party P,60025373,FAMILY FUND TRADING LTD,50,20/07/2015
Commissioning,Commissioning,Other Agencies - Third Party P,60025966,FAMILY FUND TRADING LTD,765.84,21/07/2015
Commissioning,Commissioning,Other Agencies - Third Party P,60026436,FAMILY FUND TRADING LTD,173,21/07/2015
Commissioning,Commissioning,Other Agencies - Third Party P,60026505,FAMILY FUND TRADING LTD,-825.47,22/07/2015
Commissioning,Commissioning,Other Agencies - Third Party P,60026558,FAMILY FUND TRADING LTD,"3,230.00",22/07/2015
Commissioning,Commissioning,Other Agencies - Third Party P,60027418,FAMILY FUND TRADING LTD,"2,490.00",29/07/2015
Commissioning,Commissioning,Other Establishments - Third P,60016443,HERTFORDSHIRE PARTNERSHIP,"110,288.00",30/07/2015
Commissioning,Commissioning,Other Services,60027097,BARNET & SOUTHGATE COLLEGE,558,23/07/2015
Commissioning,Commissioning,Other Services,60027135,BARNET COMMUNITY PROJECTS,905,27/07/2015
Commissioning,Commissioning,Other Services,60025930,BLUE 9 SECURITY LIMITED,195.75,10/07/2015
Commissioning,Commissioning,Other Services,60026355,CONWAY AECOM LTD,"7,046.11",20/07/2015
Commissioning,Commissioning,Other Services,60025678,IMPOWER CONSULTING LIMITED,"18,796.69",29/07/2015
Commissioning,Commissioning,Other Services,20021575,REDACTED - PERSONAL DATA,2.67,01/07/2015
Commissioning,Commissioning,Other Services,20021605,REDACTED - PERSONAL DATA,34.4,01/07/2015
Commissioning,Commissioning,Other Services,20021745,REDACTED - PERSONAL DATA,199.87,07/07/2015
Commissioning,Commissioning,Other Services,20021784,REDACTED - PERSONAL DATA,200.4,09/07/2015
Commissioning,Commissioning,Other Services,20022236,REDACTED - PERSONAL DATA,4.14,23/07/2015
Commissioning,Commissioning,Other Services,20022237,REDACTED - PERSONAL DATA,2.48,23/07/2015
Commissioning,Commissioning,Other Services,20022274,REDACTED - PERSONAL DATA,15,24/07/2015
Commissioning,Commissioning,Other Services,20022275,REDACTED - PERSONAL DATA,11.25,24/07/2015
Commissioning,Commissioning,Other Services,20022432,REDACTED - PERSONAL DATA,199.87,31/07/2015
Commissioning,Commissioning,Other Services,20022434,REDACTED - PERSONAL DATA,186.09,30/07/2015
Commissioning,Commissioning,Other Services,60023883,REDACTED - PERSONAL DATA,275,10/07/2015
Commissioning,Commissioning,Other Services,60024674,REDACTED - PERSONAL DATA,150,02/07/2015
Commissioning,Commissioning,Other Services,60027491,REDACTED - PERSONAL DATA,780,29/07/2015
Commissioning,Commissioning,Private Contractors - Third Pa,60024259,GREENWICH LEISURE LTD,"100,273.55",07/07/2015
Commissioning,Commissioning,Private Contractors - Third Pa,60024268,GREENWICH LEISURE LTD,"100,273.55",07/07/2015
Commissioning,Commissioning,Private Contractors - Third Pa,60024347,GREENWICH LEISURE LTD,"100,273.55",07/07/2015
Commissioning,Commissioning,Private Contractors - Third Pa,60025872,GREENWICH LEISURE LTD,"100,273.55",15/07/2015
Commissioning,Commissioning,Professional Services,60027261,MOTOR INSURER'S BUREAU,166.67,24/07/2015
Commissioning,Commissioning,Professional Services,60025080,THE YOUNG FOUNDATION,"19,990.00",01/07/2015
Commissioning,Commissioning,Publications,60026900,REDACTED - PERSONAL DATA,150,21/07/2015
Commissioning,Commissioning,Publications,60026917,REDACTED - PERSONAL DATA,250,21/07/2015
Commissioning,Commissioning,Software Licences & Support,60025446,TXTTOOLS - BLACKBOARD UK LTD,"3,000.00",16/07/2015
Commissioning,Commissioning,Stationery,40000908,OFFICE DEPOT UK LTD,0.16,23/07/2015
Commissioning,Commissioning,Subscriptions,60026698,ASSOCIATION OF DIRECTORS OF ADULT,"1,700.00",17/07/2015
Commissioning,Commissioning,Subscriptions,60026003,PDP TRAINING,275,13/07/2015
Commissioning,Commissioning,Training,60021217,PREMIER PEOPLE SOLUTIONS LTD,174.85,01/07/2015
Commissioning,Commissioning,Training,60024243,THE ASSOCIATION OF DIRECTORS OF,780,13/07/2015
Commissioning,Commissioning,Ttl IT & Comms,10012505,BRITISH TELECOM PLC,25.26,02/07/2015
Commissioning,Commissioning,Ttl IT & Comms,60026030,BRITISH TELECOM PLC,25.26,10/07/2015
Commissioning,Commissioning,Venue Hire,60024215,ROYAL AIR FORCE MUSEUM,100,03/07/2015
Corporate Accounting,Corporate Accounting,Government departments - Third,20022292,DEPARTMENT FOR COMMUNITIES AND,"447,555.35",27/07/2015
Corporate Accounting,Corporate Accounting,Miscellaneous Expenses,20022291,REDACTED - PERSONAL DATA,195,24/07/2015
Corporate Accounting,Corporate Accounting,Other Local Authorities - Thir,EBX0068960,GREATER LONDON AUTHORITY,"1,847,629.00",10/07/2015
Corporate Accounting,Corporate Accounting,Other Local Authorities - Thir,EBX0070617,GREATER LONDON AUTHORITY,"233,647.00",22/07/2015
Corporate Accounting,Corporate Accounting,Other Local Authorities - Thir,EBX0071766,GREATER LONDON AUTHORITY,"4,004,237.40",27/07/2015
Corporate Accounting,Corporate Accounting,Other Transfer Payments to Soc,60025168,CITIBANK NA LONDON,195.25,02/07/2015
Corporate Accounting,Corporate Accounting,Other Transfer Payments to Soc,60025178,CITIBANK NA LONDON,292.5,02/07/2015
Corporate Accounting,Corporate Accounting,Other Transfer Payments to Soc,60025202,CITIBANK NA LONDON,808.47,02/07/2015
Corporate Accounting,Corporate Accounting,Other Transfer Payments to Soc,60025214,CITIBANK NA LONDON,107.9,02/07/2015
Corporate Accounting,Corporate Accounting,Other Transfer Payments to Soc,60025525,CITIBANK NA LONDON,425.8,07/07/2015
Corporate Accounting,Corporate Accounting,Other Transfer Payments to Soc,60025546,CITIBANK NA LONDON,140,07/07/2015
Corporate Accounting,Corporate Accounting,Other Transfer Payments to Soc,60025551,CITIBANK NA LONDON,253.05,07/07/2015
Corporate Accounting,Corporate Accounting,Other Transfer Payments to Soc,60025568,CITIBANK NA LONDON,285.5,07/07/2015
Corporate Accounting,Corporate Accounting,Other Transfer Payments to Soc,60025581,CITIBANK NA LONDON,141.17,07/07/2015
Corporate Accounting,Corporate Accounting,Other Transfer Payments to Soc,60025603,CITIBANK NA LONDON,50,07/07/2015
Corporate Accounting,Corporate Accounting,Other Transfer Payments to Soc,60026062,CITIBANK NA LONDON,224,13/07/2015
Corporate Accounting,Corporate Accounting,Other Transfer Payments to Soc,60026107,CITIBANK NA LONDON,"1,656.13",13/07/2015
Corporate Accounting,Corporate Accounting,Other Transfer Payments to Soc,60026174,CITIBANK NA LONDON,606.6,13/07/2015
Corporate Accounting,Corporate Accounting,Other Transfer Payments to Soc,60026178,CITIBANK NA LONDON,233.13,13/07/2015
Corporate Accounting,Corporate Accounting,Other Transfer Payments to Soc,60026192,CITIBANK NA LONDON,559.21,13/07/2015
Corporate Accounting,Corporate Accounting,Other Transfer Payments to Soc,60026213,CITIBANK NA LONDON,"2,491.72",13/07/2015
Corporate Accounting,Corporate Accounting,Other Transfer Payments to Soc,60026223,CITIBANK NA LONDON,"1,760.65",13/07/2015
Corporate Accounting,Corporate Accounting,Other Transfer Payments to Soc,60026423,CITIBANK NA LONDON,57.9,16/07/2015
Corporate Accounting,Corporate Accounting,Other Transfer Payments to Soc,60026443,CITIBANK NA LONDON,377.9,16/07/2015
Corporate Accounting,Corporate Accounting,Other Transfer Payments to Soc,60026445,CITIBANK NA LONDON,107.95,20/07/2015
Corporate Accounting,Corporate Accounting,Other Transfer Payments to Soc,60026515,CITIBANK NA LONDON,109.9,16/07/2015
Corporate Accounting,Corporate Accounting,Other Transfer Payments to Soc,60026929,CITIBANK NA LONDON,200,22/07/2015
Corporate Accounting,Corporate Accounting,Other Transfer Payments to Soc,60026930,CITIBANK NA LONDON,57.9,22/07/2015
Corporate Accounting,Corporate Accounting,Other Transfer Payments to Soc,60026936,CITIBANK NA LONDON,957.92,22/07/2015
Corporate Accounting,Corporate Accounting,Other Transfer Payments to Soc,60026956,CITIBANK NA LONDON,250,22/07/2015
Corporate Accounting,Corporate Accounting,Other Transfer Payments to Soc,60026960,CITIBANK NA LONDON,50,22/07/2015
Corporate Accounting,Corporate Accounting,Other Transfer Payments to Soc,60026981,CITIBANK NA LONDON,871.78,22/07/2015
Corporate Accounting,Corporate Accounting,Other Transfer Payments to Soc,60026992,CITIBANK NA LONDON,195.06,22/07/2015
Corporate Accounting,Corporate Accounting,Other Transfer Payments to Soc,60027257,CITIBANK NA LONDON,253.3,27/07/2015
Corporate Accounting,Corporate Accounting,Other Transfer Payments to Soc,60027258,CITIBANK NA LONDON,20.2,27/07/2015
Corporate Accounting,Corporate Accounting,Other Transfer Payments to Soc,60027274,CITIBANK NA LONDON,122.9,27/07/2015
Corporate Accounting,Corporate Accounting,Other Transfer Payments to Soc,60027283,CITIBANK NA LONDON,156,27/07/2015
Corporate Accounting,Corporate Accounting,Other Transfer Payments to Soc,60027311,CITIBANK NA LONDON,200,27/07/2015
Corporate Accounting,Corporate Accounting,Other Transfer Payments to Soc,60027338,CITIBANK NA LONDON,150,27/07/2015
Corporate Accounting,Corporate Accounting,Other Transfer Payments to Soc,60027342,CITIBANK NA LONDON,348.8,27/07/2015
Delivery Units,Adults and Communities,Advertising,60024547,TMP (UK) LTD,940.5,16/07/2015
Delivery Units,Adults and Communities,Advertising,60026318,TMP (UK) LTD,"1,531.00",15/07/2015
Delivery Units,Adults and Communities,Advertising for staff,60021207,PREMIER PEOPLE SOLUTIONS LTD,550,01/07/2015
Delivery Units,Adults and Communities,Advertising for staff,60024515,PREMIER PEOPLE SOLUTIONS LTD,"1,800.00",17/07/2015
Delivery Units,Adults and Communities,Advertising for staff,60024868,PREMIER PEOPLE SOLUTIONS LTD,450,09/07/2015
Delivery Units,Adults and Communities,Advertising for staff,60025484,PREMIER PEOPLE SOLUTIONS LTD,"5,900.00",29/07/2015
Delivery Units,Adults and Communities,Cleaning and domestic material,40000934,OFFICE DEPOT UK LTD,65.28,29/07/2015
Delivery Units,Adults and Communities,Consultants Fees,60026004,KAZOU CONSULTANCY LTD,398.58,16/07/2015
Delivery Units,Adults and Communities,Consultants Fees,60026241,REDACTED - PERSONAL DATA,"6,460.60",31/07/2015
Delivery Units,Adults and Communities,Contract Cleaning,60018715,CHURCHILL CONTRACT SERVICES,381.08,28/07/2015
Delivery Units,Adults and Communities,Contract Cleaning,60026221,CHURCHILL CONTRACT SERVICES,367.88,29/07/2015
Delivery Units,Adults and Communities,Electricity,60026982,KENT COUNTY COUNCIL (KCS),379.47,22/07/2015
Delivery Units,Adults and Communities,Employee Expenses,60026018,GOLDSMITH CONSULTING & MEDIATION LTD,850,10/07/2015
Delivery Units,Adults and Communities,Equipment and Materials Purcha,10012533,MEDEQUIP ASSISTIVE TECHNOLOGY LTD,"216,313.00",13/07/2015
Delivery Units,Adults and Communities,Equipment and Materials Purcha,10012534,MEDEQUIP ASSISTIVE TECHNOLOGY LTD,"201,077.67",13/07/2015
Delivery Units,Adults and Communities,Equipment and Materials Purcha,60026065,OAKLEIGH PHARMACY,"1,535.41",17/07/2015
Delivery Units,Adults and Communities,Equipment and Materials Purcha,60025693,REDLAND HEALTHCARE LTD,"1,514.02",13/07/2015
Delivery Units,Adults and Communities,Food Costs,60024104,DAIRY CREST LIMITED,2.88,03/07/2015
Delivery Units,Adults and Communities,Food Costs,60024639,DAIRY CREST LIMITED,2.88,10/07/2015
Delivery Units,Adults and Communities,Food Costs,60025376,DAIRY CREST LIMITED,2.88,17/07/2015
Delivery Units,Adults and Communities,Food Costs,60026396,DAIRY CREST LIMITED,2.88,24/07/2015
Delivery Units,Adults and Communities,Food Costs,60026746,DAIRY CREST LIMITED,2.88,31/07/2015
Delivery Units,Adults and Communities,Furniture-Purchase-Repair,60027026,DOORWAY-MAINTENANCE CO.,480,28/07/2015
Delivery Units,Adults and Communities,Furniture-Purchase-Repair,60025527,NORTH LONDON LOCKSMITHS LTD,75,07/07/2015
Delivery Units,Adults and Communities,Furniture-Purchase-Repair,60025535,NORTH LONDON LOCKSMITHS LTD,65,07/07/2015
Delivery Units,Adults and Communities,Furniture-Purchase-Repair,60025544,NORTH LONDON LOCKSMITHS LTD,75,07/07/2015
Delivery Units,Adults and Communities,Furniture-Purchase-Repair,60025597,NORTH LONDON LOCKSMITHS LTD,75,07/07/2015
Delivery Units,Adults and Communities,Grant Payments,20021866,ECOLOGIC ENERGY,443.63,13/07/2015
Delivery Units,Adults and Communities,Health authorities - Third Par,60015999,NHS BARNET CCG,"22,695.30",03/07/2015
Delivery Units,Adults and Communities,Legal and Court Fees,20021894,REDACTED - PERSONAL DATA,"5,700.00",10/07/2015
Delivery Units,Adults and Communities,Legal and Court Fees,20021895,REDACTED - PERSONAL DATA,"6,930.00",10/07/2015
Delivery Units,Adults and Communities,Other Agencies - Third Party P,30082877,AARON COURT CARE HOME,"2,144.91",02/07/2015
Delivery Units,Adults and Communities,Other Agencies - Third Party P,30085112,AARON COURT CARE HOME,"2,216.41",22/07/2015
Delivery Units,Adults and Communities,Other Agencies - Third Party P,30082802,ABBEY RAVENSCROFT PARK NURSING HOME,"3,000.00",02/07/2015
Delivery Units,Adults and Communities,Other Agencies - Third Party P,30082803,ABBEY RAVENSCROFT PARK NURSING HOME,"2,485.71",02/07/2015
Delivery Units,Adults and Communities,Other Agencies - Third Party P,30082804,ABBEY RAVENSCROFT PARK NURSING HOME,"3,000.00",02/07/2015
Delivery Units,Adults and Communities,Other Agencies - Third Party P,30082805,ABBEY RAVENSCROFT PARK NURSING HOME,"2,487.77",02/07/2015
Delivery Units,Adults and Communities,Other Agencies - Third Party P,30082806,ABBEY RAVENSCROFT PARK NURSING HOME,"2,487.77",02/07/2015
Delivery Units,Adults and Communities,Other Agencies - Third Party P,30082807,ABBEY RAVENSCROFT PARK NURSING HOME,"2,487.77",02/07/2015
Delivery Units,Adults and Communities,Other Agencies - Third Party P,30082808,ABBEY RAVENSCROFT PARK NURSING HOME,"2,445.04",02/07/2015
Delivery Units,Adults and Communities,Other Agencies - Third Party P,30082809,ABBEY RAVENSCROFT PARK NURSING HOME,"-1,123.58",02/07/2015
Delivery Units,Adults and Communities,Other Agencies - Third Party P,30082810,ABBEY RAVENSCROFT PARK NURSING HOME,"2,487.77",02/07/2015
Delivery Units,Adults and Communities,Other Agencies - Third Party P,30082811,ABBEY RAVENSCROFT PARK NURSING HOME,"2,487.77",02/07/2015
Delivery Units,Adults and Communities,Other Agencies - Third Party P,30082812,ABBEY RAVENSCROFT PARK NURSING HOME,"2,487.77",02/07/2015
Delivery Units,Adults and Communities,Other Agencies - Third Party P,30082813,ABBEY RAVENSCROFT PARK NURSING HOME,"2,244.13",02/07/2015
Delivery Units,Adults and Communities,Other Agencies - Third Party P,30082814,ABBEY RAVENSCROFT PARK NURSING HOME,"2,571.43",02/07/2015
Delivery Units,Adults and Communities,Other Agencies - Third Party P,30082815,ABBEY RAVENSCROFT PARK NURSING HOME,"2,571.43",02/07/2015
Delivery Units,Adults and Communities,Other Agencies - Third Party P,30082816,ABBEY RAVENSCROFT PARK NURSING HOME,"2,487.77",02/07/2015
Delivery Units,Adults and Communities,Other Agencies - Third Party P,30082817,ABBEY RAVENSCROFT PARK NURSING HOME,"2,487.77",02/07/2015
Delivery Units,Adults and Communities,Other Agencies - Third Party P,30085063,ABBEY RAVENSCROFT PARK NURSING HOME,"2,570.70",22/07/2015
Delivery Units,Adults and Communities,Other Agencies - Third Party P,30085064,ABBEY RAVENSCROFT PARK NURSING HOME,"2,570.70",22/07/2015
Delivery Units,Adults and Communities,Other Agencies - Third Party P,30085065,ABBEY RAVENSCROFT PARK NURSING HOME,"2,657.14",22/07/2015
Delivery Units,Adults and Communities,Other Agencies - Third Party P,30085066,ABBEY RAVENSCROFT PARK NURSING HOME,"2,657.14",22/07/2015
Delivery Units,Adults and Communities,Other Agencies - Third Party P,30085067,ABBEY RAVENSCROFT PARK NURSING HOME,"2,318.93",22/07/2015
Delivery Units,Adults and Communities,Other Agencies - Third Party P,30085068,ABBEY RAVENSCROFT PARK NURSING HOME,"2,570.70",22/07/2015
Delivery Units,Adults and Communities,Other Agencies - Third Party P,30085069,ABBEY RAVENSCROFT PARK NURSING HOME,"2,570.70",22/07/2015
Delivery Units,Adults and Communities,Other Agencies - Third Party P,30085070,ABBEY RAVENSCROFT PARK NURSING HOME,"2,570.70",22/07/2015
Delivery Units,Adults and Communities,Other Agencies - Third Party P,30085071,ABBEY RAVENSCROFT PARK NURSING HOME,"2,570.70",22/07/2015
Delivery Units,Adults and Communities,Other Agencies - Third Party P,30085072,ABBEY RAVENSCROFT PARK NURSING HOME,"2,570.70",22/07/2015
Delivery Units,Adults and Communities,Other Agencies - Third Party P,30085073,ABBEY RAVENSCROFT PARK NURSING HOME,"2,570.70",22/07/2015
Delivery Units,Adults and Communities,Other Agencies - Third Party P,30085074,ABBEY RAVENSCROFT PARK NURSING HOME,"3,100.00",22/07/2015
Delivery Units,Adults and Communities,Other Agencies - Third Party P,30085075,ABBEY RAVENSCROFT PARK NURSING HOME,"2,568.57",22/07/2015
Delivery Units,Adults and Communities,Other Agencies - Third Party P,30084347,ABBEYFIELD WEST LONDON SOCIETY,715,17/07/2015
Delivery Units,Adults and Communities,Other Agencies - Third Party P,30084348,ABBEYFIELD WEST LONDON SOCIETY,"1,501.46",17/07/2015
Delivery Units,Adults and Communities,Other Agencies - Third Party P,30084116,ABOUT ME CARE & SUPPORT LTD,"1,365.84",16/07/2015
Delivery Units,Adults and Communities,Other Agencies - Third Party P,30083999,ACCEDO CARE LTD,"5,600.00",16/07/2015
Delivery Units,Adults and Communities,Other Agencies - Third Party P,30084241,ACCEDO CARE LTD,"4,760.00",17/07/2015
Delivery Units,Adults and Communities,Other Agencies - Third Party P,30086459,ACCEDO CARE LTD,"3,600.00",29/07/2015
Delivery Units,Adults and Communities,Other Agencies - Third Party P,30082071,ADVANTAGE HEALTHCARE GROUP LTD,52.65,17/07/2015
Delivery Units,Adults and Communities,Other Agencies - Third Party P,30082072,ADVANTAGE HEALTHCARE GROUP LTD,286.2,17/07/2015
Delivery Units,Adults and Communities,Other Agencies - Third Party P,30082650,ADVANTAGE HEALTHCARE GROUP LTD,792.93,22/07/2015
Delivery Units,Adults and Communities,Other Agencies - Third Party P,30083332,AGUDAS ISRAEL HOUSING ASSCTN LTD,"3,052.50",13/07/2015
Delivery Units,Adults and Communities,Other Agencies - Third Party P,30083333,AGUDAS ISRAEL HOUSING ASSCTN LTD,"4,071.43",13/07/2015
Delivery Units,Adults and Communities,Other Agencies - Third Party P,30083334,AGUDAS ISRAEL HOUSING ASSCTN LTD,"2,446.29",13/07/2015
Delivery Units,Adults and Communities,Other Agencies - Third Party P,30082698,ALL ABOUT CARE,"1,958.01",02/07/2015
Delivery Units,Adults and Communities,Other Agencies - Third Party P,30082699,ALL ABOUT CARE,-342.21,02/07/2015
Delivery Units,Adults and Communities,Other Agencies - Third Party P,30083328,ALL ABOUT CARE,-1.76,29/07/2015
Delivery Units,Adults and Communities,Other Agencies - Third Party P,30083329,ALL ABOUT CARE,-2.7,29/07/2015
Delivery Units,Adults and Communities,Other Agencies - Third Party P,30085821,ALL ABOUT CARE,"2,023.17",29/07/2015
Delivery Units,Adults and Communities,Other Agencies - Third Party P,30085822,ALL ABOUT CARE,-356.28,29/07/2015
Delivery Units,Adults and Communities,Other Agencies - Third Party P,30083706,ALLIED HEALTHCARE LTD,"4,473.87",13/07/2015
Delivery Units,Adults and Communities,Other Agencies - Third Party P,30083610,ANA HOMECARE LTD,119.92,13/07/2015
Delivery Units,Adults and Communities,Other Agencies - Third Party P,30083728,ANA HOMECARE LTD,329.86,14/07/2015
Delivery Units,Adults and Communities,Other Agencies - Third Party P,30083729,ANA HOMECARE LTD,"1,203.26",14/07/2015
Delivery Units,Adults and Communities,Other Agencies - Third Party P,30079654,ANCASTER COURT NURSING HOME,"-1,741.44",02/07/2015
Delivery Units,Adults and Communities,Other Agencies - Third Party P,30082838,ANCASTER COURT NURSING HOME,"2,487.77",02/07/2015
Delivery Units,Adults and Communities,Other Agencies - Third Party P,30082839,ANCASTER COURT NURSING HOME,"2,487.77",02/07/2015
Delivery Units,Adults and Communities,Other Agencies - Third Party P,30085101,ANCASTER COURT NURSING HOME,"2,570.70",22/07/2015
Delivery Units,Adults and Communities,Other Agencies - Third Party P,30084117,ANCHOR TRUST,"2,232.64",16/07/2015
Delivery Units,Adults and Communities,Other Agencies - Third Party P,20021936,APAD,150,14/07/2015
Delivery Units,Adults and Communities,Other Agencies - Third Party P,30085002,AREA 51 EDUCATION LTD,632,22/07/2015
Delivery Units,Adults and Communities,Other Agencies - Third Party P,30085003,AREA 51 EDUCATION LTD,"1,580.00",22/07/2015
Delivery Units,Adults and Communities,Other Agencies - Third Party P,30085004,AREA 51 EDUCATION LTD,948,22/07/2015
Delivery Units,Adults and Communities,Other Agencies - Third Party P,30082862,ASHFIELDS RESIDENTIAL CARE HOME,"2,340.04",02/07/2015
Delivery Units,Adults and Communities,Other Agencies - Third Party P,30082863,ASHFIELDS RESIDENTIAL CARE HOME,"2,340.04",02/07/2015
Delivery Units,Adults and Communities,Other Agencies - Third Party P,30082864,ASHFIELDS RESIDENTIAL CARE HOME,"2,144.91",02/07/2015
Delivery Units,Adults and Communities,Other Agencies - Third Party P,30082865,ASHFIELDS RESIDENTIAL CARE HOME,"2,340.04",02/07/2015
Delivery Units,Adults and Communities,Other Agencies - Third Party P,30082866,ASHFIELDS RESIDENTIAL CARE HOME,"2,340.04",02/07/2015
Delivery Units,Adults and Communities,Other Agencies - Third Party P,30083232,ASHFIELDS RESIDENTIAL CARE HOME,"2,340.04",06/07/2015
Delivery Units,Adults and Communities,Other Agencies - Third Party P,30083190,ASHGALE HOUSE,"4,577.40",06/07/2015
Delivery Units,Adults and Communities,Other Agencies - Third Party P,30083191,ASHGALE HOUSE,-391.8,06/07/2015
Delivery Units,Adults and Communities,Other Agencies - Third Party P,30085785,ASHGALE HOUSE,"4,729.98",24/07/2015
Delivery Units,Adults and Communities,Other Agencies - Third Party P,30085786,ASHGALE HOUSE,-405.48,24/07/2015
Delivery Units,Adults and Communities,Other Agencies - Third Party P,30082876,ASHTON LODGE CARE CENTRE,"2,487.77",02/07/2015
Delivery Units,Adults and Communities,Other Agencies - Third Party P,30083065,ASHTON LODGE CARE CENTRE,"2,409.43",02/07/2015
Delivery Units,Adults and Communities,Other Agencies - Third Party P,30083066,ASHTON LODGE CARE CENTRE,-344.79,02/07/2015
Delivery Units,Adults and Communities,Other Agencies - Third Party P,30085111,ASHTON LODGE CARE CENTRE,"2,570.70",22/07/2015
Delivery Units,Adults and Communities,Other Agencies - Third Party P,30085114,ASHTON LODGE CARE CENTRE,"2,367.07",22/07/2015
Delivery Units,Adults and Communities,Other Agencies - Third Party P,30085117,ASHTON LODGE CARE CENTRE,"2,570.70",22/07/2015
Delivery Units,Adults and Communities,Other Agencies - Third Party P,30085118,ASHTON LODGE CARE CENTRE,"2,418.04",22/07/2015
Delivery Units,Adults and Communities,Other Agencies - Third Party P,30085122,ASHTON LODGE CARE CENTRE,"2,489.74",22/07/2015
Delivery Units,Adults and Communities,Other Agencies - Third Party P,30085123,ASHTON LODGE CARE CENTRE,-356.28,22/07/2015
Delivery Units,Adults and Communities,Other Agencies - Third Party P,30085142,ASHTON LODGE CARE CENTRE,"2,320.53",22/07/2015
Delivery Units,Adults and Communities,Other Agencies - Third Party P,30085151,ASHTON LODGE CARE CENTRE,"2,318.93",22/07/2015
Delivery Units,Adults and Communities,Other Agencies - Third Party P,30085153,ASHTON LODGE CARE CENTRE,"2,571.43",22/07/2015
Delivery Units,Adults and Communities,Other Agencies - Third Party P,30085154,ASHTON LODGE CARE CENTRE,"2,318.93",22/07/2015
Delivery Units,Adults and Communities,Other Agencies - Third Party P,30085155,ASHTON LODGE CARE CENTRE,-757.95,22/07/2015
Delivery Units,Adults and Communities,Other Agencies - Third Party P,30085159,ASHTON LODGE CARE CENTRE,"2,418.04",22/07/2015
Delivery Units,Adults and Communities,Other Agencies - Third Party P,30085160,ASHTON LODGE CARE CENTRE,"2,320.52",22/07/2015
Delivery Units,Adults and Communities,Other Agencies - Third Party P,30085161,ASHTON LODGE CARE CENTRE,-587.49,22/07/2015
Delivery Units,Adults and Communities,Other Agencies - Third Party P,30085162,ASHTON LODGE CARE CENTRE,"2,502.14",22/07/2015
Delivery Units,Adults and Communities,Other Agencies - Third Party P,30085179,ASHTON LODGE CARE CENTRE,"2,418.04",22/07/2015
Delivery Units,Adults and Communities,Other Agencies - Third Party P,30085184,ASHTON LODGE CARE CENTRE,"2,318.93",22/07/2015
Delivery Units,Adults and Communities,Other Agencies - Third Party P,30085185,ASHTON LODGE CARE CENTRE,"2,418.04",22/07/2015
Delivery Units,Adults and Communities,Other Agencies - Third Party P,30085186,ASHTON LODGE CARE CENTRE,"2,570.70",22/07/2015
Delivery Units,Adults and Communities,Other Agencies - Third Party P,30086060,ASHTON LODGE CARE CENTRE,"2,290.71",27/07/2015
Delivery Units,Adults and Communities,Other Agencies - Third Party P,30086061,ASHTON LODGE CARE CENTRE,"2,487.77",27/07/2015
Delivery Units,Adults and Communities,Other Agencies - Third Party P,30086062,ASHTON LODGE CARE CENTRE,"2,340.04",27/07/2015
Delivery Units,Adults and Communities,Other Agencies - Third Party P,30086063,ASHTON LODGE CARE CENTRE,"2,245.67",27/07/2015
Delivery Units,Adults and Communities,Other Agencies - Third Party P,30086064,ASHTON LODGE CARE CENTRE,"2,244.13",27/07/2015
Delivery Units,Adults and Communities,Other Agencies - Third Party P,30086065,ASHTON LODGE CARE CENTRE,-733.5,27/07/2015
Delivery Units,Adults and Communities,Other Agencies - Third Party P,30086068,ASHTON LODGE CARE CENTRE,"2,340.04",27/07/2015
Delivery Units,Adults and Communities,Other Agencies - Third Party P,30086069,ASHTON LODGE CARE CENTRE,"2,245.67",27/07/2015
Delivery Units,Adults and Communities,Other Agencies - Third Party P,30086070,ASHTON LODGE CARE CENTRE,-568.54,27/07/2015
Delivery Units,Adults and Communities,Other Agencies - Third Party P,30086071,ASHTON LODGE CARE CENTRE,"2,421.43",27/07/2015
Delivery Units,Adults and Communities,Other Agencies - Third Party P,30086073,ASHTON LODGE CARE CENTRE,"2,340.04",27/07/2015
Delivery Units,Adults and Communities,Other Agencies - Third Party P,30086074,ASHTON LODGE CARE CENTRE,"2,244.13",27/07/2015
Delivery Units,Adults and Communities,Other Agencies - Third Party P,30086075,ASHTON LODGE CARE CENTRE,"2,340.04",27/07/2015
Delivery Units,Adults and Communities,Other Agencies - Third Party P,30086076,ASHTON LODGE CARE CENTRE,"3,219.55",27/07/2015
Delivery Units,Adults and Communities,Other Agencies - Third Party P,30086077,ASHTON LODGE CARE CENTRE,843.81,27/07/2015
Delivery Units,Adults and Communities,Other Agencies - Third Party P,30086661,ASHTON LODGE CARE CENTRE,"2,238.99",29/07/2015
Delivery Units,Adults and Communities,Other Agencies - Third Party P,30086902,ASHTON LODGE CARE CENTRE,"2,244.13",31/07/2015
Delivery Units,Adults and Communities,Other Agencies - Third Party P,30082891,ASPEN VILLAGES LTD,"2,144.91",02/07/2015
Delivery Units,Adults and Communities,Other Agencies - Third Party P,30082892,ASPEN VILLAGES LTD,"2,487.77",02/07/2015
Delivery Units,Adults and Communities,Other Agencies - Third Party P,30082893,ASPEN VILLAGES LTD,"3,214.29",02/07/2015
Delivery Units,Adults and Communities,Other Agencies - Third Party P,30082894,ASPEN VILLAGES LTD,"3,700.75",02/07/2015
Delivery Units,Adults and Communities,Other Agencies - Third Party P,30082895,ASPEN VILLAGES LTD,-342.21,02/07/2015
Delivery Units,Adults and Communities,Other Agencies - Third Party P,30082896,ASPEN VILLAGES LTD,"3,428.57",02/07/2015
Delivery Units,Adults and Communities,Other Agencies - Third Party P,30082897,ASPEN VILLAGES LTD,"4,118.10",02/07/2015
Delivery Units,Adults and Communities,Other Agencies - Third Party P,30082898,ASPEN VILLAGES LTD,"-1,330.68",02/07/2015
Delivery Units,Adults and Communities,Other Agencies - Third Party P,30085134,ASPEN VILLAGES LTD,"2,216.41",22/07/2015
Delivery Units,Adults and Communities,Other Agencies - Third Party P,30085135,ASPEN VILLAGES LTD,"2,570.70",22/07/2015
Delivery Units,Adults and Communities,Other Agencies - Third Party P,30085136,ASPEN VILLAGES LTD,"3,321.43",22/07/2015
Delivery Units,Adults and Communities,Other Agencies - Third Party P,30085137,ASPEN VILLAGES LTD,"3,826.77",22/07/2015
Delivery Units,Adults and Communities,Other Agencies - Third Party P,30085138,ASPEN VILLAGES LTD,-356.28,22/07/2015
Delivery Units,Adults and Communities,Other Agencies - Third Party P,30085139,ASPEN VILLAGES LTD,"3,542.86",22/07/2015
Delivery Units,Adults and Communities,Other Agencies - Third Party P,30085140,ASPEN VILLAGES LTD,"4,871.43",22/07/2015
Delivery Units,Adults and Communities,Other Agencies - Third Party P,30085141,ASPEN VILLAGES LTD,"3,764.29",22/07/2015
Delivery Units,Adults and Communities,Other Agencies - Third Party P,30082781,AUTUMN GARDENS,"2,184.04",02/07/2015
Delivery Units,Adults and Communities,Other Agencies - Third Party P,30082782,AUTUMN GARDENS,"2,880.00",02/07/2015
Delivery Units,Adults and Communities,Other Agencies - Third Party P,30082783,AUTUMN GARDENS,"2,800.00",02/07/2015
Delivery Units,Adults and Communities,Other Agencies - Third Party P,30083636,AUTUMN GARDENS,"2,184.04",13/07/2015
Delivery Units,Adults and Communities,Other Agencies - Third Party P,30083637,AUTUMN GARDENS,"2,800.00",13/07/2015
Delivery Units,Adults and Communities,Other Agencies - Third Party P,30083638,AUTUMN GARDENS,"2,880.00",13/07/2015
Delivery Units,Adults and Communities,Other Agencies - Third Party P,30084021,AUTUMN GARDENS,71.4,17/07/2015
Delivery Units,Adults and Communities,Other Agencies - Third Party P,30085858,AUTUMN GARDENS,"2,184.04",24/07/2015
Delivery Units,Adults and Communities,Other Agencies - Third Party P,30085859,AUTUMN GARDENS,"2,880.00",24/07/2015
Delivery Units,Adults and Communities,Other Agencies - Third Party P,30085860,AUTUMN GARDENS,"2,800.00",24/07/2015
Delivery Units,Adults and Communities,Other Agencies - Third Party P,30082835,AVERY LODGE CARE HOME,"2,144.91",02/07/2015
Delivery Units,Adults and Communities,Other Agencies - Third Party P,30082836,AVERY LODGE CARE HOME,-541.29,02/07/2015
Delivery Units,Adults and Communities,Other Agencies - Third Party P,30082854,AVERY LODGE CARE HOME,-18.81,02/07/2015
Delivery Units,Adults and Communities,Other Agencies - Third Party P,30085099,AVERY LODGE CARE HOME,"2,216.41",22/07/2015
Delivery Units,Adults and Communities,Other Agencies - Third Party P,30085100,AVERY LODGE CARE HOME,-559.33,22/07/2015
Delivery Units,Adults and Communities,Other Agencies - Third Party P,30082875,B & M CARE,-3.13,02/07/2015
Delivery Units,Adults and Communities,Other Agencies - Third Party P,30082905,B & M CARE,"2,340.04",02/07/2015
Delivery Units,Adults and Communities,Other Agencies - Third Party P,30082906,B & M CARE,"2,340.00",02/07/2015
Delivery Units,Adults and Communities,Other Agencies - Third Party P,30082907,B & M CARE,-553.46,02/07/2015
Delivery Units,Adults and Communities,Other Agencies - Third Party P,30082908,B & M CARE,"2,340.04",02/07/2015
Delivery Units,Adults and Communities,Other Agencies - Third Party P,30083067,B & M CARE,"2,144.91",02/07/2015
Delivery Units,Adults and Communities,Other Agencies - Third Party P,30083970,B & M CARE,"-2,262.04",15/07/2015
Delivery Units,Adults and Communities,Other Agencies - Third Party P,30083971,B & M CARE,"1,950.04",15/07/2015
Delivery Units,Adults and Communities,Other Agencies - Third Party P,30083972,B & M CARE,"2,340.04",15/07/2015
Delivery Units,Adults and Communities,Other Agencies - Third Party P,30085474,B & M CARE,"2,216.41",23/07/2015
Delivery Units,Adults and Communities,Other Agencies - Third Party P,30085475,B & M CARE,"2,418.04",23/07/2015
Delivery Units,Adults and Communities,Other Agencies - Third Party P,30085476,B & M CARE,"2,418.00",23/07/2015
Delivery Units,Adults and Communities,Other Agencies - Third Party P,30085477,B & M CARE,-575.14,23/07/2015
Delivery Units,Adults and Communities,Other Agencies - Third Party P,30085478,B & M CARE,"2,418.04",23/07/2015
Delivery Units,Adults and Communities,Other Agencies - Third Party P,30086288,B & M CARE,"1,326.02",28/07/2015
Delivery Units,Adults and Communities,Other Agencies - Third Party P,20022224,BARNET & SOUTHGATE COLLEGE,"3,096.73",23/07/2015
Delivery Units,Adults and Communities,Other Agencies - Third Party P,20022225,BARNET & SOUTHGATE COLLEGE,"3,869.09",23/07/2015
Delivery Units,Adults and Communities,Other Agencies - Third Party P,20022227,BARNET & SOUTHGATE COLLEGE,772.36,23/07/2015
Delivery Units,Adults and Communities,Other Agencies - Third Party P,20022341,BARNET ENFIELD & HARINGEY MENTAL,"7,754.88",27/07/2015
Delivery Units,Adults and Communities,Other Agencies - Third Party P,30086846,BARNET HOMES LIMITED,"8,781.25",30/07/2015
Delivery Units,Adults and Communities,Other Agencies - Third Party P,30081449,BAYTREE COMMUNITY CARE (LONDON) LTD,"-1,097.86",06/07/2015
Delivery Units,Adults and Communities,Other Agencies - Third Party P,30081455,BAYTREE COMMUNITY CARE (LONDON) LTD,548.93,06/07/2015
Delivery Units,Adults and Communities,Other Agencies - Third Party P,30081456,BAYTREE COMMUNITY CARE (LONDON) LTD,495.68,06/07/2015
Delivery Units,Adults and Communities,Other Agencies - Third Party P,30081457,BAYTREE COMMUNITY CARE (LONDON) LTD,548.93,06/07/2015
Delivery Units,Adults and Communities,Other Agencies - Third Party P,30081458,BAYTREE COMMUNITY CARE (LONDON) LTD,541.93,06/07/2015
Delivery Units,Adults and Communities,Other Agencies - Third Party P,30081459,BAYTREE COMMUNITY CARE (LONDON) LTD,559.33,06/07/2015
Delivery Units,Adults and Communities,Other Agencies - Third Party P,30081460,BAYTREE COMMUNITY CARE (LONDON) LTD,541.28,06/07/2015
Delivery Units,Adults and Communities,Other Agencies - Third Party P,30083481,BAYTREE COMMUNITY CARE (LONDON) LTD,734.4,09/07/2015
Delivery Units,Adults and Communities,Other Agencies - Third Party P,30083482,BAYTREE COMMUNITY CARE (LONDON) LTD,"1,280.00",09/07/2015
Delivery Units,Adults and Communities,Other Agencies - Third Party P,30084019,BAYTREE COMMUNITY CARE (LONDON) LTD,-559.33,16/07/2015
Delivery Units,Adults and Communities,Other Agencies - Third Party P,30084020,BAYTREE COMMUNITY CARE (LONDON) LTD,"3,538.37",16/07/2015
Delivery Units,Adults and Communities,Other Agencies - Third Party P,30086790,BAYTREE COMMUNITY CARE (LONDON) LTD,734.4,30/07/2015
Delivery Units,Adults and Communities,Other Agencies - Third Party P,30086791,BAYTREE COMMUNITY CARE (LONDON) LTD,"1,280.00",30/07/2015
Delivery Units,Adults and Communities,Other Agencies - Third Party P,30086887,BAYTREE COMMUNITY CARE (LONDON) LTD,548.93,31/07/2015
Delivery Units,Adults and Communities,Other Agencies - Third Party P,30086888,BAYTREE COMMUNITY CARE (LONDON) LTD,495.68,31/07/2015
Delivery Units,Adults and Communities,Other Agencies - Third Party P,30086889,BAYTREE COMMUNITY CARE (LONDON) LTD,548.93,31/07/2015
Delivery Units,Adults and Communities,Other Agencies - Third Party P,30086890,BAYTREE COMMUNITY CARE (LONDON) LTD,541.93,31/07/2015
Delivery Units,Adults and Communities,Other Agencies - Third Party P,30086891,BAYTREE COMMUNITY CARE (LONDON) LTD,559.33,31/07/2015
Delivery Units,Adults and Communities,Other Agencies - Third Party P,30086892,BAYTREE COMMUNITY CARE (LONDON) LTD,541.28,31/07/2015
Delivery Units,Adults and Communities,Other Agencies - Third Party P,30082747,BENSLOW MANAGEMENT COMPANY LIMITED,"2,340.04",02/07/2015
Delivery Units,Adults and Communities,Other Agencies - Third Party P,30085038,BENSLOW MANAGEMENT COMPANY LIMITED,"2,418.04",22/07/2015
Delivery Units,Adults and Communities,Other Agencies - Third Party P,30082848,BIRCHWOOD GRANGE CARE HOME,"2,571.43",02/07/2015
Delivery Units,Adults and Communities,Other Agencies - Third Party P,30082849,BIRCHWOOD GRANGE CARE HOME,"2,485.71",02/07/2015
Delivery Units,Adults and Communities,Other Agencies - Third Party P,30085465,BIRCHWOOD GRANGE CARE HOME,"2,657.14",23/07/2015
Delivery Units,Adults and Communities,Other Agencies - Third Party P,30085910,BIRCHWOOD GRANGE CARE HOME,"2,578.11",24/07/2015
Delivery Units,Adults and Communities,Other Agencies - Third Party P,30078107,BRADBURY HOUSE ORGANISATION,-2.15,02/07/2015
Delivery Units,Adults and Communities,Other Agencies - Third Party P,30082659,BRADBURY HOUSE ORGANISATION,"3,349.07",02/07/2015
Delivery Units,Adults and Communities,Other Agencies - Third Party P,30082660,BRADBURY HOUSE ORGANISATION,-344.79,02/07/2015
Delivery Units,Adults and Communities,Other Agencies - Third Party P,30085788,BRADBURY HOUSE ORGANISATION,"3,460.71",24/07/2015
Delivery Units,Adults and Communities,Other Agencies - Third Party P,30085789,BRADBURY HOUSE ORGANISATION,-356.28,24/07/2015
Delivery Units,Adults and Communities,Other Agencies - Third Party P,30085272,BROOKDALE HEALTHCARE,"9,300.00",23/07/2015
Delivery Units,Adults and Communities,Other Agencies - Third Party P,30085273,BROOKDALE HEALTHCARE,"9,610.00",23/07/2015
Delivery Units,Adults and Communities,Other Agencies - Third Party P,30085779,BROOKDALE HEALTHCARE,"3,759.36",24/07/2015
Delivery Units,Adults and Communities,Other Agencies - Third Party P,20021922,BROOKS FUNERALS,894,14/07/2015
Delivery Units,Adults and Communities,Other Agencies - Third Party P,30084315,BRUNSWICK SUPPORTED LIVING SERVICES,"1,321.60",21/07/2015
Delivery Units,Adults and Communities,Other Agencies - Third Party P,30084317,BRUNSWICK SUPPORTED LIVING SERVICES,"1,412.68",21/07/2015
Delivery Units,Adults and Communities,Other Agencies - Third Party P,30084318,BRUNSWICK SUPPORTED LIVING SERVICES,"1,942.84",21/07/2015
Delivery Units,Adults and Communities,Other Agencies - Third Party P,30084327,BRUNSWICK SUPPORTED LIVING SERVICES,"2,153.92",21/07/2015
Delivery Units,Adults and Communities,Other Agencies - Third Party P,30082646,BUPA CARE HOMES,"2,340.04",02/07/2015
Delivery Units,Adults and Communities,Other Agencies - Third Party P,30082886,BUPA CARE HOMES,"2,487.77",02/07/2015
Delivery Units,Adults and Communities,Other Agencies - Third Party P,30082887,BUPA CARE HOMES,"2,487.77",02/07/2015
Delivery Units,Adults and Communities,Other Agencies - Third Party P,30082888,BUPA CARE HOMES,"2,340.04",02/07/2015
Delivery Units,Adults and Communities,Other Agencies - Third Party P,30082889,BUPA CARE HOMES,"2,340.04",02/07/2015
Delivery Units,Adults and Communities,Other Agencies - Third Party P,30082890,BUPA CARE HOMES,"2,340.04",02/07/2015
Delivery Units,Adults and Communities,Other Agencies - Third Party P,30082914,BUPA CARE HOMES,"2,144.91",02/07/2015
Delivery Units,Adults and Communities,Other Agencies - Third Party P,30082915,BUPA CARE HOMES,"2,528.57",02/07/2015
Delivery Units,Adults and Communities,Other Agencies - Third Party P,30082918,BUPA CARE HOMES,"3,153.69",02/07/2015
Delivery Units,Adults and Communities,Other Agencies - Third Party P,30082919,BUPA CARE HOMES,"3,153.69",02/07/2015
Delivery Units,Adults and Communities,Other Agencies - Third Party P,30082920,BUPA CARE HOMES,"3,214.29",02/07/2015
Delivery Units,Adults and Communities,Other Agencies - Third Party P,30082921,BUPA CARE HOMES,"3,214.29",02/07/2015
Delivery Units,Adults and Communities,Other Agencies - Third Party P,30082922,BUPA CARE HOMES,"2,340.04",02/07/2015
Delivery Units,Adults and Communities,Other Agencies - Third Party P,30083052,BUPA CARE HOMES,"2,314.02",06/07/2015
Delivery Units,Adults and Communities,Other Agencies - Third Party P,30083053,BUPA CARE HOMES,"2,314.02",06/07/2015
Delivery Units,Adults and Communities,Other Agencies - Third Party P,30083054,BUPA CARE HOMES,"2,239.37",06/07/2015
Delivery Units,Adults and Communities,Other Agencies - Third Party P,30083055,BUPA CARE HOMES,"2,239.37",06/07/2015
Delivery Units,Adults and Communities,Other Agencies - Third Party P,30083060,BUPA CARE HOMES,"4,686.43",06/07/2015
Delivery Units,Adults and Communities,Other Agencies - Third Party P,30083973,BUPA CARE HOMES,"2,244.13",15/07/2015
Delivery Units,Adults and Communities,Other Agencies - Third Party P,30083974,BUPA CARE HOMES,"2,244.13",15/07/2015
Delivery Units,Adults and Communities,Other Agencies - Third Party P,30083975,BUPA CARE HOMES,"2,244.13",15/07/2015
Delivery Units,Adults and Communities,Other Agencies - Third Party P,30083976,BUPA CARE HOMES,"2,785.71",15/07/2015
Delivery Units,Adults and Communities,Other Agencies - Third Party P,30084140,BUPA CARE HOMES,"2,244.13",16/07/2015
Delivery Units,Adults and Communities,Other Agencies - Third Party P,30084141,BUPA CARE HOMES,"2,829.73",16/07/2015
Delivery Units,Adults and Communities,Other Agencies - Third Party P,30084142,BUPA CARE HOMES,"2,227.80",16/07/2015
Delivery Units,Adults and Communities,Other Agencies - Third Party P,30084143,BUPA CARE HOMES,"3,385.71",16/07/2015
Delivery Units,Adults and Communities,Other Agencies - Third Party P,30084144,BUPA CARE HOMES,"2,244.13",16/07/2015
Delivery Units,Adults and Communities,Other Agencies - Third Party P,30085128,BUPA CARE HOMES,"2,570.70",22/07/2015
Delivery Units,Adults and Communities,Other Agencies - Third Party P,30085129,BUPA CARE HOMES,"2,570.70",22/07/2015
Delivery Units,Adults and Communities,Other Agencies - Third Party P,30085130,BUPA CARE HOMES,"2,418.04",22/07/2015
Delivery Units,Adults and Communities,Other Agencies - Third Party P,30085131,BUPA CARE HOMES,"2,418.04",22/07/2015
Delivery Units,Adults and Communities,Other Agencies - Third Party P,30085132,BUPA CARE HOMES,"2,418.04",22/07/2015
Delivery Units,Adults and Communities,Other Agencies - Third Party P,30085133,BUPA CARE HOMES,"2,418.04",22/07/2015
Delivery Units,Adults and Communities,Other Agencies - Third Party P,30085143,BUPA CARE HOMES,"2,216.41",22/07/2015
Delivery Units,Adults and Communities,Other Agencies - Third Party P,30085144,BUPA CARE HOMES,"2,612.86",22/07/2015
Delivery Units,Adults and Communities,Other Agencies - Third Party P,30085146,BUPA CARE HOMES,"7,750.00",22/07/2015
Delivery Units,Adults and Communities,Other Agencies - Third Party P,30085147,BUPA CARE HOMES,"3,258.81",22/07/2015
Delivery Units,Adults and Communities,Other Agencies - Third Party P,30085148,BUPA CARE HOMES,"3,321.43",22/07/2015
Delivery Units,Adults and Communities,Other Agencies - Third Party P,30085149,BUPA CARE HOMES,"3,321.43",22/07/2015
Delivery Units,Adults and Communities,Other Agencies - Third Party P,30085150,BUPA CARE HOMES,"2,418.04",22/07/2015
Delivery Units,Adults and Communities,Other Agencies - Third Party P,30085181,BUPA CARE HOMES,"2,314.02",21/07/2015
Delivery Units,Adults and Communities,Other Agencies - Third Party P,30085182,BUPA CARE HOMES,"2,314.02",21/07/2015
Delivery Units,Adults and Communities,Other Agencies - Third Party P,30085187,BUPA CARE HOMES,"4,842.64",21/07/2015
Delivery Units,Adults and Communities,Other Agencies - Third Party P,30082464,BUPA NURSING HOMES LTD - ARKLEY,"1,604.52",01/07/2015
Delivery Units,Adults and Communities,Other Agencies - Third Party P,30082465,BUPA NURSING HOMES LTD - ARKLEY,"2,094.52",01/07/2015
Delivery Units,Adults and Communities,Other Agencies - Third Party P,30082466,BUPA NURSING HOMES LTD - ARKLEY,"2,094.52",01/07/2015
Delivery Units,Adults and Communities,Other Agencies - Third Party P,30082467,BUPA NURSING HOMES LTD - ARKLEY,"2,094.52",01/07/2015
Delivery Units,Adults and Communities,Other Agencies - Third Party P,30082468,BUPA NURSING HOMES LTD - ARKLEY,"2,001.92",01/07/2015
Delivery Units,Adults and Communities,Other Agencies - Third Party P,30082469,BUPA NURSING HOMES LTD - ARKLEY,"2,001.92",01/07/2015
Delivery Units,Adults and Communities,Other Agencies - Third Party P,30082470,BUPA NURSING HOMES LTD - ARKLEY,"3,356.44",01/07/2015
Delivery Units,Adults and Communities,Other Agencies - Third Party P,30082471,BUPA NURSING HOMES LTD - ARKLEY,"2,094.52",01/07/2015
Delivery Units,Adults and Communities,Other Agencies - Third Party P,30086264,BUPA NURSING HOMES LTD - ARKLEY,"2,001.92",28/07/2015
Delivery Units,Adults and Communities,Other Agencies - Third Party P,30086265,BUPA NURSING HOMES LTD - ARKLEY,"2,001.92",28/07/2015
Delivery Units,Adults and Communities,Other Agencies - Third Party P,30086266,BUPA NURSING HOMES LTD - ARKLEY,"1,604.52",29/07/2015
Delivery Units,Adults and Communities,Other Agencies - Third Party P,30086267,BUPA NURSING HOMES LTD - ARKLEY,"2,094.52",29/07/2015
Delivery Units,Adults and Communities,Other Agencies - Third Party P,30086268,BUPA NURSING HOMES LTD - ARKLEY,"2,094.52",29/07/2015
Delivery Units,Adults and Communities,Other Agencies - Third Party P,30086269,BUPA NURSING HOMES LTD - ARKLEY,"2,094.52",29/07/2015
Delivery Units,Adults and Communities,Other Agencies - Third Party P,30086270,BUPA NURSING HOMES LTD - ARKLEY,"2,001.92",29/07/2015
Delivery Units,Adults and Communities,Other Agencies - Third Party P,30086271,BUPA NURSING HOMES LTD - ARKLEY,"2,001.92",29/07/2015
Delivery Units,Adults and Communities,Other Agencies - Third Party P,30086272,BUPA NURSING HOMES LTD - ARKLEY,"14,138.01",29/07/2015
Delivery Units,Adults and Communities,Other Agencies - Third Party P,30086273,BUPA NURSING HOMES LTD - ARKLEY,"3,356.44",29/07/2015
Delivery Units,Adults and Communities,Other Agencies - Third Party P,30082940,CAMBIAN BEECHES,"12,739.80",02/07/2015
Delivery Units,Adults and Communities,Other Agencies - Third Party P,30082941,CAMBIAN BEECHES,"12,739.80",02/07/2015
Delivery Units,Adults and Communities,Other Agencies - Third Party P,30085480,CAMBIAN BEECHES,"13,164.46",23/07/2015
Delivery Units,Adults and Communities,Other Agencies - Third Party P,30085481,CAMBIAN BEECHES,"13,164.46",23/07/2015
Delivery Units,Adults and Communities,Other Agencies - Third Party P,30084008,CAMPHILL DEVON COMMUNITY LIMITED,"4,508.00",16/07/2015
Delivery Units,Adults and Communities,Other Agencies - Third Party P,20022433,CARE ASSIST LIMITED,"4,207.14",30/07/2015
Delivery Units,Adults and Communities,Other Agencies - Third Party P,20022435,CARE ASSIST LIMITED,"4,207.14",30/07/2015
Delivery Units,Adults and Communities,Other Agencies - Third Party P,30082911,CARE ASSIST LIMITED,"4,071.43",02/07/2015
Delivery Units,Adults and Communities,Other Agencies - Third Party P,30082912,CARE ASSIST LIMITED,"4,071.43",02/07/2015
Delivery Units,Adults and Communities,Other Agencies - Third Party P,30082884,CARE UK COMMUNITY PARTNERSHIPS,"2,774.96",02/07/2015
Delivery Units,Adults and Communities,Other Agencies - Third Party P,30085126,CARE UK COMMUNITY PARTNERSHIPS,"2,867.46",22/07/2015
Delivery Units,Adults and Communities,Other Agencies - Third Party P,30083483,CARE WORLDWIDE (LONDON) LTD,"2,680.88",09/07/2015
Delivery Units,Adults and Communities,Other Agencies - Third Party P,30083484,CARE WORLDWIDE (LONDON) LTD,600.2,09/07/2015
Delivery Units,Adults and Communities,Other Agencies - Third Party P,30083485,CARE WORLDWIDE (LONDON) LTD,"3,936.46",09/07/2015
Delivery Units,Adults and Communities,Other Agencies - Third Party P,30083486,CARE WORLDWIDE (LONDON) LTD,"4,246.53",09/07/2015
Delivery Units,Adults and Communities,Other Agencies - Third Party P,30083487,CARE WORLDWIDE (LONDON) LTD,"2,392.50",09/07/2015
Delivery Units,Adults and Communities,Other Agencies - Third Party P,30083488,CARE WORLDWIDE (LONDON) LTD,"2,685.98",09/07/2015
Delivery Units,Adults and Communities,Other Agencies - Third Party P,30083489,CARE WORLDWIDE (LONDON) LTD,"2,685.98",09/07/2015
Delivery Units,Adults and Communities,Other Agencies - Third Party P,30083490,CARE WORLDWIDE (LONDON) LTD,"2,794.44",09/07/2015
Delivery Units,Adults and Communities,Other Agencies - Third Party P,30083491,CARE WORLDWIDE (LONDON) LTD,600.2,09/07/2015
Delivery Units,Adults and Communities,Other Agencies - Third Party P,30083492,CARE WORLDWIDE (LONDON) LTD,"2,680.88",09/07/2015
Delivery Units,Adults and Communities,Other Agencies - Third Party P,30083493,CARE WORLDWIDE (LONDON) LTD,"3,936.46",09/07/2015
Delivery Units,Adults and Communities,Other Agencies - Third Party P,30083494,CARE WORLDWIDE (LONDON) LTD,"4,246.53",09/07/2015
Delivery Units,Adults and Communities,Other Agencies - Third Party P,30083495,CARE WORLDWIDE (LONDON) LTD,"2,794.44",09/07/2015
Delivery Units,Adults and Communities,Other Agencies - Third Party P,30082777,CAREBASE BURNT OAK 2006 LIMITED,-448.83,02/07/2015
Delivery Units,Adults and Communities,Other Agencies - Third Party P,30082778,CAREBASE BURNT OAK 2006 LIMITED,-156,06/07/2015
Delivery Units,Adults and Communities,Other Agencies - Third Party P,30082818,CAREBASE BURNT OAK 2006 LIMITED,"2,244.13",02/07/2015
Delivery Units,Adults and Communities,Other Agencies - Third Party P,30082819,CAREBASE BURNT OAK 2006 LIMITED,"2,487.77",02/07/2015
Delivery Units,Adults and Communities,Other Agencies - Third Party P,30082820,CAREBASE BURNT OAK 2006 LIMITED,"2,340.04",02/07/2015
Delivery Units,Adults and Communities,Other Agencies - Third Party P,30082821,CAREBASE BURNT OAK 2006 LIMITED,"2,487.77",02/07/2015
Delivery Units,Adults and Communities,Other Agencies - Third Party P,30082822,CAREBASE BURNT OAK 2006 LIMITED,"2,487.77",02/07/2015
Delivery Units,Adults and Communities,Other Agencies - Third Party P,30082823,CAREBASE BURNT OAK 2006 LIMITED,"2,340.04",02/07/2015
Delivery Units,Adults and Communities,Other Agencies - Third Party P,30082824,CAREBASE BURNT OAK 2006 LIMITED,"2,487.77",02/07/2015
Delivery Units,Adults and Communities,Other Agencies - Third Party P,30082825,CAREBASE BURNT OAK 2006 LIMITED,"2,227.80",02/07/2015
Delivery Units,Adults and Communities,Other Agencies - Third Party P,30082826,CAREBASE BURNT OAK 2006 LIMITED,"2,245.67",02/07/2015
Delivery Units,Adults and Communities,Other Agencies - Third Party P,30082827,CAREBASE BURNT OAK 2006 LIMITED,"2,571.43",02/07/2015
Delivery Units,Adults and Communities,Other Agencies - Third Party P,30082828,CAREBASE BURNT OAK 2006 LIMITED,"2,340.04",02/07/2015
Delivery Units,Adults and Communities,Other Agencies - Third Party P,30082829,CAREBASE BURNT OAK 2006 LIMITED,"2,487.77",02/07/2015
Delivery Units,Adults and Communities,Other Agencies - Third Party P,30083220,CAREBASE BURNT OAK 2006 LIMITED,"2,244.13",06/07/2015
Delivery Units,Adults and Communities,Other Agencies - Third Party P,30084017,CAREBASE BURNT OAK 2006 LIMITED,"1,000.96",16/07/2015
Delivery Units,Adults and Communities,Other Agencies - Third Party P,30085076,CAREBASE BURNT OAK 2006 LIMITED,"2,318.93",22/07/2015
Delivery Units,Adults and Communities,Other Agencies - Third Party P,30085077,CAREBASE BURNT OAK 2006 LIMITED,"2,570.70",22/07/2015
Delivery Units,Adults and Communities,Other Agencies - Third Party P,30085078,CAREBASE BURNT OAK 2006 LIMITED,"2,570.70",22/07/2015
Delivery Units,Adults and Communities,Other Agencies - Third Party P,30085079,CAREBASE BURNT OAK 2006 LIMITED,"2,570.70",22/07/2015
Delivery Units,Adults and Communities,Other Agencies - Third Party P,30085080,CAREBASE BURNT OAK 2006 LIMITED,"2,418.04",22/07/2015
Delivery Units,Adults and Communities,Other Agencies - Third Party P,30085081,CAREBASE BURNT OAK 2006 LIMITED,"2,570.70",22/07/2015
Delivery Units,Adults and Communities,Other Agencies - Third Party P,30085082,CAREBASE BURNT OAK 2006 LIMITED,"2,320.53",22/07/2015
Delivery Units,Adults and Communities,Other Agencies - Third Party P,30085083,CAREBASE BURNT OAK 2006 LIMITED,"2,657.14",22/07/2015
Delivery Units,Adults and Communities,Other Agencies - Third Party P,30085084,CAREBASE BURNT OAK 2006 LIMITED,"2,418.04",22/07/2015
Delivery Units,Adults and Communities,Other Agencies - Third Party P,30085085,CAREBASE BURNT OAK 2006 LIMITED,"2,570.70",22/07/2015
Delivery Units,Adults and Communities,Other Agencies - Third Party P,20022439,CARETECH COMMUNITY SERVICES LTD,"6,596.09",30/07/2015
Delivery Units,Adults and Communities,Other Agencies - Third Party P,30082978,CARETECH COMMUNITY SERVICES LTD,"4,478.74",02/07/2015
Delivery Units,Adults and Communities,Other Agencies - Third Party P,30082979,CARETECH COMMUNITY SERVICES LTD,"4,620.00",02/07/2015
Delivery Units,Adults and Communities,Other Agencies - Third Party P,30082980,CARETECH COMMUNITY SERVICES LTD,-344.79,02/07/2015
Delivery Units,Adults and Communities,Other Agencies - Third Party P,30082981,CARETECH COMMUNITY SERVICES LTD,"5,700.00",02/07/2015
Delivery Units,Adults and Communities,Other Agencies - Third Party P,30082982,CARETECH COMMUNITY SERVICES LTD,-344.79,02/07/2015
Delivery Units,Adults and Communities,Other Agencies - Third Party P,30082983,CARETECH COMMUNITY SERVICES LTD,"6,439.16",02/07/2015
Delivery Units,Adults and Communities,Other Agencies - Third Party P,30082984,CARETECH COMMUNITY SERVICES LTD,-342.21,02/07/2015
Delivery Units,Adults and Communities,Other Agencies - Third Party P,30082985,CARETECH COMMUNITY SERVICES LTD,459.94,02/07/2015
Delivery Units,Adults and Communities,Other Agencies - Third Party P,30082986,CARETECH COMMUNITY SERVICES LTD,"4,478.57",02/07/2015
Delivery Units,Adults and Communities,Other Agencies - Third Party P,30082987,CARETECH COMMUNITY SERVICES LTD,"6,339.90",02/07/2015
Delivery Units,Adults and Communities,Other Agencies - Third Party P,30082988,CARETECH COMMUNITY SERVICES LTD,-531.21,02/07/2015
Delivery Units,Adults and Communities,Other Agencies - Third Party P,30082989,CARETECH COMMUNITY SERVICES LTD,789.81,02/07/2015
Delivery Units,Adults and Communities,Other Agencies - Third Party P,30082990,CARETECH COMMUNITY SERVICES LTD,"4,496.66",02/07/2015
Delivery Units,Adults and Communities,Other Agencies - Third Party P,30082991,CARETECH COMMUNITY SERVICES LTD,"4,661.79",02/07/2015
Delivery Units,Adults and Communities,Other Agencies - Third Party P,30082992,CARETECH COMMUNITY SERVICES LTD,-344.79,02/07/2015
Delivery Units,Adults and Communities,Other Agencies - Third Party P,30082993,CARETECH COMMUNITY SERVICES LTD,699.3,02/07/2015
Delivery Units,Adults and Communities,Other Agencies - Third Party P,30082994,CARETECH COMMUNITY SERVICES LTD,"7,375.71",02/07/2015
Delivery Units,Adults and Communities,Other Agencies - Third Party P,30082995,CARETECH COMMUNITY SERVICES LTD,"4,478.74",02/07/2015
Delivery Units,Adults and Communities,Other Agencies - Third Party P,30082996,CARETECH COMMUNITY SERVICES LTD,"6,339.90",02/07/2015
Delivery Units,Adults and Communities,Other Agencies - Third Party P,30082997,CARETECH COMMUNITY SERVICES LTD,-531.21,02/07/2015
Delivery Units,Adults and Communities,Other Agencies - Third Party P,30082998,CARETECH COMMUNITY SERVICES LTD,789.81,02/07/2015
Delivery Units,Adults and Communities,Other Agencies - Third Party P,30082999,CARETECH COMMUNITY SERVICES LTD,"4,478.57",02/07/2015
Delivery Units,Adults and Communities,Other Agencies - Third Party P,30083000,CARETECH COMMUNITY SERVICES LTD,"6,093.17",02/07/2015
Delivery Units,Adults and Communities,Other Agencies - Third Party P,30083001,CARETECH COMMUNITY SERVICES LTD,"6,439.16",02/07/2015
Delivery Units,Adults and Communities,Other Agencies - Third Party P,30083002,CARETECH COMMUNITY SERVICES LTD,-342.21,02/07/2015
Delivery Units,Adults and Communities,Other Agencies - Third Party P,30083003,CARETECH COMMUNITY SERVICES LTD,459.94,02/07/2015
Delivery Units,Adults and Communities,Other Agencies - Third Party P,30083004,CARETECH COMMUNITY SERVICES LTD,"7,052.57",02/07/2015
Delivery Units,Adults and Communities,Other Agencies - Third Party P,30083005,CARETECH COMMUNITY SERVICES LTD,-344.79,02/07/2015
Delivery Units,Adults and Communities,Other Agencies - Third Party P,30083006,CARETECH COMMUNITY SERVICES LTD,"4,478.57",02/07/2015
Delivery Units,Adults and Communities,Other Agencies - Third Party P,30083007,CARETECH COMMUNITY SERVICES LTD,889.5,02/07/2015
Delivery Units,Adults and Communities,Other Agencies - Third Party P,30083008,CARETECH COMMUNITY SERVICES LTD,"6,728.10",02/07/2015
Delivery Units,Adults and Communities,Other Agencies - Third Party P,30083009,CARETECH COMMUNITY SERVICES LTD,-342.21,02/07/2015
Delivery Units,Adults and Communities,Other Agencies - Third Party P,30083010,CARETECH COMMUNITY SERVICES LTD,"4,896.17",02/07/2015
Delivery Units,Adults and Communities,Other Agencies - Third Party P,30083011,CARETECH COMMUNITY SERVICES LTD,-344.79,02/07/2015
Delivery Units,Adults and Communities,Other Agencies - Third Party P,30083012,CARETECH COMMUNITY SERVICES LTD,"1,053.04",02/07/2015
Delivery Units,Adults and Communities,Other Agencies - Third Party P,30083013,CARETECH COMMUNITY SERVICES LTD,"6,124.29",02/07/2015
Delivery Units,Adults and Communities,Other Agencies - Third Party P,30083014,CARETECH COMMUNITY SERVICES LTD,-342.21,02/07/2015
Delivery Units,Adults and Communities,Other Agencies - Third Party P,30083015,CARETECH COMMUNITY SERVICES LTD,"5,292.51",02/07/2015
Delivery Units,Adults and Communities,Other Agencies - Third Party P,30083016,CARETECH COMMUNITY SERVICES LTD,-342.21,02/07/2015
Delivery Units,Adults and Communities,Other Agencies - Third Party P,30083017,CARETECH COMMUNITY SERVICES LTD,"5,635.71",02/07/2015
Delivery Units,Adults and Communities,Other Agencies - Third Party P,30083018,CARETECH COMMUNITY SERVICES LTD,-469.71,02/07/2015
Delivery Units,Adults and Communities,Other Agencies - Third Party P,30083019,CARETECH COMMUNITY SERVICES LTD,"5,292.51",02/07/2015
Delivery Units,Adults and Communities,Other Agencies - Third Party P,30083020,CARETECH COMMUNITY SERVICES LTD,-342.21,02/07/2015
Delivery Units,Adults and Communities,Other Agencies - Third Party P,30083021,CARETECH COMMUNITY SERVICES LTD,"1,053.04",02/07/2015
Delivery Units,Adults and Communities,Other Agencies - Third Party P,30083022,CARETECH COMMUNITY SERVICES LTD,"4,235.91",02/07/2015
Delivery Units,Adults and Communities,Other Agencies - Third Party P,30083023,CARETECH COMMUNITY SERVICES LTD,-342.21,02/07/2015
Delivery Units,Adults and Communities,Other Agencies - Third Party P,30083024,CARETECH COMMUNITY SERVICES LTD,"5,794.29",02/07/2015
Delivery Units,Adults and Communities,Other Agencies - Third Party P,30083025,CARETECH COMMUNITY SERVICES LTD,-342.21,02/07/2015
Delivery Units,Adults and Communities,Other Agencies - Third Party P,30083026,CARETECH COMMUNITY SERVICES LTD,"4,896.17",02/07/2015
Delivery Units,Adults and Communities,Other Agencies - Third Party P,30083027,CARETECH COMMUNITY SERVICES LTD,-531.21,02/07/2015
Delivery Units,Adults and Communities,Other Agencies - Third Party P,30083028,CARETECH COMMUNITY SERVICES LTD,"1,053.04",02/07/2015
Delivery Units,Adults and Communities,Other Agencies - Third Party P,30083029,CARETECH COMMUNITY SERVICES LTD,"2,506.20",02/07/2015
Delivery Units,Adults and Communities,Other Agencies - Third Party P,30083030,CARETECH COMMUNITY SERVICES LTD,"4,478.57",02/07/2015
Delivery Units,Adults and Communities,Other Agencies - Third Party P,30083031,CARETECH COMMUNITY SERVICES LTD,"4,628.57",02/07/2015
Delivery Units,Adults and Communities,Other Agencies - Third Party P,30083033,CARETECH COMMUNITY SERVICES LTD,"6,844.29",02/07/2015
Delivery Units,Adults and Communities,Other Agencies - Third Party P,30083034,CARETECH COMMUNITY SERVICES LTD,-388.71,02/07/2015
Delivery Units,Adults and Communities,Other Agencies - Third Party P,30083035,CARETECH COMMUNITY SERVICES LTD,889.5,02/07/2015
Delivery Units,Adults and Communities,Other Agencies - Third Party P,30083071,CARETECH COMMUNITY SERVICES LTD,"2,080.59",02/07/2015
Delivery Units,Adults and Communities,Other Agencies - Third Party P,30083072,CARETECH COMMUNITY SERVICES LTD,"1,478.57",02/07/2015
Delivery Units,Adults and Communities,Other Agencies - Third Party P,30086280,CARETECH COMMUNITY SERVICES LTD,-7.39,29/07/2015
Delivery Units,Adults and Communities,Other Agencies - Third Party P,30086281,CARETECH COMMUNITY SERVICES LTD,-28.89,29/07/2015
Delivery Units,Adults and Communities,Other Agencies - Third Party P,30086282,CARETECH COMMUNITY SERVICES LTD,-7.39,29/07/2015
Delivery Units,Adults and Communities,Other Agencies - Third Party P,30086283,CARETECH COMMUNITY SERVICES LTD,-7.39,29/07/2015
Delivery Units,Adults and Communities,Other Agencies - Third Party P,30086284,CARETECH COMMUNITY SERVICES LTD,-7.39,29/07/2015
Delivery Units,Adults and Communities,Other Agencies - Third Party P,30086285,CARETECH COMMUNITY SERVICES LTD,-11.07,29/07/2015
Delivery Units,Adults and Communities,Other Agencies - Third Party P,30086304,CARETECH COMMUNITY SERVICES LTD,"4,628.03",29/07/2015
Delivery Units,Adults and Communities,Other Agencies - Third Party P,30086305,CARETECH COMMUNITY SERVICES LTD,"4,774.00",29/07/2015
Delivery Units,Adults and Communities,Other Agencies - Third Party P,30086306,CARETECH COMMUNITY SERVICES LTD,-356.28,29/07/2015
Delivery Units,Adults and Communities,Other Agencies - Third Party P,30086307,CARETECH COMMUNITY SERVICES LTD,"5,890.00",29/07/2015
Delivery Units,Adults and Communities,Other Agencies - Third Party P,30086308,CARETECH COMMUNITY SERVICES LTD,-356.28,29/07/2015
Delivery Units,Adults and Communities,Other Agencies - Third Party P,30086309,CARETECH COMMUNITY SERVICES LTD,"6,653.80",29/07/2015
Delivery Units,Adults and Communities,Other Agencies - Third Party P,30086310,CARETECH COMMUNITY SERVICES LTD,-356.28,29/07/2015
Delivery Units,Adults and Communities,Other Agencies - Third Party P,30086311,CARETECH COMMUNITY SERVICES LTD,475.27,29/07/2015
Delivery Units,Adults and Communities,Other Agencies - Third Party P,30086312,CARETECH COMMUNITY SERVICES LTD,"4,627.86",29/07/2015
Delivery Units,Adults and Communities,Other Agencies - Third Party P,30086313,CARETECH COMMUNITY SERVICES LTD,"6,551.23",29/07/2015
Delivery Units,Adults and Communities,Other Agencies - Third Party P,30086314,CARETECH COMMUNITY SERVICES LTD,-548.92,29/07/2015
Delivery Units,Adults and Communities,Other Agencies - Third Party P,30086315,CARETECH COMMUNITY SERVICES LTD,816.14,29/07/2015
Delivery Units,Adults and Communities,Other Agencies - Third Party P,30086316,CARETECH COMMUNITY SERVICES LTD,"4,646.55",29/07/2015
Delivery Units,Adults and Communities,Other Agencies - Third Party P,30086317,CARETECH COMMUNITY SERVICES LTD,"4,817.18",29/07/2015
Delivery Units,Adults and Communities,Other Agencies - Third Party P,30086318,CARETECH COMMUNITY SERVICES LTD,-356.28,29/07/2015
Delivery Units,Adults and Communities,Other Agencies - Third Party P,30086319,CARETECH COMMUNITY SERVICES LTD,"7,621.57",29/07/2015
Delivery Units,Adults and Communities,Other Agencies - Third Party P,30086320,CARETECH COMMUNITY SERVICES LTD,"6,551.23",29/07/2015
Delivery Units,Adults and Communities,Other Agencies - Third Party P,30086321,CARETECH COMMUNITY SERVICES LTD,-559.33,29/07/2015
Delivery Units,Adults and Communities,Other Agencies - Third Party P,30086322,CARETECH COMMUNITY SERVICES LTD,816.14,29/07/2015
Delivery Units,Adults and Communities,Other Agencies - Third Party P,30086323,CARETECH COMMUNITY SERVICES LTD,"4,627.86",29/07/2015
Delivery Units,Adults and Communities,Other Agencies - Third Party P,30086324,CARETECH COMMUNITY SERVICES LTD,"6,296.28",29/07/2015
Delivery Units,Adults and Communities,Other Agencies - Third Party P,30086325,CARETECH COMMUNITY SERVICES LTD,"6,653.80",29/07/2015
Delivery Units,Adults and Communities,Other Agencies - Third Party P,30086326,CARETECH COMMUNITY SERVICES LTD,-353.62,29/07/2015
Delivery Units,Adults and Communities,Other Agencies - Third Party P,30086327,CARETECH COMMUNITY SERVICES LTD,475.27,29/07/2015
Delivery Units,Adults and Communities,Other Agencies - Third Party P,30086328,CARETECH COMMUNITY SERVICES LTD,"7,287.66",29/07/2015
Delivery Units,Adults and Communities,Other Agencies - Third Party P,30086329,CARETECH COMMUNITY SERVICES LTD,-356.28,29/07/2015
Delivery Units,Adults and Communities,Other Agencies - Third Party P,30086330,CARETECH COMMUNITY SERVICES LTD,"4,627.86",29/07/2015
Delivery Units,Adults and Communities,Other Agencies - Third Party P,30086331,CARETECH COMMUNITY SERVICES LTD,919.15,29/07/2015
Delivery Units,Adults and Communities,Other Agencies - Third Party P,30086334,CARETECH COMMUNITY SERVICES LTD,"5,059.38",29/07/2015
Delivery Units,Adults and Communities,Other Agencies - Third Party P,30086335,CARETECH COMMUNITY SERVICES LTD,-356.28,29/07/2015
Delivery Units,Adults and Communities,Other Agencies - Third Party P,30086336,CARETECH COMMUNITY SERVICES LTD,"1,088.14",29/07/2015
Delivery Units,Adults and Communities,Other Agencies - Third Party P,30086337,CARETECH COMMUNITY SERVICES LTD,"6,328.43",29/07/2015
Delivery Units,Adults and Communities,Other Agencies - Third Party P,30086338,CARETECH COMMUNITY SERVICES LTD,-356.28,29/07/2015
Delivery Units,Adults and Communities,Other Agencies - Third Party P,30086339,CARETECH COMMUNITY SERVICES LTD,"5,468.93",29/07/2015
Delivery Units,Adults and Communities,Other Agencies - Third Party P,30086340,CARETECH COMMUNITY SERVICES LTD,-353.62,29/07/2015
Delivery Units,Adults and Communities,Other Agencies - Third Party P,30086341,CARETECH COMMUNITY SERVICES LTD,"5,823.57",29/07/2015
Delivery Units,Adults and Communities,Other Agencies - Third Party P,30086342,CARETECH COMMUNITY SERVICES LTD,-485.37,29/07/2015
Delivery Units,Adults and Communities,Other Agencies - Third Party P,30086343,CARETECH COMMUNITY SERVICES LTD,"5,468.93",29/07/2015
Delivery Units,Adults and Communities,Other Agencies - Third Party P,30086344,CARETECH COMMUNITY SERVICES LTD,-353.62,29/07/2015
Delivery Units,Adults and Communities,Other Agencies - Third Party P,30086345,CARETECH COMMUNITY SERVICES LTD,"4,377.11",29/07/2015
Delivery Units,Adults and Communities,Other Agencies - Third Party P,30086346,CARETECH COMMUNITY SERVICES LTD,-356.28,29/07/2015
Delivery Units,Adults and Communities,Other Agencies - Third Party P,30086347,CARETECH COMMUNITY SERVICES LTD,"5,987.43",29/07/2015
Delivery Units,Adults and Communities,Other Agencies - Third Party P,30086348,CARETECH COMMUNITY SERVICES LTD,-353.62,29/07/2015
Delivery Units,Adults and Communities,Other Agencies - Third Party P,30086349,CARETECH COMMUNITY SERVICES LTD,"5,059.38",29/07/2015
Delivery Units,Adults and Communities,Other Agencies - Third Party P,30086350,CARETECH COMMUNITY SERVICES LTD,-548.92,29/07/2015
Delivery Units,Adults and Communities,Other Agencies - Third Party P,30086351,CARETECH COMMUNITY SERVICES LTD,"1,088.14",29/07/2015
Delivery Units,Adults and Communities,Other Agencies - Third Party P,30086352,CARETECH COMMUNITY SERVICES LTD,"2,589.74",29/07/2015
Delivery Units,Adults and Communities,Other Agencies - Third Party P,30086353,CARETECH COMMUNITY SERVICES LTD,"4,627.86",29/07/2015
Delivery Units,Adults and Communities,Other Agencies - Third Party P,30086354,CARETECH COMMUNITY SERVICES LTD,"2,149.94",29/07/2015
Delivery Units,Adults and Communities,Other Agencies - Third Party P,30086355,CARETECH COMMUNITY SERVICES LTD,"4,782.86",29/07/2015
Delivery Units,Adults and Communities,Other Agencies - Third Party P,30086357,CARETECH COMMUNITY SERVICES LTD,"1,527.86",29/07/2015
Delivery Units,Adults and Communities,Other Agencies - Third Party P,30086358,CARETECH COMMUNITY SERVICES LTD,"7,072.43",29/07/2015
Delivery Units,Adults and Communities,Other Agencies - Third Party P,30086359,CARETECH COMMUNITY SERVICES LTD,-405.66,29/07/2015
Delivery Units,Adults and Communities,Other Agencies - Third Party P,30086360,CARETECH COMMUNITY SERVICES LTD,919.15,29/07/2015
Delivery Units,Adults and Communities,Other Agencies - Third Party P,30086400,CARETECH COMMUNITY SERVICES LTD,722.61,29/07/2015
Delivery Units,Adults and Communities,Other Agencies - Third Party P,30086401,CARETECH COMMUNITY SERVICES LTD,"4,628.03",29/07/2015
Delivery Units,Adults and Communities,Other Agencies - Third Party P,30086831,CARETECH COMMUNITY SERVICES LTD,"1,088.14",30/07/2015
Delivery Units,Adults and Communities,Other Agencies - Third Party P,30082661,CARLTON COURT (TLC GROUP),"2,144.91",02/07/2015
Delivery Units,Adults and Communities,Other Agencies - Third Party P,30082662,CARLTON COURT (TLC GROUP),"2,340.04",02/07/2015
Delivery Units,Adults and Communities,Other Agencies - Third Party P,30082663,CARLTON COURT (TLC GROUP),"2,144.91",02/07/2015
Delivery Units,Adults and Communities,Other Agencies - Third Party P,30082664,CARLTON COURT (TLC GROUP),"2,244.13",02/07/2015
Delivery Units,Adults and Communities,Other Agencies - Third Party P,30082665,CARLTON COURT (TLC GROUP),"2,487.77",02/07/2015
Delivery Units,Adults and Communities,Other Agencies - Third Party P,30082666,CARLTON COURT (TLC GROUP),"2,487.77",02/07/2015
Delivery Units,Adults and Communities,Other Agencies - Third Party P,30082667,CARLTON COURT (TLC GROUP),-543.43,02/07/2015
Delivery Units,Adults and Communities,Other Agencies - Third Party P,30082668,CARLTON COURT (TLC GROUP),"2,487.77",02/07/2015
Delivery Units,Adults and Communities,Other Agencies - Third Party P,30082671,CARLTON COURT (TLC GROUP),"2,487.77",02/07/2015
Delivery Units,Adults and Communities,Other Agencies - Third Party P,30082672,CARLTON COURT (TLC GROUP),"3,600.90",02/07/2015
Delivery Units,Adults and Communities,Other Agencies - Third Party P,30082673,CARLTON COURT (TLC GROUP),"2,487.77",02/07/2015
Delivery Units,Adults and Communities,Other Agencies - Third Party P,30082674,CARLTON COURT (TLC GROUP),"2,487.77",02/07/2015
Delivery Units,Adults and Communities,Other Agencies - Third Party P,30082675,CARLTON COURT (TLC GROUP),"2,244.13",02/07/2015
Delivery Units,Adults and Communities,Other Agencies - Third Party P,30082676,CARLTON COURT (TLC GROUP),"2,144.91",02/07/2015
Delivery Units,Adults and Communities,Other Agencies - Third Party P,30082677,CARLTON COURT (TLC GROUP),"2,340.04",02/07/2015
Delivery Units,Adults and Communities,Other Agencies - Third Party P,30082678,CARLTON COURT (TLC GROUP),"2,340.04",02/07/2015
Delivery Units,Adults and Communities,Other Agencies - Third Party P,30082679,CARLTON COURT (TLC GROUP),995.11,02/07/2015
Delivery Units,Adults and Communities,Other Agencies - Third Party P,30082680,CARLTON COURT (TLC GROUP),"2,487.77",02/07/2015
Delivery Units,Adults and Communities,Other Agencies - Third Party P,30082681,CARLTON COURT (TLC GROUP),"3,642.86",02/07/2015
Delivery Units,Adults and Communities,Other Agencies - Third Party P,30082682,CARLTON COURT (TLC GROUP),"6,786.12",02/07/2015
Delivery Units,Adults and Communities,Other Agencies - Third Party P,30083886,CARLTON COURT (TLC GROUP),"1,047.26",15/07/2015
Delivery Units,Adults and Communities,Other Agencies - Third Party P,30086469,CARLTON COURT (TLC GROUP),"2,570.70",29/07/2015
Delivery Units,Adults and Communities,Other Agencies - Third Party P,30086470,CARLTON COURT (TLC GROUP),"2,216.41",29/07/2015
Delivery Units,Adults and Communities,Other Agencies - Third Party P,30086471,CARLTON COURT (TLC GROUP),"2,418.04",29/07/2015
Delivery Units,Adults and Communities,Other Agencies - Third Party P,30086472,CARLTON COURT (TLC GROUP),"2,216.41",29/07/2015
Delivery Units,Adults and Communities,Other Agencies - Third Party P,30086473,CARLTON COURT (TLC GROUP),"2,318.93",29/07/2015
Delivery Units,Adults and Communities,Other Agencies - Third Party P,30086474,CARLTON COURT (TLC GROUP),"2,570.70",29/07/2015
Delivery Units,Adults and Communities,Other Agencies - Third Party P,30086475,CARLTON COURT (TLC GROUP),"2,570.70",29/07/2015
Delivery Units,Adults and Communities,Other Agencies - Third Party P,30086476,CARLTON COURT (TLC GROUP),"2,570.70",29/07/2015
Delivery Units,Adults and Communities,Other Agencies - Third Party P,30086477,CARLTON COURT (TLC GROUP),"2,570.69",29/07/2015
Delivery Units,Adults and Communities,Other Agencies - Third Party P,30086478,CARLTON COURT (TLC GROUP),-561.54,29/07/2015
Delivery Units,Adults and Communities,Other Agencies - Third Party P,30086479,CARLTON COURT (TLC GROUP),"2,570.70",29/07/2015
Delivery Units,Adults and Communities,Other Agencies - Third Party P,30086480,CARLTON COURT (TLC GROUP),"2,570.70",29/07/2015
Delivery Units,Adults and Communities,Other Agencies - Third Party P,30086481,CARLTON COURT (TLC GROUP),"3,321.43",29/07/2015
Delivery Units,Adults and Communities,Other Agencies - Third Party P,30086482,CARLTON COURT (TLC GROUP),"3,720.93",29/07/2015
Delivery Units,Adults and Communities,Other Agencies - Third Party P,30086483,CARLTON COURT (TLC GROUP),"2,570.70",29/07/2015
Delivery Units,Adults and Communities,Other Agencies - Third Party P,30086484,CARLTON COURT (TLC GROUP),"2,570.70",29/07/2015
Delivery Units,Adults and Communities,Other Agencies - Third Party P,30086485,CARLTON COURT (TLC GROUP),"2,318.93",29/07/2015
Delivery Units,Adults and Communities,Other Agencies - Third Party P,30086486,CARLTON COURT (TLC GROUP),"3,051.77",29/07/2015
Delivery Units,Adults and Communities,Other Agencies - Third Party P,30086487,CARLTON COURT (TLC GROUP),"2,216.41",29/07/2015
Delivery Units,Adults and Communities,Other Agencies - Third Party P,30086488,CARLTON COURT (TLC GROUP),"2,570.70",29/07/2015
Delivery Units,Adults and Communities,Other Agencies - Third Party P,30086489,CARLTON COURT (TLC GROUP),"2,418.04",29/07/2015
Delivery Units,Adults and Communities,Other Agencies - Third Party P,30086490,CARLTON COURT (TLC GROUP),"2,418.04",29/07/2015
Delivery Units,Adults and Communities,Other Agencies - Third Party P,30086491,CARLTON COURT (TLC GROUP),"3,764.29",29/07/2015
Delivery Units,Adults and Communities,Other Agencies - Third Party P,30086492,CARLTON COURT (TLC GROUP),"2,216.41",29/07/2015
Delivery Units,Adults and Communities,Other Agencies - Third Party P,30086493,CARLTON COURT (TLC GROUP),-481.08,29/07/2015
Delivery Units,Adults and Communities,Other Agencies - Third Party P,30086494,CARLTON COURT (TLC GROUP),-523.63,29/07/2015
Delivery Units,Adults and Communities,Other Agencies - Third Party P,30086495,CARLTON COURT (TLC GROUP),-746.33,29/07/2015
Delivery Units,Adults and Communities,Other Agencies - Third Party P,30082657,CARMEN LODGE RESIDENTIAL HOME,"2,651.10",02/07/2015
Delivery Units,Adults and Communities,Other Agencies - Third Party P,30084996,CARMEN LODGE RESIDENTIAL HOME,"2,739.47",24/07/2015
Delivery Units,Adults and Communities,Other Agencies - Third Party P,30083330,CATHERINE LODGE,"2,184.04",07/07/2015
Delivery Units,Adults and Communities,Other Agencies - Third Party P,30083331,CATHERINE LODGE,"2,184.04",07/07/2015
Delivery Units,Adults and Communities,Other Agencies - Third Party P,30083208,CAVENDISH RADIO CARS,856.33,06/07/2015
Delivery Units,Adults and Communities,Other Agencies - Third Party P,30083209,CAVENDISH RADIO CARS,856.33,06/07/2015
Delivery Units,Adults and Communities,Other Agencies - Third Party P,30083210,CAVENDISH RADIO CARS,901.4,06/07/2015
Delivery Units,Adults and Communities,Other Agencies - Third Party P,30082867,CEDARS NURSING HOME,"2,483.01",02/07/2015
Delivery Units,Adults and Communities,Other Agencies - Third Party P,30082868,CEDARS NURSING HOME,"2,483.01",02/07/2015
Delivery Units,Adults and Communities,Other Agencies - Third Party P,30082869,CEDARS NURSING HOME,"2,239.37",02/07/2015
Delivery Units,Adults and Communities,Other Agencies - Third Party P,30082870,CEDARS NURSING HOME,"2,277.34",02/07/2015
Delivery Units,Adults and Communities,Other Agencies - Third Party P,30082871,CEDARS NURSING HOME,"2,483.01",02/07/2015
Delivery Units,Adults and Communities,Other Agencies - Third Party P,30082872,CEDARS NURSING HOME,"2,239.37",02/07/2015
Delivery Units,Adults and Communities,Other Agencies - Third Party P,30082873,CEDARS NURSING HOME,"2,483.01",02/07/2015
Delivery Units,Adults and Communities,Other Agencies - Third Party P,30082874,CEDARS NURSING HOME,"2,277.34",02/07/2015
Delivery Units,Adults and Communities,Other Agencies - Third Party P,30083233,CEDARS NURSING HOME,"2,483.01",06/07/2015
Delivery Units,Adults and Communities,Other Agencies - Third Party P,30085103,CEDARS NURSING HOME,"2,565.78",22/07/2015
Delivery Units,Adults and Communities,Other Agencies - Third Party P,30085104,CEDARS NURSING HOME,"2,565.78",22/07/2015
Delivery Units,Adults and Communities,Other Agencies - Third Party P,30085105,CEDARS NURSING HOME,"2,565.78",22/07/2015
Delivery Units,Adults and Communities,Other Agencies - Third Party P,30085106,CEDARS NURSING HOME,"2,353.25",22/07/2015
Delivery Units,Adults and Communities,Other Agencies - Third Party P,30085107,CEDARS NURSING HOME,"2,565.78",22/07/2015
Delivery Units,Adults and Communities,Other Agencies - Third Party P,30085108,CEDARS NURSING HOME,"2,314.02",22/07/2015
Delivery Units,Adults and Communities,Other Agencies - Third Party P,30085109,CEDARS NURSING HOME,"2,565.78",22/07/2015
Delivery Units,Adults and Communities,Other Agencies - Third Party P,30085110,CEDARS NURSING HOME,"2,353.25",22/07/2015
Delivery Units,Adults and Communities,Other Agencies - Third Party P,30083479,CENTRAL MIDDLESEX SKILLS,"1,175.98",09/07/2015
Delivery Units,Adults and Communities,Other Agencies - Third Party P,30083480,CENTRAL MIDDLESEX SKILLS,723.68,09/07/2015
Delivery Units,Adults and Communities,Other Agencies - Third Party P,30082686,CHARING GARDENS LTD,"2,056.07",02/07/2015
Delivery Units,Adults and Communities,Other Agencies - Third Party P,30083609,CHARING GARDENS LTD,411.21,13/07/2015
Delivery Units,Adults and Communities,Other Agencies - Third Party P,30082729,CHATSWORTH CARE,"10,264.29",02/07/2015
Delivery Units,Adults and Communities,Other Agencies - Third Party P,30085368,CHATSWORTH CARE,"10,606.43",23/07/2015
Delivery Units,Adults and Communities,Other Agencies - Third Party P,30082721,CHEQUERS TRANSPORT LIMITED,187.88,02/07/2015
Delivery Units,Adults and Communities,Other Agencies - Third Party P,30082722,CHEQUERS TRANSPORT LIMITED,344.4,02/07/2015
Delivery Units,Adults and Communities,Other Agencies - Third Party P,30082723,CHEQUERS TRANSPORT LIMITED,88,02/07/2015
Delivery Units,Adults and Communities,Other Agencies - Third Party P,30082724,CHEQUERS TRANSPORT LIMITED,120,02/07/2015
Delivery Units,Adults and Communities,Other Agencies - Third Party P,30083211,CHEQUERS TRANSPORT LIMITED,187.88,06/07/2015
Delivery Units,Adults and Communities,Other Agencies - Third Party P,20021867,CHINGFORD KENNELS,310,10/07/2015
Delivery Units,Adults and Communities,Other Agencies - Third Party P,30082742,CHOICE CARE GROUP,"8,454.90",02/07/2015
Delivery Units,Adults and Communities,Other Agencies - Third Party P,30082743,CHOICE CARE GROUP,-344.79,02/07/2015
Delivery Units,Adults and Communities,Other Agencies - Third Party P,30085370,CHOICE CARE GROUP,"8,736.73",23/07/2015
Delivery Units,Adults and Communities,Other Agencies - Third Party P,30085371,CHOICE CARE GROUP,-356.28,23/07/2015
Delivery Units,Adults and Communities,Other Agencies - Third Party P,30086896,CLARE HOUSE NURSING HOME,"2,094.52",31/07/2015
Delivery Units,Adults and Communities,Other Agencies - Third Party P,30083234,CLOVELLY HOUSE RESID. HOME LTD,"2,600.00",06/07/2015
Delivery Units,Adults and Communities,Other Agencies - Third Party P,30083235,CLOVELLY HOUSE RESID. HOME LTD,"2,600.00",06/07/2015
Delivery Units,Adults and Communities,Other Agencies - Third Party P,30083236,CLOVELLY HOUSE RESID. HOME LTD,"2,184.04",06/07/2015
Delivery Units,Adults and Communities,Other Agencies - Third Party P,30083237,CLOVELLY HOUSE RESID. HOME LTD,"1,872.64",06/07/2015
Delivery Units,Adults and Communities,Other Agencies - Third Party P,30083238,CLOVELLY HOUSE RESID. HOME LTD,"2,600.00",06/07/2015
Delivery Units,Adults and Communities,Other Agencies - Third Party P,30083239,CLOVELLY HOUSE RESID. HOME LTD,"2,184.04",06/07/2015
Delivery Units,Adults and Communities,Other Agencies - Third Party P,30083241,CLOVELLY HOUSE RESID. HOME LTD,-713.04,06/07/2015
Delivery Units,Adults and Communities,Other Agencies - Third Party P,30083301,CLOVELLY HOUSE RESID. HOME LTD,"2,184.04",06/07/2015
Delivery Units,Adults and Communities,Other Agencies - Third Party P,30082700,COMPLETE CARE SERVICES LTD,"5,251.80",02/07/2015
Delivery Units,Adults and Communities,Other Agencies - Third Party P,30085013,COMPLETE CARE SERVICES LTD,"5,426.86",22/07/2015
Delivery Units,Adults and Communities,Other Agencies - Third Party P,30082954,CONNIFERS CARE LTD,"8,270.74",02/07/2015
Delivery Units,Adults and Communities,Other Agencies - Third Party P,30085164,CONNIFERS CARE LTD,"8,546.43",29/07/2015
Delivery Units,Adults and Communities,Other Agencies - Third Party P,30082727,CRAEGMOOR,"3,665.19",02/07/2015
Delivery Units,Adults and Communities,Other Agencies - Third Party P,30082728,CRAEGMOOR,-271.93,02/07/2015
Delivery Units,Adults and Communities,Other Agencies - Third Party P,30085840,CRAEGMOOR,"3,787.36",24/07/2015
Delivery Units,Adults and Communities,Other Agencies - Third Party P,30085841,CRAEGMOOR,-280.99,24/07/2015
Delivery Units,Adults and Communities,Other Agencies - Third Party P,30082641,CREATIVE SUPPORT LTD,577.6,02/07/2015
Delivery Units,Adults and Communities,Other Agencies - Third Party P,30084778,CRESWICK HOUSE,"10,824.51",21/07/2015
Delivery Units,Adults and Communities,Other Agencies - Third Party P,30084779,CRESWICK HOUSE,-964.98,21/07/2015
Delivery Units,Adults and Communities,Other Agencies - Third Party P,30084780,CRESWICK HOUSE,"18,273.63",21/07/2015
Delivery Units,Adults and Communities,Other Agencies - Third Party P,30084781,CRESWICK HOUSE,-964.98,21/07/2015
Delivery Units,Adults and Communities,Other Agencies - Third Party P,30084782,CRESWICK HOUSE,"21,369.36",21/07/2015
Delivery Units,Adults and Communities,Other Agencies - Third Party P,30084177,CYGNET HEALTH CARE,"5,247.64",30/07/2015
Delivery Units,Adults and Communities,Other Agencies - Third Party P,30083633,DABB PAA,"1,092.96",13/07/2015
Delivery Units,Adults and Communities,Other Agencies - Third Party P,30083634,DABB PAA,273.24,13/07/2015
Delivery Units,Adults and Communities,Other Agencies - Third Party P,30083321,DANA CARE LIMITED,"4,791.56",07/07/2015
Delivery Units,Adults and Communities,Other Agencies - Third Party P,30083322,DANA CARE LIMITED,-344.79,07/07/2015
Delivery Units,Adults and Communities,Other Agencies - Third Party P,30083324,DANA CARE LIMITED,"10,101.57",10/07/2015
Delivery Units,Adults and Communities,Other Agencies - Third Party P,30083325,DANA CARE LIMITED,-356.28,10/07/2015
Delivery Units,Adults and Communities,Other Agencies - Third Party P,30083326,DANA CARE LIMITED,"9,775.72",07/07/2015
Delivery Units,Adults and Communities,Other Agencies - Third Party P,30083327,DANA CARE LIMITED,-344.79,07/07/2015
Delivery Units,Adults and Communities,Other Agencies - Third Party P,30083339,DANA CARE LIMITED,"9,582.86",07/07/2015
Delivery Units,Adults and Communities,Other Agencies - Third Party P,30083340,DANA CARE LIMITED,"1,955.23",07/07/2015
Delivery Units,Adults and Communities,Other Agencies - Third Party P,30083341,DANA CARE LIMITED,-68.53,07/07/2015
Delivery Units,Adults and Communities,Other Agencies - Third Party P,30083342,DANA CARE LIMITED,"3,833.25",07/07/2015
Delivery Units,Adults and Communities,Other Agencies - Third Party P,30083343,DANA CARE LIMITED,-275.83,07/07/2015
Delivery Units,Adults and Communities,Other Agencies - Third Party P,30085856,DANA CARE LIMITED,"8,176.07",24/07/2015
Delivery Units,Adults and Communities,Other Agencies - Third Party P,30085857,DANA CARE LIMITED,-356.28,24/07/2015
Delivery Units,Adults and Communities,Other Agencies - Third Party P,30085895,DANA CARE LIMITED,"9,902.29",24/07/2015
Delivery Units,Adults and Communities,Other Agencies - Third Party P,30082725,DERWEN COLLEGE,"5,367.33",02/07/2015
Delivery Units,Adults and Communities,Other Agencies - Third Party P,30083218,DEVELOPMENT AND LEARNING OPPORTUNIT,652.4,06/07/2015
Delivery Units,Adults and Communities,Other Agencies - Third Party P,30083219,DEVELOPMENT AND LEARNING OPPORTUNIT,500,06/07/2015
Delivery Units,Adults and Communities,Other Agencies - Third Party P,30084022,DEVELOPMENT AND LEARNING OPPORTUNIT,908.28,16/07/2015
Delivery Units,Adults and Communities,Other Agencies - Third Party P,30084023,DEVELOPMENT AND LEARNING OPPORTUNIT,"1,056.00",16/07/2015
Delivery Units,Adults and Communities,Other Agencies - Third Party P,30084024,DEVELOPMENT AND LEARNING OPPORTUNIT,"1,518.75",16/07/2015
Delivery Units,Adults and Communities,Other Agencies - Third Party P,30084025,DEVELOPMENT AND LEARNING OPPORTUNIT,125,16/07/2015
Delivery Units,Adults and Communities,Other Agencies - Third Party P,30084026,DEVELOPMENT AND LEARNING OPPORTUNIT,163.1,16/07/2015
Delivery Units,Adults and Communities,Other Agencies - Third Party P,30084248,DEVELOPMENT AND LEARNING OPPORTUNIT,350,17/07/2015
Delivery Units,Adults and Communities,Other Agencies - Third Party P,30084800,DEVELOPMENT AND LEARNING OPPORTUNIT,908.28,21/07/2015
Delivery Units,Adults and Communities,Other Agencies - Third Party P,30084801,DEVELOPMENT AND LEARNING OPPORTUNIT,"1,056.00",21/07/2015
Delivery Units,Adults and Communities,Other Agencies - Third Party P,30083049,DILLON CARE LTD,"3,900.00",02/07/2015
Delivery Units,Adults and Communities,Other Agencies - Third Party P,30086907,DILLON CARE LTD,"3,900.00",31/07/2015
Delivery Units,Adults and Communities,Other Agencies - Third Party P,30082971,DIMENSIONS UK,"2,128.00",02/07/2015
Delivery Units,Adults and Communities,Other Agencies - Third Party P,30082976,DIMENSIONS UK,"1,541.00",02/07/2015
Delivery Units,Adults and Communities,Other Agencies - Third Party P,30083278,DIMENSIONS UK,-321.8,06/07/2015
Delivery Units,Adults and Communities,Other Agencies - Third Party P,30083279,DIMENSIONS UK,"4,840.55",06/07/2015
Delivery Units,Adults and Communities,Other Agencies - Third Party P,30083280,DIMENSIONS UK,-344.79,06/07/2015
Delivery Units,Adults and Communities,Other Agencies - Third Party P,30083281,DIMENSIONS UK,"4,495.76",06/07/2015
Delivery Units,Adults and Communities,Other Agencies - Third Party P,30083521,DIMENSIONS UK,"7,950.68",09/07/2015
Delivery Units,Adults and Communities,Other Agencies - Third Party P,30084329,DIMENSIONS UK,"1,140.00",17/07/2015
Delivery Units,Adults and Communities,Other Agencies - Third Party P,30084330,DIMENSIONS UK,"4,560.00",17/07/2015
Delivery Units,Adults and Communities,Other Agencies - Third Party P,30084333,DIMENSIONS UK,965.6,17/07/2015
Delivery Units,Adults and Communities,Other Agencies - Third Party P,30084339,DIMENSIONS UK,-321.8,17/07/2015
Delivery Units,Adults and Communities,Other Agencies - Third Party P,30084340,DIMENSIONS UK,"4,817.56",17/07/2015
Delivery Units,Adults and Communities,Other Agencies - Third Party P,30084341,DIMENSIONS UK,-321.8,17/07/2015
Delivery Units,Adults and Communities,Other Agencies - Third Party P,30084342,DIMENSIONS UK,"4,495.76",17/07/2015
Delivery Units,Adults and Communities,Other Agencies - Third Party P,30084343,DIMENSIONS UK,149.6,17/07/2015
Delivery Units,Adults and Communities,Other Agencies - Third Party P,30084835,DIMENSIONS UK,224.4,21/07/2015
Delivery Units,Adults and Communities,Other Agencies - Third Party P,30084836,DIMENSIONS UK,149.6,21/07/2015
Delivery Units,Adults and Communities,Other Agencies - Third Party P,30084837,DIMENSIONS UK,224.4,21/07/2015
Delivery Units,Adults and Communities,Other Agencies - Third Party P,30084838,DIMENSIONS UK,149.6,21/07/2015
Delivery Units,Adults and Communities,Other Agencies - Third Party P,30084839,DIMENSIONS UK,149.6,21/07/2015
Delivery Units,Adults and Communities,Other Agencies - Third Party P,30084840,DIMENSIONS UK,149.6,21/07/2015
Delivery Units,Adults and Communities,Other Agencies - Third Party P,30084841,DIMENSIONS UK,74.8,21/07/2015
Delivery Units,Adults and Communities,Other Agencies - Third Party P,30084842,DIMENSIONS UK,149.6,21/07/2015
Delivery Units,Adults and Communities,Other Agencies - Third Party P,30084843,DIMENSIONS UK,74.8,21/07/2015
Delivery Units,Adults and Communities,Other Agencies - Third Party P,30084844,DIMENSIONS UK,149.6,21/07/2015
Delivery Units,Adults and Communities,Other Agencies - Third Party P,30084845,DIMENSIONS UK,149.6,21/07/2015
Delivery Units,Adults and Communities,Other Agencies - Third Party P,30084846,DIMENSIONS UK,149.6,21/07/2015
Delivery Units,Adults and Communities,Other Agencies - Third Party P,30084847,DIMENSIONS UK,149.6,21/07/2015
Delivery Units,Adults and Communities,Other Agencies - Third Party P,30084848,DIMENSIONS UK,149.6,21/07/2015
Delivery Units,Adults and Communities,Other Agencies - Third Party P,30084849,DIMENSIONS UK,74.8,21/07/2015
Delivery Units,Adults and Communities,Other Agencies - Third Party P,30084850,DIMENSIONS UK,523.6,21/07/2015
Delivery Units,Adults and Communities,Other Agencies - Third Party P,30084851,DIMENSIONS UK,224.4,21/07/2015
Delivery Units,Adults and Communities,Other Agencies - Third Party P,30084853,DIMENSIONS UK,149.6,21/07/2015
Delivery Units,Adults and Communities,Other Agencies - Third Party P,30084854,DIMENSIONS UK,448.8,21/07/2015
Delivery Units,Adults and Communities,Other Agencies - Third Party P,30084855,DIMENSIONS UK,149.6,21/07/2015
Delivery Units,Adults and Communities,Other Agencies - Third Party P,30084856,DIMENSIONS UK,112.2,21/07/2015
Delivery Units,Adults and Communities,Other Agencies - Third Party P,30084857,DIMENSIONS UK,149.6,21/07/2015
Delivery Units,Adults and Communities,Other Agencies - Third Party P,30084858,DIMENSIONS UK,74.8,21/07/2015
Delivery Units,Adults and Communities,Other Agencies - Third Party P,30084859,DIMENSIONS UK,149.6,21/07/2015
Delivery Units,Adults and Communities,Other Agencies - Third Party P,30084860,DIMENSIONS UK,149.6,21/07/2015
Delivery Units,Adults and Communities,Other Agencies - Third Party P,30084861,DIMENSIONS UK,299.2,21/07/2015
Delivery Units,Adults and Communities,Other Agencies - Third Party P,30085168,DIMENSIONS UK,"2,128.00",22/07/2015
Delivery Units,Adults and Communities,Other Agencies - Third Party P,30085967,DIMENSIONS UK,"1,541.00",24/07/2015
Delivery Units,Adults and Communities,Other Agencies - Third Party P,30086826,DIMENSIONS UK,"1,196.80",30/07/2015
Delivery Units,Adults and Communities,Other Agencies - Third Party P,30086827,DIMENSIONS UK,"1,870.00",30/07/2015
Delivery Units,Adults and Communities,Other Agencies - Third Party P,30086828,DIMENSIONS UK,"1,570.80",30/07/2015
Delivery Units,Adults and Communities,Other Agencies - Third Party P,30086829,DIMENSIONS UK,"1,870.00",30/07/2015
Delivery Units,Adults and Communities,Other Agencies - Third Party P,30086830,DIMENSIONS UK,"1,570.80",30/07/2015
Delivery Units,Adults and Communities,Other Agencies - Third Party P,30084001,EASTSIDE HOUSE RESIDENTIAL CARE HOM,"2,001.92",17/07/2015
Delivery Units,Adults and Communities,Other Agencies - Third Party P,30086462,EASTSIDE HOUSE RESIDENTIAL CARE HOM,"2,001.92",31/07/2015
Delivery Units,Adults and Communities,Other Agencies - Third Party P,30085369,ELEANOR PALMER TRUST NO 2 A/C.,"2,184.04",23/07/2015
Delivery Units,Adults and Communities,Other Agencies - Third Party P,30085001,ELIZABETH FITZROY SUPPORT,-356.28,22/07/2015
Delivery Units,Adults and Communities,Other Agencies - Third Party P,30085043,ELIZABETH FITZROY SUPPORT,-356.28,22/07/2015
Delivery Units,Adults and Communities,Other Agencies - Third Party P,30086879,ELIZABETH FITZROY SUPPORT,-344.79,31/07/2015
Delivery Units,Adults and Communities,Other Agencies - Third Party P,30086894,ELIZABETH FITZROY SUPPORT,-344.79,31/07/2015
Delivery Units,Adults and Communities,Other Agencies - Third Party P,30082923,ELIZABETH HOUSE,"2,340.04",02/07/2015
Delivery Units,Adults and Communities,Other Agencies - Third Party P,30085908,ELM PARK LODGE,"3,166.43",24/07/2015
Delivery Units,Adults and Communities,Other Agencies - Third Party P,30085909,ELM PARK LODGE,-559.32,24/07/2015
Delivery Units,Adults and Communities,Other Agencies - Third Party P,30085933,ELM PARK LODGE,"2,103.31",24/07/2015
Delivery Units,Adults and Communities,Other Agencies - Third Party P,30085992,ELM PARK LODGE,"2,103.31",24/07/2015
Delivery Units,Adults and Communities,Other Agencies - Third Party P,30085993,ELM PARK LODGE,-559.33,24/07/2015
Delivery Units,Adults and Communities,Other Agencies - Third Party P,30086261,ELM PARK LODGE,"1,767.54",31/07/2015
Delivery Units,Adults and Communities,Other Agencies - Third Party P,30086263,ELM PARK LODGE,"3,192.86",31/07/2015
Delivery Units,Adults and Communities,Other Agencies - Third Party P,30086275,ELM PARK LODGE,"3,064.29",28/07/2015
Delivery Units,Adults and Communities,Other Agencies - Third Party P,30086276,ELM PARK LODGE,-541.29,28/07/2015
Delivery Units,Adults and Communities,Other Agencies - Third Party P,30086277,ELM PARK LODGE,"3,520.71",28/07/2015
Delivery Units,Adults and Communities,Other Agencies - Third Party P,30086279,ELM PARK LODGE,"3,407.14",31/07/2015
Delivery Units,Adults and Communities,Other Agencies - Third Party P,30086291,ELM PARK LODGE,"3,496.33",31/07/2015
Delivery Units,Adults and Communities,Other Agencies - Third Party P,30086292,ELM PARK LODGE,"2,035.46",31/07/2015
Delivery Units,Adults and Communities,Other Agencies - Third Party P,30086293,ELM PARK LODGE,"1,700.00",31/07/2015
Delivery Units,Adults and Communities,Other Agencies - Third Party P,30086295,ELM PARK LODGE,"3,321.43",31/07/2015
Delivery Units,Adults and Communities,Other Agencies - Third Party P,30086297,ELM PARK LODGE,"2,092.11",31/07/2015
Delivery Units,Adults and Communities,Other Agencies - Third Party P,30086298,ELM PARK LODGE,"3,278.57",31/07/2015
Delivery Units,Adults and Communities,Other Agencies - Third Party P,30086300,ELM PARK LODGE,"3,107.14",31/07/2015
Delivery Units,Adults and Communities,Other Agencies - Third Party P,30086301,ELM PARK LODGE,"24,025.00",31/07/2015
Delivery Units,Adults and Communities,Other Agencies - Third Party P,30086302,ELM PARK LODGE,"3,278.57",31/07/2015
Delivery Units,Adults and Communities,Other Agencies - Third Party P,30086361,ELM PARK LODGE,"1,899.76",31/07/2015
Delivery Units,Adults and Communities,Other Agencies - Third Party P,30086362,ELM PARK LODGE,-495.8,31/07/2015
Delivery Units,Adults and Communities,Other Agencies - Third Party P,30086363,ELM PARK LODGE,"2,035.46",31/07/2015
Delivery Units,Adults and Communities,Other Agencies - Third Party P,30086364,ELM PARK LODGE,-541.29,31/07/2015
Delivery Units,Adults and Communities,Other Agencies - Third Party P,30086365,ELM PARK LODGE,"3,344.14",31/07/2015
Delivery Units,Adults and Communities,Other Agencies - Third Party P,30086398,ELM PARK LODGE,"3,496.33",31/07/2015
Delivery Units,Adults and Communities,Other Agencies - Third Party P,30086657,ELM PARK LODGE,"13,114.29",29/07/2015
Delivery Units,Adults and Communities,Other Agencies - Third Party P,30084762,ELMHURST RESIDENTIAL HOME,"7,098.13",21/07/2015
Delivery Units,Adults and Communities,Other Agencies - Third Party P,30084763,ELMHURST RESIDENTIAL HOME,"7,098.13",21/07/2015
Delivery Units,Adults and Communities,Other Agencies - Third Party P,30084764,ELMHURST RESIDENTIAL HOME,"7,475.00",21/07/2015
Delivery Units,Adults and Communities,Other Agencies - Third Party P,30084765,ELMHURST RESIDENTIAL HOME,"7,098.13",21/07/2015
Delivery Units,Adults and Communities,Other Agencies - Third Party P,30084776,ELMHURST RESIDENTIAL HOME,"7,150.00",21/07/2015
Delivery Units,Adults and Communities,Other Agencies - Third Party P,30084777,ELMHURST RESIDENTIAL HOME,"7,098.13",21/07/2015
Delivery Units,Adults and Communities,Other Agencies - Third Party P,30085284,ELMHURST RESIDENTIAL HOME,"23,121.43",23/07/2015
Delivery Units,Adults and Communities,Other Agencies - Third Party P,30085287,ELMHURST RESIDENTIAL HOME,"7,098.13",23/07/2015
Delivery Units,Adults and Communities,Other Agencies - Third Party P,30085926,EMMAUS HOUSE,"2,184.04",24/07/2015
Delivery Units,Adults and Communities,Other Agencies - Third Party P,30082791,FERNBANK NURSING HOME.,"2,244.00",02/07/2015
Delivery Units,Adults and Communities,Other Agencies - Third Party P,30082792,FERNBANK NURSING HOME.,"2,244.00",02/07/2015
Delivery Units,Adults and Communities,Other Agencies - Third Party P,30082793,FERNBANK NURSING HOME.,"2,244.00",02/07/2015
Delivery Units,Adults and Communities,Other Agencies - Third Party P,30082794,FERNBANK NURSING HOME.,"1,122.00",02/07/2015
Delivery Units,Adults and Communities,Other Agencies - Third Party P,30082795,FERNBANK NURSING HOME.,"2,244.00",02/07/2015
Delivery Units,Adults and Communities,Other Agencies - Third Party P,30082796,FERNBANK NURSING HOME.,"2,244.00",02/07/2015
Delivery Units,Adults and Communities,Other Agencies - Third Party P,30082797,FERNBANK NURSING HOME.,"2,244.00",02/07/2015
Delivery Units,Adults and Communities,Other Agencies - Third Party P,30082798,FERNBANK NURSING HOME.,"1,496.00",02/07/2015
Delivery Units,Adults and Communities,Other Agencies - Third Party P,30082799,FERNBANK NURSING HOME.,"2,244.00",02/07/2015
Delivery Units,Adults and Communities,Other Agencies - Third Party P,30082800,FERNBANK NURSING HOME.,"2,487.60",02/07/2015
Delivery Units,Adults and Communities,Other Agencies - Third Party P,30085441,FERNBANK NURSING HOME.,"2,318.80",23/07/2015
Delivery Units,Adults and Communities,Other Agencies - Third Party P,30085442,FERNBANK NURSING HOME.,"2,318.80",23/07/2015
Delivery Units,Adults and Communities,Other Agencies - Third Party P,30085443,FERNBANK NURSING HOME.,"2,318.80",23/07/2015
Delivery Units,Adults and Communities,Other Agencies - Third Party P,30085444,FERNBANK NURSING HOME.,"2,318.80",23/07/2015
Delivery Units,Adults and Communities,Other Agencies - Third Party P,30085445,FERNBANK NURSING HOME.,"2,318.80",23/07/2015
Delivery Units,Adults and Communities,Other Agencies - Third Party P,30085446,FERNBANK NURSING HOME.,"2,318.80",23/07/2015
Delivery Units,Adults and Communities,Other Agencies - Third Party P,30085447,FERNBANK NURSING HOME.,"2,318.80",23/07/2015
Delivery Units,Adults and Communities,Other Agencies - Third Party P,30085448,FERNBANK NURSING HOME.,"2,318.80",23/07/2015
Delivery Units,Adults and Communities,Other Agencies - Third Party P,30085449,FERNBANK NURSING HOME.,"2,570.52",23/07/2015
Delivery Units,Adults and Communities,Other Agencies - Third Party P,30082789,FINBOND LIMITED,"2,144.91",02/07/2015
Delivery Units,Adults and Communities,Other Agencies - Third Party P,30082790,FINBOND LIMITED,"2,340.04",10/07/2015
Delivery Units,Adults and Communities,Other Agencies - Third Party P,30085058,FINBOND LIMITED,"2,418.04",22/07/2015
Delivery Units,Adults and Communities,Other Agencies - Third Party P,30085059,FINBOND LIMITED,"2,657.14",22/07/2015
Delivery Units,Adults and Communities,Other Agencies - Third Party P,30085060,FINBOND LIMITED,"2,216.41",22/07/2015
Delivery Units,Adults and Communities,Other Agencies - Third Party P,30081609,FLAGSWAN TWO LTD,-436,15/07/2015
Delivery Units,Adults and Communities,Other Agencies - Third Party P,30083990,FLAGSWAN TWO LTD,"2,464.29",15/07/2015
Delivery Units,Adults and Communities,Other Agencies - Third Party P,30083359,FOUR SEASONS HEALTH CARE,"2,086.20",07/07/2015
Delivery Units,Adults and Communities,Other Agencies - Third Party P,30083363,FOUR SEASONS HEALTH CARE,"2,090.56",07/07/2015
Delivery Units,Adults and Communities,Other Agencies - Third Party P,30083978,FOUR SEASONS HEALTH CARE,"2,443.32",15/07/2015
Delivery Units,Adults and Communities,Other Agencies - Third Party P,30083979,FOUR SEASONS HEALTH CARE,"2,085.68",15/07/2015
Delivery Units,Adults and Communities,Other Agencies - Third Party P,30083980,FOUR SEASONS HEALTH CARE,"2,085.68",15/07/2015
Delivery Units,Adults and Communities,Other Agencies - Third Party P,30083981,FOUR SEASONS HEALTH CARE,"2,123.48",15/07/2015
Delivery Units,Adults and Communities,Other Agencies - Third Party P,30083982,FOUR SEASONS HEALTH CARE,"2,313.08",15/07/2015
Delivery Units,Adults and Communities,Other Agencies - Third Party P,30083983,FOUR SEASONS HEALTH CARE,"2,085.68",15/07/2015
Delivery Units,Adults and Communities,Other Agencies - Third Party P,30083984,FOUR SEASONS HEALTH CARE,"1,496.09",15/07/2015
Delivery Units,Adults and Communities,Other Agencies - Third Party P,30083985,FOUR SEASONS HEALTH CARE,"2,313.08",15/07/2015
Delivery Units,Adults and Communities,Other Agencies - Third Party P,30083986,FOUR SEASONS HEALTH CARE,"2,090.08",15/07/2015
Delivery Units,Adults and Communities,Other Agencies - Third Party P,30083987,FOUR SEASONS HEALTH CARE,"2,321.92",15/07/2015
Delivery Units,Adults and Communities,Other Agencies - Third Party P,30083988,FOUR SEASONS HEALTH CARE,"2,085.68",15/07/2015
Delivery Units,Adults and Communities,Other Agencies - Third Party P,30083989,FOUR SEASONS HEALTH CARE,"2,090.08",15/07/2015
Delivery Units,Adults and Communities,Other Agencies - Third Party P,30084148,FOUR SEASONS HEALTH CARE,"2,090.08",16/07/2015
Delivery Units,Adults and Communities,Other Agencies - Third Party P,30084149,FOUR SEASONS HEALTH CARE,"2,085.72",16/07/2015
Delivery Units,Adults and Communities,Other Agencies - Third Party P,30084319,FOUR SEASONS HEALTH CARE,"1,213.42",17/07/2015
Delivery Units,Adults and Communities,Other Agencies - Third Party P,30084320,FOUR SEASONS HEALTH CARE,"1,102.06",17/07/2015
Delivery Units,Adults and Communities,Other Agencies - Third Party P,30084321,FOUR SEASONS HEALTH CARE,"1,191.82",17/07/2015
Delivery Units,Adults and Communities,Other Agencies - Third Party P,30084322,FOUR SEASONS HEALTH CARE,"1,085.86",17/07/2015
Delivery Units,Adults and Communities,Other Agencies - Third Party P,30084323,FOUR SEASONS HEALTH CARE,"2,090.08",17/07/2015
Delivery Units,Adults and Communities,Other Agencies - Third Party P,30084829,FOUR SEASONS HEALTH CARE,"28,741.85",21/07/2015
Delivery Units,Adults and Communities,Other Agencies - Third Party P,30084830,FOUR SEASONS HEALTH CARE,"-5,145.46",21/07/2015
Delivery Units,Adults and Communities,Other Agencies - Third Party P,30086885,FOUR SEASONS HEALTH CARE (NO.4) LTD,"2,004.00",31/07/2015
Delivery Units,Adults and Communities,Other Agencies - Third Party P,30083293,FREEWAYS TRUST LIMITED,829.8,06/07/2015
Delivery Units,Adults and Communities,Other Agencies - Third Party P,30084175,FREEWAYS TRUST LIMITED,"2,979.76",16/07/2015
Delivery Units,Adults and Communities,Other Agencies - Third Party P,30084176,FREEWAYS TRUST LIMITED,-890.2,16/07/2015
Delivery Units,Adults and Communities,Other Agencies - Third Party P,30083515,FREMANTLE TRUST,"25,544.64",09/07/2015
Delivery Units,Adults and Communities,Other Agencies - Third Party P,30083516,FREMANTLE TRUST,"-2,567.10",09/07/2015
Delivery Units,Adults and Communities,Other Agencies - Third Party P,30083517,FREMANTLE TRUST,"28,931.24",09/07/2015
Delivery Units,Adults and Communities,Other Agencies - Third Party P,30083518,FREMANTLE TRUST,"-2,425.05",09/07/2015
Delivery Units,Adults and Communities,Other Agencies - Third Party P,30083680,FREMANTLE TRUST,"3,483.36",13/07/2015
Delivery Units,Adults and Communities,Other Agencies - Third Party P,30083681,FREMANTLE TRUST,-201.6,13/07/2015
Delivery Units,Adults and Communities,Other Agencies - Third Party P,30086800,FREMANTLE TRUST,"2,289.00",30/07/2015
Delivery Units,Adults and Communities,Other Agencies - Third Party P,30082388,FRIARY LODGE,"2,340.04",03/07/2015
Delivery Units,Adults and Communities,Other Agencies - Third Party P,30082687,FRIARY LODGE,"2,340.04",03/07/2015
Delivery Units,Adults and Communities,Other Agencies - Third Party P,30082689,FRIARY LODGE,"2,144.91",03/07/2015
Delivery Units,Adults and Communities,Other Agencies - Third Party P,30082779,FRIARY LODGE,"2,340.04",03/07/2015
Delivery Units,Adults and Communities,Other Agencies - Third Party P,30086655,FRIERN RESIDENTIAL CARE HOME,"2,103.30",29/07/2015
Delivery Units,Adults and Communities,Other Agencies - Third Party P,30086656,FRIERN RESIDENTIAL CARE HOME,"3,985.71",29/07/2015
Delivery Units,Adults and Communities,Other Agencies - Third Party P,30084135,GENTLE HANDS CARE AGENCY,520,16/07/2015
Delivery Units,Adults and Communities,Other Agencies - Third Party P,30084136,GENTLE HANDS CARE AGENCY,520,16/07/2015
Delivery Units,Adults and Communities,Other Agencies - Third Party P,30084137,GENTLE HANDS CARE AGENCY,"1,400.00",16/07/2015
Delivery Units,Adults and Communities,Other Agencies - Third Party P,30084134,GENTLE HANDS CARE HOMES LIMITED,"4,394.00",16/07/2015
Delivery Units,Adults and Communities,Other Agencies - Third Party P,30084000,GLEBELANDS,"12,000.00",16/07/2015
Delivery Units,Adults and Communities,Other Agencies - Third Party P,30082878,GLENHOLME PSYCHIATRIC AFTER CARE HO,"3,964.89",02/07/2015
Delivery Units,Adults and Communities,Other Agencies - Third Party P,30082947,GLENHOLME PSYCHIATRIC AFTER CARE HO,"3,857.57",02/07/2015
Delivery Units,Adults and Communities,Other Agencies - Third Party P,30083064,GLENHOLME PSYCHIATRIC AFTER CARE HO,"4,071.43",02/07/2015
Delivery Units,Adults and Communities,Other Agencies - Third Party P,30085115,GLENHOLME PSYCHIATRIC AFTER CARE HO,"4,097.05",22/07/2015
Delivery Units,Adults and Communities,Other Agencies - Third Party P,30085163,GLENHOLME PSYCHIATRIC AFTER CARE HO,"3,986.16",22/07/2015
Delivery Units,Adults and Communities,Other Agencies - Third Party P,30085188,GLENHOLME PSYCHIATRIC AFTER CARE HO,"4,207.14",22/07/2015
Delivery Units,Adults and Communities,Other Agencies - Third Party P,30084002,GLOUCESTERSHIRE GROUP HOMES,"4,054.03",16/07/2015
Delivery Units,Adults and Communities,Other Agencies - Third Party P,30084003,GLOUCESTERSHIRE GROUP HOMES,-796.76,16/07/2015
Delivery Units,Adults and Communities,Other Agencies - Third Party P,30084997,GLOUCESTERSHIRE GROUP HOMES,"4,189.16",22/07/2015
Delivery Units,Adults and Communities,Other Agencies - Third Party P,30084998,GLOUCESTERSHIRE GROUP HOMES,-823.32,22/07/2015
Delivery Units,Adults and Communities,Other Agencies - Third Party P,30082734,GREENFIELDS RESIDENTIAL HOME,"2,144.91",02/07/2015
Delivery Units,Adults and Communities,Other Agencies - Third Party P,30082735,GREENFIELDS RESIDENTIAL HOME,-840.04,02/07/2015
Delivery Units,Adults and Communities,Other Agencies - Third Party P,30085843,GREENFIELDS RESIDENTIAL HOME,"2,216.41",24/07/2015
Delivery Units,Adults and Communities,Other Agencies - Third Party P,30085844,GREENFIELDS RESIDENTIAL HOME,-868.04,24/07/2015
Delivery Units,Adults and Communities,Other Agencies - Third Party P,30085959,GROVEWELL ESTATES LTD,"2,184.04",24/07/2015
Delivery Units,Adults and Communities,Other Agencies - Third Party P,30078413,H.C.S. (ENFIELD) LTD,-160.67,02/07/2015
Delivery Units,Adults and Communities,Other Agencies - Third Party P,30079626,H.C.S. (ENFIELD) LTD,-2.53,02/07/2015
Delivery Units,Adults and Communities,Other Agencies - Third Party P,30079628,H.C.S. (ENFIELD) LTD,-2.45,02/07/2015
Delivery Units,Adults and Communities,Other Agencies - Third Party P,30082684,H.C.S. (ENFIELD) LTD,"5,101.71",02/07/2015
Delivery Units,Adults and Communities,Other Agencies - Third Party P,30082685,H.C.S. (ENFIELD) LTD,-342.21,02/07/2015
Delivery Units,Adults and Communities,Other Agencies - Third Party P,30083070,HARDEN,"4,343.12",02/07/2015
Delivery Units,Adults and Communities,Other Agencies - Third Party P,30086666,HARDEN,"4,343.12",29/07/2015
Delivery Units,Adults and Communities,Other Agencies - Third Party P,30082726,HARTWIG CARE LIMITED,382.56,02/07/2015
Delivery Units,Adults and Communities,Other Agencies - Third Party P,30083256,HARTWIG CARE LIMITED,790.58,06/07/2015
Delivery Units,Adults and Communities,Other Agencies - Third Party P,30083475,HARTWIG CARE LIMITED,232.9,09/07/2015
Delivery Units,Adults and Communities,Other Agencies - Third Party P,30083478,HARTWIG CARE LIMITED,330.98,09/07/2015
Delivery Units,Adults and Communities,Other Agencies - Third Party P,30085941,HARTWIG CARE LIMITED,"1,038.62",24/07/2015
Delivery Units,Adults and Communities,Other Agencies - Third Party P,30085942,HARTWIG CARE LIMITED,935.04,24/07/2015
Delivery Units,Adults and Communities,Other Agencies - Third Party P,30083469,HEADWAY EAST LONDON,376.08,29/07/2015
Delivery Units,Adults and Communities,Other Agencies - Third Party P,30083470,HEADWAY EAST LONDON,340,29/07/2015
Delivery Units,Adults and Communities,Other Agencies - Third Party P,30083471,HEADWAY EAST LONDON,340,29/07/2015
Delivery Units,Adults and Communities,Other Agencies - Third Party P,30083194,HENRY NIHILL HOUSE,"2,002.60",10/07/2015
Delivery Units,Adults and Communities,Other Agencies - Third Party P,30083195,HENRY NIHILL HOUSE,-505.2,10/07/2015
Delivery Units,Adults and Communities,Other Agencies - Third Party P,30083196,HENRY NIHILL HOUSE,"2,321.92",10/07/2015
Delivery Units,Adults and Communities,Other Agencies - Third Party P,30085349,HENRY NIHILL HOUSE,"2,002.60",29/07/2015
Delivery Units,Adults and Communities,Other Agencies - Third Party P,30085350,HENRY NIHILL HOUSE,-505.2,29/07/2015
Delivery Units,Adults and Communities,Other Agencies - Third Party P,30086877,HENRY NIHILL HOUSE,"2,184.00",31/07/2015
Delivery Units,Adults and Communities,Other Agencies - Third Party P,30083887,HIGH GABLE HOUSE,"3,060.00",15/07/2015
Delivery Units,Adults and Communities,Other Agencies - Third Party P,30083888,HIGH GABLE HOUSE,-505.2,15/07/2015
Delivery Units,Adults and Communities,Other Agencies - Third Party P,30083889,HIGH GABLE HOUSE,"3,060.00",15/07/2015
Delivery Units,Adults and Communities,Other Agencies - Third Party P,30083890,HIGH GABLE HOUSE,-505.2,15/07/2015
Delivery Units,Adults and Communities,Other Agencies - Third Party P,30083891,HIGH GABLE HOUSE,"3,060.00",15/07/2015
Delivery Units,Adults and Communities,Other Agencies - Third Party P,30083892,HIGH GABLE HOUSE,-505.2,15/07/2015
Delivery Units,Adults and Communities,Other Agencies - Third Party P,30082733,HILLGREEN CARE LTD,"6,864.42",02/07/2015
Delivery Units,Adults and Communities,Other Agencies - Third Party P,30086788,HILLGREEN CARE LTD,"7,093.24",30/07/2015
Delivery Units,Adults and Communities,Other Agencies - Third Party P,30086036,HILLVIEW COURT NURSING HOME,"4,200.00",27/07/2015
Delivery Units,Adults and Communities,Other Agencies - Third Party P,30086037,HILLVIEW COURT NURSING HOME,-321.2,27/07/2015
Delivery Units,Adults and Communities,Other Agencies - Third Party P,30083245,HILTON LODGE LTD.,"2,181.52",06/07/2015
Delivery Units,Adults and Communities,Other Agencies - Third Party P,30083246,HILTON LODGE LTD.,-578.8,06/07/2015
Delivery Units,Adults and Communities,Other Agencies - Third Party P,30083247,HILTON LODGE LTD.,"2,184.04",06/07/2015
Delivery Units,Adults and Communities,Other Agencies - Third Party P,30083248,HILTON LODGE LTD.,-783.2,06/07/2015
Delivery Units,Adults and Communities,Other Agencies - Third Party P,30083250,HILTON LODGE LTD.,"1,248.02",06/07/2015
Delivery Units,Adults and Communities,Other Agencies - Third Party P,30083257,HILTON LODGE LTD.,"2,184.04",06/07/2015
Delivery Units,Adults and Communities,Other Agencies - Third Party P,30083261,HILTON LODGE LTD.,"2,184.04",06/07/2015
Delivery Units,Adults and Communities,Other Agencies - Third Party P,30083262,HILTON LODGE LTD.,"2,256.04",06/07/2015
Delivery Units,Adults and Communities,Other Agencies - Third Party P,30083263,HILTON LODGE LTD.,"2,184.04",06/07/2015
Delivery Units,Adults and Communities,Other Agencies - Third Party P,30083264,HILTON LODGE LTD.,"2,184.04",06/07/2015
Delivery Units,Adults and Communities,Other Agencies - Third Party P,30083299,HILTON LODGE LTD.,"2,184.04",06/07/2015
Delivery Units,Adults and Communities,Other Agencies - Third Party P,30083300,HILTON LODGE LTD.,"2,184.04",06/07/2015
Delivery Units,Adults and Communities,Other Agencies - Third Party P,30083671,HILTON LODGE LTD.,"2,181.52",13/07/2015
Delivery Units,Adults and Communities,Other Agencies - Third Party P,30083672,HILTON LODGE LTD.,-578.8,13/07/2015
Delivery Units,Adults and Communities,Other Agencies - Third Party P,30083673,HILTON LODGE LTD.,"2,184.04",13/07/2015
Delivery Units,Adults and Communities,Other Agencies - Third Party P,30083674,HILTON LODGE LTD.,-783.2,13/07/2015
Delivery Units,Adults and Communities,Other Agencies - Third Party P,30083679,HILTON LODGE LTD.,"2,184.04",13/07/2015
Delivery Units,Adults and Communities,Other Agencies - Third Party P,30083682,HILTON LODGE LTD.,"2,184.04",13/07/2015
Delivery Units,Adults and Communities,Other Agencies - Third Party P,30083683,HILTON LODGE LTD.,"2,256.04",13/07/2015
Delivery Units,Adults and Communities,Other Agencies - Third Party P,30083684,HILTON LODGE LTD.,"2,184.04",13/07/2015
Delivery Units,Adults and Communities,Other Agencies - Third Party P,30083687,HILTON LODGE LTD.,"2,184.04",13/07/2015
Delivery Units,Adults and Communities,Other Agencies - Third Party P,30083688,HILTON LODGE LTD.,"2,184.04",13/07/2015
Delivery Units,Adults and Communities,Other Agencies - Third Party P,30083717,HILTON LODGE LTD.,"2,184.04",13/07/2015
Delivery Units,Adults and Communities,Other Agencies - Third Party P,30083718,HILTON LODGE LTD.,"2,184.04",13/07/2015
Delivery Units,Adults and Communities,Other Agencies - Third Party P,30083361,HOLLY HOUSE,"1,748.60",07/07/2015
Delivery Units,Adults and Communities,Other Agencies - Third Party P,30083362,HOLLY HOUSE,"1,748.60",07/07/2015
Delivery Units,Adults and Communities,Other Agencies - Third Party P,20021741,HOLLY HOUSE RESIDENTIAL CARE HOME,"3,421.02",07/07/2015
Delivery Units,Adults and Communities,Other Agencies - Third Party P,30083224,HOME FARM TRUST LTD,"8,034.76",07/07/2015
Delivery Units,Adults and Communities,Other Agencies - Third Party P,30083225,HOME FARM TRUST LTD,-321.8,07/07/2015
Delivery Units,Adults and Communities,Other Agencies - Third Party P,30083226,HOME FARM TRUST LTD,"2,657.40",07/07/2015
Delivery Units,Adults and Communities,Other Agencies - Third Party P,30083227,HOME FARM TRUST LTD,-321.8,07/07/2015
Delivery Units,Adults and Communities,Other Agencies - Third Party P,30083719,HOME FROM HOME CARE LTD,"9,769.00",13/07/2015
Delivery Units,Adults and Communities,Other Agencies - Third Party P,30083720,HOME FROM HOME CARE LTD,-350.6,13/07/2015
Delivery Units,Adults and Communities,Other Agencies - Third Party P,30082847,HONISTER RESIDENTIAL CARE LTD,"2,340.04",02/07/2015
Delivery Units,Adults and Communities,Other Agencies - Third Party P,30086027,HOUSE MARTINS CARE LTD,"45,624.32",31/07/2015
Delivery Units,Adults and Communities,Other Agencies - Third Party P,30086028,HOUSE MARTINS CARE LTD,"-3,477.80",31/07/2015
Delivery Units,Adults and Communities,Other Agencies - Third Party P,30082328,HOUSING 21 (BARNET),-164,22/07/2015
Delivery Units,Adults and Communities,Other Agencies - Third Party P,30083242,HOUSING 21 (BARNET),-164,22/07/2015
Delivery Units,Adults and Communities,Other Agencies - Third Party P,30085113,HOUSING 21 (BARNET),-164,22/07/2015
Delivery Units,Adults and Communities,Other Agencies - Third Party P,30085922,HOUSING 21 (BARNET),-164,24/07/2015
Delivery Units,Adults and Communities,Other Agencies - Third Party P,30086286,HOUSING 21 (BARNET),-164,28/07/2015
Delivery Units,Adults and Communities,Other Agencies - Third Party P,30086287,HOUSING 21 (BARNET),-164,28/07/2015
Delivery Units,Adults and Communities,Other Agencies - Third Party P,30083056,HUSKARDS NEW CARE LTD,"2,145.00",02/07/2015
Delivery Units,Adults and Communities,Other Agencies - Third Party P,30085183,HUSKARDS NEW CARE LTD,"2,216.50",22/07/2015
Delivery Units,Adults and Communities,Other Agencies - Third Party P,30084774,INDEPENDENCE HOMES LIMITED,"2,900.00",21/07/2015
Delivery Units,Adults and Communities,Other Agencies - Third Party P,30084775,INDEPENDENCE HOMES LIMITED,"5,400.00",21/07/2015
Delivery Units,Adults and Communities,Other Agencies - Third Party P,30084993,INDIVIDUALISED CARE LIMITED,"1,000.00",22/07/2015
Delivery Units,Adults and Communities,Other Agencies - Third Party P,30084994,INDIVIDUALISED CARE LIMITED,"2,400.00",22/07/2015
Delivery Units,Adults and Communities,Other Agencies - Third Party P,30085288,INDIVIDUALISED CARE LIMITED,712,23/07/2015
Delivery Units,Adults and Communities,Other Agencies - Third Party P,30085289,INDIVIDUALISED CARE LIMITED,270,23/07/2015
Delivery Units,Adults and Communities,Other Agencies - Third Party P,30085290,INDIVIDUALISED CARE LIMITED,"1,155.00",23/07/2015
Delivery Units,Adults and Communities,Other Agencies - Third Party P,30085291,INDIVIDUALISED CARE LIMITED,"1,800.00",23/07/2015
Delivery Units,Adults and Communities,Other Agencies - Third Party P,30085292,INDIVIDUALISED CARE LIMITED,712,23/07/2015
Delivery Units,Adults and Communities,Other Agencies - Third Party P,30085293,INDIVIDUALISED CARE LIMITED,"1,256.00",23/07/2015
Delivery Units,Adults and Communities,Other Agencies - Third Party P,30085294,INDIVIDUALISED CARE LIMITED,700,23/07/2015
Delivery Units,Adults and Communities,Other Agencies - Third Party P,30085295,INDIVIDUALISED CARE LIMITED,500,23/07/2015
Delivery Units,Adults and Communities,Other Agencies - Third Party P,30085296,INDIVIDUALISED CARE LIMITED,800,23/07/2015
Delivery Units,Adults and Communities,Other Agencies - Third Party P,30085297,INDIVIDUALISED CARE LIMITED,200,23/07/2015
Delivery Units,Adults and Communities,Other Agencies - Third Party P,30085298,INDIVIDUALISED CARE LIMITED,700,23/07/2015
Delivery Units,Adults and Communities,Other Agencies - Third Party P,30085299,INDIVIDUALISED CARE LIMITED,255,23/07/2015
Delivery Units,Adults and Communities,Other Agencies - Third Party P,30085300,INDIVIDUALISED CARE LIMITED,224,23/07/2015
Delivery Units,Adults and Communities,Other Agencies - Third Party P,30085301,INDIVIDUALISED CARE LIMITED,700,23/07/2015
Delivery Units,Adults and Communities,Other Agencies - Third Party P,30085302,INDIVIDUALISED CARE LIMITED,224,23/07/2015
Delivery Units,Adults and Communities,Other Agencies - Third Party P,30085303,INDIVIDUALISED CARE LIMITED,214,23/07/2015
Delivery Units,Adults and Communities,Other Agencies - Third Party P,30085305,INDIVIDUALISED CARE LIMITED,560,23/07/2015
Delivery Units,Adults and Communities,Other Agencies - Third Party P,30085306,INDIVIDUALISED CARE LIMITED,588,23/07/2015
Delivery Units,Adults and Communities,Other Agencies - Third Party P,30085307,INDIVIDUALISED CARE LIMITED,300,23/07/2015
Delivery Units,Adults and Communities,Other Agencies - Third Party P,30085308,INDIVIDUALISED CARE LIMITED,140,23/07/2015
Delivery Units,Adults and Communities,Other Agencies - Third Party P,30085310,INDIVIDUALISED CARE LIMITED,400,23/07/2015
Delivery Units,Adults and Communities,Other Agencies - Third Party P,30085311,INDIVIDUALISED CARE LIMITED,"1,000.00",23/07/2015
Delivery Units,Adults and Communities,Other Agencies - Third Party P,30085312,INDIVIDUALISED CARE LIMITED,700,23/07/2015
Delivery Units,Adults and Communities,Other Agencies - Third Party P,30085313,INDIVIDUALISED CARE LIMITED,500,23/07/2015
Delivery Units,Adults and Communities,Other Agencies - Third Party P,30085314,INDIVIDUALISED CARE LIMITED,300,23/07/2015
Delivery Units,Adults and Communities,Other Agencies - Third Party P,30085317,INDIVIDUALISED CARE LIMITED,600,23/07/2015
Delivery Units,Adults and Communities,Other Agencies - Third Party P,30085318,INDIVIDUALISED CARE LIMITED,400,23/07/2015
Delivery Units,Adults and Communities,Other Agencies - Third Party P,30085319,INDIVIDUALISED CARE LIMITED,"1,400.00",23/07/2015
Delivery Units,Adults and Communities,Other Agencies - Third Party P,30085320,INDIVIDUALISED CARE LIMITED,150,23/07/2015
Delivery Units,Adults and Communities,Other Agencies - Third Party P,30085321,INDIVIDUALISED CARE LIMITED,125,23/07/2015
Delivery Units,Adults and Communities,Other Agencies - Third Party P,30085322,INDIVIDUALISED CARE LIMITED,300,23/07/2015
Delivery Units,Adults and Communities,Other Agencies - Third Party P,30085781,INDIVIDUALISED CARE LIMITED,660,24/07/2015
Delivery Units,Adults and Communities,Other Agencies - Third Party P,30085782,INDIVIDUALISED CARE LIMITED,350,24/07/2015
Delivery Units,Adults and Communities,Other Agencies - Third Party P,30086079,INDIVIDUALISED CARE LIMITED,800,28/07/2015
Delivery Units,Adults and Communities,Other Agencies - Third Party P,30086080,INDIVIDUALISED CARE LIMITED,300,28/07/2015
Delivery Units,Adults and Communities,Other Agencies - Third Party P,30082730,INSIGHT SPECIALIST BEHAVIOURAL,"5,944.08",02/07/2015
Delivery Units,Adults and Communities,Other Agencies - Third Party P,30085028,INSIGHT SPECIALIST BEHAVIOURAL,"5,944.08",22/07/2015
Delivery Units,Adults and Communities,Other Agencies - Third Party P,30086787,INSIGHT SPECIALIST BEHAVIOURAL,"5,944.08",30/07/2015
Delivery Units,Adults and Communities,Other Agencies - Third Party P,20021945,INTEGRATED SERVICES PROGRAMME,"2,785.80",22/07/2015
Delivery Units,Adults and Communities,Other Agencies - Third Party P,20022199,INTEGRATED SERVICES PROGRAMME,464.3,22/07/2015
Delivery Units,Adults and Communities,Other Agencies - Third Party P,20022200,INTEGRATED SERVICES PROGRAMME,"2,878.66",22/07/2015
Delivery Units,Adults and Communities,Other Agencies - Third Party P,30082694,JANITH HOMES LTD,"2,564.70",02/07/2015
Delivery Units,Adults and Communities,Other Agencies - Third Party P,30082695,JANITH HOMES LTD,-344.7,02/07/2015
Delivery Units,Adults and Communities,Other Agencies - Third Party P,30085007,JANITH HOMES LTD,"2,650.19",22/07/2015
Delivery Units,Adults and Communities,Other Agencies - Third Party P,30085008,JANITH HOMES LTD,-356.19,22/07/2015
Delivery Units,Adults and Communities,Other Agencies - Third Party P,30084747,JEMINI RESPONSE,"9,100.00",29/07/2015
Delivery Units,Adults and Communities,Other Agencies - Third Party P,30083344,JEWISH CARE,"1,324.30",07/07/2015
Delivery Units,Adults and Communities,Other Agencies - Third Party P,30083345,JEWISH CARE,81.9,07/07/2015
Delivery Units,Adults and Communities,Other Agencies - Third Party P,30083346,JEWISH CARE,"1,965.63",07/07/2015
Delivery Units,Adults and Communities,Other Agencies - Third Party P,30083347,JEWISH CARE,"2,477.36",07/07/2015
Delivery Units,Adults and Communities,Other Agencies - Third Party P,30083348,JEWISH CARE,"-4,204.00",07/07/2015
Delivery Units,Adults and Communities,Other Agencies - Third Party P,30083349,JEWISH CARE,"1,726.64",07/07/2015
Delivery Units,Adults and Communities,Other Agencies - Third Party P,30083351,JEWISH CARE,"1,310.42",07/07/2015
Delivery Units,Adults and Communities,Other Agencies - Third Party P,30083352,JEWISH CARE,"-1,867.47",07/07/2015
Delivery Units,Adults and Communities,Other Agencies - Third Party P,30083353,JEWISH CARE,"1,064.72",07/07/2015
Delivery Units,Adults and Communities,Other Agencies - Third Party P,30083354,JEWISH CARE,245.7,07/07/2015
Delivery Units,Adults and Communities,Other Agencies - Third Party P,30083355,JEWISH CARE,"1,146.62",07/07/2015
Delivery Units,Adults and Communities,Other Agencies - Third Party P,30083356,JEWISH CARE,"1,146.62",07/07/2015
Delivery Units,Adults and Communities,Other Agencies - Third Party P,30083962,JEWISH CARE,900.92,15/07/2015
Delivery Units,Adults and Communities,Other Agencies - Third Party P,30083963,JEWISH CARE,"1,146.62",15/07/2015
Delivery Units,Adults and Communities,Other Agencies - Third Party P,30083964,JEWISH CARE,"1,146.62",15/07/2015
Delivery Units,Adults and Communities,Other Agencies - Third Party P,30083965,JEWISH CARE,"1,726.64",15/07/2015
Delivery Units,Adults and Communities,Other Agencies - Third Party P,30083966,JEWISH CARE,676,15/07/2015
Delivery Units,Adults and Communities,Other Agencies - Third Party P,30083967,JEWISH CARE,"1,051.00",15/07/2015
Delivery Units,Adults and Communities,Other Agencies - Third Party P,30084103,JEWISH CARE,"2,102.00",16/07/2015
Delivery Units,Adults and Communities,Other Agencies - Third Party P,30084104,JEWISH CARE,"3,200.00",16/07/2015
Delivery Units,Adults and Communities,Other Agencies - Third Party P,30084109,JEWISH CARE,"2,199.24",16/07/2015
Delivery Units,Adults and Communities,Other Agencies - Third Party P,30084110,JEWISH CARE,"3,360.00",16/07/2015
Delivery Units,Adults and Communities,Other Agencies - Third Party P,30084111,JEWISH CARE,-321.8,16/07/2015
Delivery Units,Adults and Communities,Other Agencies - Third Party P,30084113,JEWISH CARE,"2,133.84",16/07/2015
Delivery Units,Adults and Communities,Other Agencies - Third Party P,30084114,JEWISH CARE,-505.2,16/07/2015
Delivery Units,Adults and Communities,Other Agencies - Third Party P,30084115,JEWISH CARE,573.31,16/07/2015
Delivery Units,Adults and Communities,Other Agencies - Third Party P,30082690,JIGSAW CREATIVE CARE LIMITED,"2,998.68",02/07/2015
Delivery Units,Adults and Communities,Other Agencies - Third Party P,30082691,JIGSAW CREATIVE CARE LIMITED,"1,412.00",02/07/2015
Delivery Units,Adults and Communities,Other Agencies - Third Party P,30082692,JIGSAW CREATIVE CARE LIMITED,"2,783.00",02/07/2015
Delivery Units,Adults and Communities,Other Agencies - Third Party P,30085352,JIGSAW CREATIVE CARE LIMITED,"8,996.04",23/07/2015
Delivery Units,Adults and Communities,Other Agencies - Third Party P,30085353,JIGSAW CREATIVE CARE LIMITED,"4,236.00",23/07/2015
Delivery Units,Adults and Communities,Other Agencies - Third Party P,30085354,JIGSAW CREATIVE CARE LIMITED,"8,349.00",23/07/2015
Delivery Units,Adults and Communities,Other Agencies - Third Party P,30086775,JIGSAW CREATIVE CARE LIMITED,"2,998.68",30/07/2015
Delivery Units,Adults and Communities,Other Agencies - Third Party P,30086776,JIGSAW CREATIVE CARE LIMITED,"1,412.00",30/07/2015
Delivery Units,Adults and Communities,Other Agencies - Third Party P,30086777,JIGSAW CREATIVE CARE LIMITED,"2,783.00",30/07/2015
Delivery Units,Adults and Communities,Other Agencies - Third Party P,30085274,KEMBLE HOUSE,"9,680.37",23/07/2015
Delivery Units,Adults and Communities,Other Agencies - Third Party P,30085275,KEMBLE HOUSE,"7,438.45",23/07/2015
Delivery Units,Adults and Communities,Other Agencies - Third Party P,30086004,KEMBLE HOUSE,"8,192.99",27/07/2015
Delivery Units,Adults and Communities,Other Agencies - Third Party P,30086078,KEMBLE HOUSE,"3,339.01",28/07/2015
Delivery Units,Adults and Communities,Other Agencies - Third Party P,30083302,KIRKLEY MANOR,"1,980.43",06/07/2015
Delivery Units,Adults and Communities,Other Agencies - Third Party P,30083303,KIRKLEY MANOR,-505.2,06/07/2015
Delivery Units,Adults and Communities,Other Agencies - Third Party P,30082752,KISHARON DAY SCHOOL,"1,464.03",02/07/2015
Delivery Units,Adults and Communities,Other Agencies - Third Party P,30082753,KISHARON DAY SCHOOL,"4,260.72",02/07/2015
Delivery Units,Adults and Communities,Other Agencies - Third Party P,30082754,KISHARON DAY SCHOOL,"2,144.10",02/07/2015
Delivery Units,Adults and Communities,Other Agencies - Third Party P,30082755,KISHARON DAY SCHOOL,"2,284.24",02/07/2015
Delivery Units,Adults and Communities,Other Agencies - Third Party P,30082756,KISHARON DAY SCHOOL,686.88,02/07/2015
Delivery Units,Adults and Communities,Other Agencies - Third Party P,30082757,KISHARON DAY SCHOOL,"1,373.49",02/07/2015
Delivery Units,Adults and Communities,Other Agencies - Third Party P,30082758,KISHARON DAY SCHOOL,794.08,02/07/2015
Delivery Units,Adults and Communities,Other Agencies - Third Party P,30082759,KISHARON DAY SCHOOL,381.54,02/07/2015
Delivery Units,Adults and Communities,Other Agencies - Third Party P,30082760,KISHARON DAY SCHOOL,"1,373.49",02/07/2015
Delivery Units,Adults and Communities,Other Agencies - Third Party P,30082761,KISHARON DAY SCHOOL,397.11,02/07/2015
Delivery Units,Adults and Communities,Other Agencies - Third Party P,30082762,KISHARON DAY SCHOOL,"1,679.87",02/07/2015
Delivery Units,Adults and Communities,Other Agencies - Third Party P,30082763,KISHARON DAY SCHOOL,"1,340.18",02/07/2015
Delivery Units,Adults and Communities,Other Agencies - Third Party P,30082764,KISHARON DAY SCHOOL,"1,241.16",02/07/2015
Delivery Units,Adults and Communities,Other Agencies - Third Party P,30082765,KISHARON DAY SCHOOL,"1,369.23",02/07/2015
Delivery Units,Adults and Communities,Other Agencies - Third Party P,30082766,KISHARON DAY SCHOOL,"1,133.60",02/07/2015
Delivery Units,Adults and Communities,Other Agencies - Third Party P,30082767,KISHARON DAY SCHOOL,"1,373.68",02/07/2015
Delivery Units,Adults and Communities,Other Agencies - Third Party P,30082768,KISHARON DAY SCHOOL,733.72,02/07/2015
Delivery Units,Adults and Communities,Other Agencies - Third Party P,30082770,KISHARON DAY SCHOOL,"1,275.96",02/07/2015
Delivery Units,Adults and Communities,Other Agencies - Third Party P,30083898,KISHARON DAY SCHOOL,"2,998.11",15/07/2015
Delivery Units,Adults and Communities,Other Agencies - Third Party P,30083899,KISHARON DAY SCHOOL,-342.21,15/07/2015
Delivery Units,Adults and Communities,Other Agencies - Third Party P,30083900,KISHARON DAY SCHOOL,"4,881.51",15/07/2015
Delivery Units,Adults and Communities,Other Agencies - Third Party P,30083901,KISHARON DAY SCHOOL,-342.21,15/07/2015
Delivery Units,Adults and Communities,Other Agencies - Third Party P,30083902,KISHARON DAY SCHOOL,"2,998.11",15/07/2015
Delivery Units,Adults and Communities,Other Agencies - Third Party P,30083903,KISHARON DAY SCHOOL,-342.21,15/07/2015
Delivery Units,Adults and Communities,Other Agencies - Third Party P,30083904,KISHARON DAY SCHOOL,"2,998.11",15/07/2015
Delivery Units,Adults and Communities,Other Agencies - Third Party P,30083905,KISHARON DAY SCHOOL,-342.21,15/07/2015
Delivery Units,Adults and Communities,Other Agencies - Third Party P,30083906,KISHARON DAY SCHOOL,-2.7,15/07/2015
Delivery Units,Adults and Communities,Other Agencies - Third Party P,30083907,KISHARON DAY SCHOOL,-2.7,15/07/2015
Delivery Units,Adults and Communities,Other Agencies - Third Party P,30083908,KISHARON DAY SCHOOL,-2.7,15/07/2015
Delivery Units,Adults and Communities,Other Agencies - Third Party P,30083909,KISHARON DAY SCHOOL,-2.7,15/07/2015
Delivery Units,Adults and Communities,Other Agencies - Third Party P,30086156,KISHARON DAY SCHOOL,"1,464.03",28/07/2015
Delivery Units,Adults and Communities,Other Agencies - Third Party P,30086157,KISHARON DAY SCHOOL,"4,260.72",28/07/2015
Delivery Units,Adults and Communities,Other Agencies - Third Party P,30086158,KISHARON DAY SCHOOL,"2,144.10",28/07/2015
Delivery Units,Adults and Communities,Other Agencies - Third Party P,30086159,KISHARON DAY SCHOOL,"2,284.24",28/07/2015
Delivery Units,Adults and Communities,Other Agencies - Third Party P,30086160,KISHARON DAY SCHOOL,686.88,28/07/2015
Delivery Units,Adults and Communities,Other Agencies - Third Party P,30086161,KISHARON DAY SCHOOL,794.08,28/07/2015
Delivery Units,Adults and Communities,Other Agencies - Third Party P,30086162,KISHARON DAY SCHOOL,381.54,28/07/2015
Delivery Units,Adults and Communities,Other Agencies - Third Party P,30086163,KISHARON DAY SCHOOL,"1,373.49",28/07/2015
Delivery Units,Adults and Communities,Other Agencies - Third Party P,30086164,KISHARON DAY SCHOOL,397.11,28/07/2015
Delivery Units,Adults and Communities,Other Agencies - Third Party P,30086165,KISHARON DAY SCHOOL,"1,679.87",28/07/2015
Delivery Units,Adults and Communities,Other Agencies - Third Party P,30086166,KISHARON DAY SCHOOL,"1,340.18",28/07/2015
Delivery Units,Adults and Communities,Other Agencies - Third Party P,30086167,KISHARON DAY SCHOOL,"1,241.16",28/07/2015
Delivery Units,Adults and Communities,Other Agencies - Third Party P,30086168,KISHARON DAY SCHOOL,"1,369.23",28/07/2015
Delivery Units,Adults and Communities,Other Agencies - Third Party P,30086169,KISHARON DAY SCHOOL,"1,133.60",28/07/2015
Delivery Units,Adults and Communities,Other Agencies - Third Party P,30086170,KISHARON DAY SCHOOL,733.72,28/07/2015
Delivery Units,Adults and Communities,Other Agencies - Third Party P,30086172,KISHARON DAY SCHOOL,"1,275.96",28/07/2015
Delivery Units,Adults and Communities,Other Agencies - Third Party P,30086789,KISHARON DAY SCHOOL,"1,373.49",30/07/2015
Delivery Units,Adults and Communities,Other Agencies - Third Party P,30083222,LANGDON COMMUNITY LTD,"6,335.32",06/07/2015
Delivery Units,Adults and Communities,Other Agencies - Third Party P,30083750,LANGDON COMMUNITY LTD,851.2,14/07/2015
Delivery Units,Adults and Communities,Other Agencies - Third Party P,30083751,LANGDON COMMUNITY LTD,"2,403.92",14/07/2015
Delivery Units,Adults and Communities,Other Agencies - Third Party P,30084118,LANGDON COMMUNITY LTD,"1,641.60",16/07/2015
Delivery Units,Adults and Communities,Other Agencies - Third Party P,30084119,LANGDON COMMUNITY LTD,243.2,16/07/2015
Delivery Units,Adults and Communities,Other Agencies - Third Party P,30084120,LANGDON COMMUNITY LTD,"2,979.20",16/07/2015
Delivery Units,Adults and Communities,Other Agencies - Third Party P,30084123,LANGDON COMMUNITY LTD,"1,276.80",16/07/2015
Delivery Units,Adults and Communities,Other Agencies - Third Party P,30084124,LANGDON COMMUNITY LTD,956.38,16/07/2015
Delivery Units,Adults and Communities,Other Agencies - Third Party P,30084127,LANGDON COMMUNITY LTD,"3,144.56",16/07/2015
Delivery Units,Adults and Communities,Other Agencies - Third Party P,30084138,LANGDON COMMUNITY LTD,"3,411.49",16/07/2015
Delivery Units,Adults and Communities,Other Agencies - Third Party P,30084139,LANGDON COMMUNITY LTD,"1,763.20",16/07/2015
Delivery Units,Adults and Communities,Other Agencies - Third Party P,30084145,LANGDON COMMUNITY LTD,425.6,16/07/2015
Delivery Units,Adults and Communities,Other Agencies - Third Party P,30084147,LANGDON COMMUNITY LTD,"1,772.32",16/07/2015
Delivery Units,Adults and Communities,Other Agencies - Third Party P,30084150,LANGDON COMMUNITY LTD,"2,097.60",16/07/2015
Delivery Units,Adults and Communities,Other Agencies - Third Party P,30084151,LANGDON COMMUNITY LTD,"5,002.64",16/07/2015
Delivery Units,Adults and Communities,Other Agencies - Third Party P,30084179,LANGDON COMMUNITY LTD,"1,315.12",16/07/2015
Delivery Units,Adults and Communities,Other Agencies - Third Party P,30084180,LANGDON COMMUNITY LTD,608,16/07/2015
Delivery Units,Adults and Communities,Other Agencies - Third Party P,30084181,LANGDON COMMUNITY LTD,"1,064.00",16/07/2015
Delivery Units,Adults and Communities,Other Agencies - Third Party P,30085943,LCS PARTNERSHIPS LTD,300,24/07/2015
Delivery Units,Adults and Communities,Other Agencies - Third Party P,30085944,LCS PARTNERSHIPS LTD,300,24/07/2015
Delivery Units,Adults and Communities,Other Agencies - Third Party P,30085945,LCS PARTNERSHIPS LTD,300,24/07/2015
Delivery Units,Adults and Communities,Other Agencies - Third Party P,30082938,LEEMING BAR CARE HOME,"1,876.76",02/07/2015
Delivery Units,Adults and Communities,Other Agencies - Third Party P,30085158,LEEMING BAR CARE HOME,"1,939.32",22/07/2015
Delivery Units,Adults and Communities,Other Agencies - Third Party P,30085172,LEWIS.W.HAMMERSON MEMORIAL HOME,"2,216.41",22/07/2015
Delivery Units,Adults and Communities,Other Agencies - Third Party P,30085173,LEWIS.W.HAMMERSON MEMORIAL HOME,"2,216.42",22/07/2015
Delivery Units,Adults and Communities,Other Agencies - Third Party P,30085174,LEWIS.W.HAMMERSON MEMORIAL HOME,-927.48,22/07/2015
Delivery Units,Adults and Communities,Other Agencies - Third Party P,30085175,LEWIS.W.HAMMERSON MEMORIAL HOME,"2,216.41",22/07/2015
Delivery Units,Adults and Communities,Other Agencies - Third Party P,30085176,LEWIS.W.HAMMERSON MEMORIAL HOME,-544,22/07/2015
Delivery Units,Adults and Communities,Other Agencies - Third Party P,30085177,LEWIS.W.HAMMERSON MEMORIAL HOME,"2,216.41",22/07/2015
Delivery Units,Adults and Communities,Other Agencies - Third Party P,30085178,LEWIS.W.HAMMERSON MEMORIAL HOME,"2,216.41",22/07/2015
Delivery Units,Adults and Communities,Other Agencies - Third Party P,20021643,LIAISE LODDON LTD,"12,000.00",02/07/2015
Delivery Units,Adults and Communities,Other Agencies - Third Party P,30086804,LIFESTYLE CARE 2011 PLC,"2,138.00",30/07/2015
Delivery Units,Adults and Communities,Other Agencies - Third Party P,30083497,LIFEWAYS,"3,145.24",09/07/2015
Delivery Units,Adults and Communities,Other Agencies - Third Party P,30083499,LIFEWAYS,"5,037.40",09/07/2015
Delivery Units,Adults and Communities,Other Agencies - Third Party P,30083500,LIFEWAYS,"5,943.00",09/07/2015
Delivery Units,Adults and Communities,Other Agencies - Third Party P,30083506,LIFEWAYS,"3,656.00",09/07/2015
Delivery Units,Adults and Communities,Other Agencies - Third Party P,30083507,LIFEWAYS,"5,766.44",09/07/2015
Delivery Units,Adults and Communities,Other Agencies - Third Party P,30083508,LIFEWAYS,"2,377.20",09/07/2015
Delivery Units,Adults and Communities,Other Agencies - Third Party P,30083509,LIFEWAYS,"4,828.24",09/07/2015
Delivery Units,Adults and Communities,Other Agencies - Third Party P,30083576,LIFEWAYS,"6,930.00",10/07/2015
Delivery Units,Adults and Communities,Other Agencies - Third Party P,30082850,LIVABILITY,"2,400.00",02/07/2015
Delivery Units,Adults and Communities,Other Agencies - Third Party P,30082851,LIVABILITY,"3,424.00",02/07/2015
Delivery Units,Adults and Communities,Other Agencies - Third Party P,30082852,LIVABILITY,"3,672.00",02/07/2015
Delivery Units,Adults and Communities,Other Agencies - Third Party P,30082853,LIVABILITY,-965.4,02/07/2015
Delivery Units,Adults and Communities,Other Agencies - Third Party P,30082952,LIVABILITY,"4,891.20",02/07/2015
Delivery Units,Adults and Communities,Other Agencies - Third Party P,30082953,LIVABILITY,"5,279.24",02/07/2015
Delivery Units,Adults and Communities,Other Agencies - Third Party P,30085911,LIVABILITY,"2,400.00",24/07/2015
Delivery Units,Adults and Communities,Other Agencies - Third Party P,30085912,LIVABILITY,"3,189.32",24/07/2015
Delivery Units,Adults and Communities,Other Agencies - Third Party P,30085913,LIVABILITY,-505.2,24/07/2015
Delivery Units,Adults and Communities,Other Agencies - Third Party P,30085914,LIVABILITY,"3,424.00",24/07/2015
Delivery Units,Adults and Communities,Other Agencies - Third Party P,30085915,LIVABILITY,"3,672.00",24/07/2015
Delivery Units,Adults and Communities,Other Agencies - Third Party P,30085916,LIVABILITY,-321.8,24/07/2015
Delivery Units,Adults and Communities,Other Agencies - Third Party P,30085953,LIVABILITY,"4,891.20",24/07/2015
Delivery Units,Adults and Communities,Other Agencies - Third Party P,30085954,LIVABILITY,"5,279.24",24/07/2015
Delivery Units,Adults and Communities,Other Agencies - Third Party P,30082731,LONG FURROWS RESIDENTIAL CARE HOME,"4,105.24",02/07/2015
Delivery Units,Adults and Communities,Other Agencies - Third Party P,30082732,LONG FURROWS RESIDENTIAL CARE HOME,-541.28,02/07/2015
Delivery Units,Adults and Communities,Other Agencies - Third Party P,30085367,LORRAINES CARE HOME LTD,"1,820.00",23/07/2015
Delivery Units,Adults and Communities,Other Agencies - Third Party P,30082943,M D HOMES,"3,428.57",02/07/2015
Delivery Units,Adults and Communities,Other Agencies - Third Party P,30085947,M D HOMES,"3,542.86",24/07/2015
Delivery Units,Adults and Communities,Other Agencies - Third Party P,30083282,MACINTYRE CARE,"4,015.72",06/07/2015
Delivery Units,Adults and Communities,Other Agencies - Third Party P,30083283,MACINTYRE CARE,-321.8,06/07/2015
Delivery Units,Adults and Communities,Other Agencies - Third Party P,30083284,MACINTYRE CARE,"2,332.48",06/07/2015
Delivery Units,Adults and Communities,Other Agencies - Third Party P,30083285,MACINTYRE CARE,-321.8,06/07/2015
Delivery Units,Adults and Communities,Other Agencies - Third Party P,30083286,MACINTYRE CARE,750.4,06/07/2015
Delivery Units,Adults and Communities,Other Agencies - Third Party P,30083287,MACINTYRE CARE,"3,812.84",06/07/2015
Delivery Units,Adults and Communities,Other Agencies - Third Party P,30083288,MACINTYRE CARE,-321.8,06/07/2015
Delivery Units,Adults and Communities,Other Agencies - Third Party P,30083289,MACINTYRE CARE,"3,570.16",06/07/2015
Delivery Units,Adults and Communities,Other Agencies - Third Party P,30083290,MACINTYRE CARE,-321.8,06/07/2015
Delivery Units,Adults and Communities,Other Agencies - Third Party P,30083291,MACINTYRE CARE,"2,326.48",06/07/2015
Delivery Units,Adults and Communities,Other Agencies - Third Party P,30083292,MACINTYRE CARE,-321.8,06/07/2015
Delivery Units,Adults and Communities,Other Agencies - Third Party P,30085981,MACINTYRE CARE,"4,015.72",24/07/2015
Delivery Units,Adults and Communities,Other Agencies - Third Party P,30085982,MACINTYRE CARE,-321.8,24/07/2015
Delivery Units,Adults and Communities,Other Agencies - Third Party P,30085983,MACINTYRE CARE,"2,332.48",24/07/2015
Delivery Units,Adults and Communities,Other Agencies - Third Party P,30085984,MACINTYRE CARE,-321.8,24/07/2015
Delivery Units,Adults and Communities,Other Agencies - Third Party P,30085985,MACINTYRE CARE,750.4,24/07/2015
Delivery Units,Adults and Communities,Other Agencies - Third Party P,30085986,MACINTYRE CARE,"3,812.84",24/07/2015
Delivery Units,Adults and Communities,Other Agencies - Third Party P,30085987,MACINTYRE CARE,-321.8,24/07/2015
Delivery Units,Adults and Communities,Other Agencies - Third Party P,30085988,MACINTYRE CARE,"3,570.16",24/07/2015
